Body Name,Invoice Date,Department Code,Department,Expense Area Code,Expense Area,Expense Type Code,Expense Type,Amt Paid (�'s),Supplier Name,Extended Description,Transaction Number,Period
Rother District Council,21/03/2019,041ENVIRON,Environmental Services,32144,EH Environmental Services Admin R + W Partnership,A2203,Training,960.00,Institute of Licensing Ltd,Training,2013030,201907
Rother District Council,15/04/2019,081ACQUISIT,"Acquisitions, Transformation and Regeneration",20232,Nlpg-E-Government,D2509,Consultants and Other Services,"2,125.00",GGP Systems Ltd,Consultants and other services - Consultants Fees,2012877,201907
Rother District Council,29/05/2019,081ACQUISIT,"Acquisitions, Transformation and Regeneration",20232,Nlpg-E-Government,D2509,Consultants and Other Services,"-1,275.00",GGP Systems Ltd,Consultants and other services - Consultants Fees,2012878,201907
Rother District Council,05/06/2019,041ENVIRON,Environmental Services,32134,EH Pollution R + W Partnership,D1201,Equipment & Materials,806.25,Niton Equipment Ltd,Equipment & Materials - EnvH- Pollution Equipment,2013983,201909
Rother District Council,05/06/2019,041ENVIRON,Environmental Services,32134,EH Pollution R + W Partnership,D1201,Equipment & Materials,5.79,Niton Equipment Ltd,Equipment & Materials - Carriage/Handling Charge,2013983,201909
Rother District Council,26/06/2019,071STRAT,Strategy and Planning,20269,Neighbourhood plan referendums,D2513,Hired and Contracted services,950.00,1066 Removal Services,Hired and Contracted services,2012476,201907
Rother District Council,04/07/2019,091HOUSING,Housing and Community Services,20109,Sports Development,D2923,Grants made,120.00,1st Rye Scouts,Grants made - Sports Development Projects,2013016,201907
Rother District Council,04/07/2019,021CORP,Corporate Services & Human Resources,20167,European Elections,B2312,Hire of premises (RDC),-50.00,Bexhill Amateur Athletic Community Association,Hire of premises (RDC),2012612,201907
Rother District Council,04/07/2019,101RESOURCES,Resources,20239,Computer Services,D2632,Additional Computer Equipment,900.00,Chess Cybersecurity,Additional Computer Equipment - New PC/Computer,2013466,201908
Rother District Council,04/07/2019,091HOUSING,Housing and Community Services,20114,Bexhill Parks & Open Spaces,D1201,Equipment & Materials,640.00,Direct Bollards Ltd,Equipment & Materials - Parks- Fencing Products,2013510,201908
Rother District Council,12/07/2019,091HOUSING,Housing and Community Services,20102,Rother Museum Services,B1100,Repairs to Premises,210.12,Alfa Electric Ltd,Repairs to Premises - Repairs - Electrical Works,2012455,201907
Rother District Council,12/07/2019,081ACQUISIT,"Acquisitions, Transformation and Regeneration",20148,Misc Land & Buildings,B1100,Repairs to Premises,176.03,Alfa Electric Ltd,Repairs to Premises - Parks - Electrical Works,2012454,201907
Rother District Council,12/07/2019,101RESOURCES,Resources,20241,Stationery,D2420,General office supplies (Stationery purchased from ext suppliers),27.12,Office Depot UK Ltd,General office supplies - Stationery (Stationery Services to buy ONLY),2012593,201907
Rother District Council,13/07/2019,101RESOURCES,Resources,20241,Stationery,D2420,General office supplies (Stationery purchased from ext suppliers),15.51,Office Depot UK Ltd,General office supplies - Stationery (Stationery Services to buy ONLY),2012594,201907
Rother District Council,17/07/2019,101RESOURCES,Resources,20241,Stationery,D2420,General office supplies (Stationery purchased from ext suppliers),51.15,Office Depot UK Ltd,General office supplies - Stationery (Stationery Services to buy ONLY),2012595,201907
Rother District Council,31/07/2019,091HOUSING,Housing and Community Services,20114,Bexhill Parks & Open Spaces,B1100,Repairs to Premises,22.00,F E Philcox Ltd,Repairs to Premises - Purchase of Materials - Build Maint,2012633,201907
Rother District Council,31/07/2019,091HOUSING,Housing and Community Services,20206,Syrians,D2513,Hired and Contracted services,"3,600.00",King Offa Primary Academy,Hired and contracted services - Syrian-Education-Exempt VAT,2012565,201907
Rother District Council,31/07/2019,091HOUSING,Housing and Community Services,20200,Housing Needs - HB (Housing Benefit),D2513,Hired and Contracted services,35.00,NowMedical,Hired and Contracted services,2013236,201908
Rother District Council,02/08/2019,091HOUSING,Housing and Community Services,20108,Bexhill Promenade & Foreshore,D2623,Radios and licences,347.49,Gael Force Group Ltd,Radios and licences - Radio/Transmitter Licences,2012698,201907
Rother District Council,05/08/2019,091HOUSING,Housing and Community Services,20108,Bexhill Promenade & Foreshore,B1100,Repairs to Premises,495.00,Colin A May,Equipment & Materials -  Parks- Benches repairs,2013592,201908
Rother District Council,05/08/2019,091HOUSING,Housing and Community Services,20138,Residual Highway Services,B1100,Repairs to Premises,150.00,Colin A May,Repairs to Premises - Repairs Refurbishment of premises,2013582,201908
Rother District Council,09/08/2019,091HOUSING,Housing and Community Services,20114,Bexhill Parks & Open Spaces,B1100,Repairs to Premises,265.46,Alfa Electric Ltd,Repairs to Premises - Parks - Electrical Works,2013370,201908
Rother District Council,09/08/2019,091HOUSING,Housing and Community Services,20145,Maintenance Services,C1101,Vehicle Repairs & Servicing,8.09,Autolec Motor Factors,Vehicle Repairs & Servicing,2012459,201907
Rother District Council,10/08/2019,091HOUSING,Housing and Community Services,20236,Customer Services and Development,A2203,Training,260.00,Autism Stress Alert CIC,Training,2013081,201907
Rother District Council,10/08/2019,091HOUSING,Housing and Community Services,20108,Bexhill Promenade & Foreshore,D1201,Equipment & Materials,218.00,Thomas Design & Graphics Ltd,Equipment & Materials - Purchase of Signs,2012660,201907
Rother District Council,10/08/2019,091HOUSING,Housing and Community Services,20137,Car Parks,D1201,Equipment & Materials,272.00,Thomas Design & Graphics Ltd,Equipment & Materials - Purchase of Signs,2012661,201907
Rother District Council,13/08/2019,031RESOURCES,Executive Directors & Corporate Core,20185,Joint Waste procurement,D2622,Mobile Phones,10.00,O2 (UK) Ltd,Mobile Phones,2012206,201907
Rother District Council,13/08/2019,031RESOURCES,Executive Directors & Corporate Core,20171,Human Resources,D2622,Mobile Phones,10.00,O2 (UK) Ltd,Mobile Phones,2012206,201907
Rother District Council,13/08/2019,031RESOURCES,Executive Directors & Corporate Core,32132,Joint Waste Contract Client Unit,D2622,Mobile Phones,10.00,O2 (UK) Ltd,Mobile Phones,2012206,201907
Rother District Council,13/08/2019,031RESOURCES,Executive Directors & Corporate Core,20179,Communications,D2622,Mobile Phones,10.00,O2 (UK) Ltd,Mobile Phones,2012206,201907
Rother District Council,13/08/2019,031RESOURCES,Executive Directors & Corporate Core,20158,Committee Service General Exp,D2622,Mobile Phones,10.00,O2 (UK) Ltd,Mobile Phones,2012206,201907
Rother District Council,13/08/2019,031RESOURCES,Executive Directors & Corporate Core,32132,Joint Waste Contract Client Unit,D2622,Mobile Phones,10.00,O2 (UK) Ltd,Mobile Phones,2012206,201907
Rother District Council,13/08/2019,031RESOURCES,Executive Directors & Corporate Core,20171,Human Resources,D2622,Mobile Phones,10.00,O2 (UK) Ltd,Mobile Phones,2012206,201907
Rother District Council,13/08/2019,031RESOURCES,Executive Directors & Corporate Core,32132,Joint Waste Contract Client Unit,D2622,Mobile Phones,10.00,O2 (UK) Ltd,Mobile Phones,2012206,201907
Rother District Council,13/08/2019,031RESOURCES,Executive Directors & Corporate Core,20183,Executive Directors,D2622,Mobile Phones,10.00,O2 (UK) Ltd,Mobile Phones,2012206,201907
Rother District Council,13/08/2019,031RESOURCES,Executive Directors & Corporate Core,20183,Executive Directors,D2622,Mobile Phones,30.00,O2 (UK) Ltd,Mobile Phones,2012206,201907
Rother District Council,13/08/2019,031RESOURCES,Executive Directors & Corporate Core,20180,Emergency Planning,D2622,Mobile Phones,10.00,O2 (UK) Ltd,Mobile Phones,2012206,201907
Rother District Council,13/08/2019,031RESOURCES,Executive Directors & Corporate Core,20162,Electoral Registration,D2622,Mobile Phones,10.00,O2 (UK) Ltd,Mobile Phones,2012206,201907
Rother District Council,13/08/2019,101RESOURCES,Resources,20226,Service Manager Finance and Welfare,D2622,Mobile Phones,10.00,O2 (UK) Ltd,Mobile Phones,2012206,201907
Rother District Council,13/08/2019,031RESOURCES,Executive Directors & Corporate Core,20180,Emergency Planning,D2622,Mobile Phones,10.00,O2 (UK) Ltd,Mobile Phones,2012206,201907
Rother District Council,13/08/2019,031RESOURCES,Executive Directors & Corporate Core,20180,Emergency Planning,D2622,Mobile Phones,4.50,O2 (UK) Ltd,Mobile Phones,2012206,201907
Rother District Council,13/08/2019,031RESOURCES,Executive Directors & Corporate Core,32132,Joint Waste Contract Client Unit,D2622,Mobile Phones,10.00,O2 (UK) Ltd,Mobile Phones,2012206,201907
Rother District Council,13/08/2019,031RESOURCES,Executive Directors & Corporate Core,20183,Executive Directors,D2622,Mobile Phones,10.50,O2 (UK) Ltd,Mobile Phones,2012206,201907
Rother District Council,13/08/2019,041ENVIRON,Environmental Services,20199,Food and Safety Team,D2622,Mobile Phones,10.00,O2 (UK) Ltd,Mobile Phones,2012202,201907
Rother District Council,13/08/2019,041ENVIRON,Environmental Services,20199,Food and Safety Team,D2622,Mobile Phones,10.00,O2 (UK) Ltd,Mobile Phones,2012202,201907
Rother District Council,13/08/2019,041ENVIRON,Environmental Services,20199,Food and Safety Team,D2622,Mobile Phones,10.23,O2 (UK) Ltd,Mobile Phones,2012202,201907
Rother District Council,13/08/2019,041ENVIRON,Environmental Services,20198,Licensing Team,D2622,Mobile Phones,10.00,O2 (UK) Ltd,Mobile Phones,2012202,201907
Rother District Council,13/08/2019,041ENVIRON,Environmental Services,20198,Licensing Team,D2622,Mobile Phones,10.00,O2 (UK) Ltd,Mobile Phones,2012202,201907
Rother District Council,13/08/2019,041ENVIRON,Environmental Services,20198,Licensing Team,D2622,Mobile Phones,10.00,O2 (UK) Ltd,Mobile Phones,2012202,201907
Rother District Council,13/08/2019,041ENVIRON,Environmental Services,20265,Pollution Team,D2622,Mobile Phones,10.00,O2 (UK) Ltd,Mobile Phones,2012202,201907
Rother District Council,13/08/2019,041ENVIRON,Environmental Services,20265,Pollution Team,D2622,Mobile Phones,10.00,O2 (UK) Ltd,Mobile Phones,2012202,201907
Rother District Council,13/08/2019,041ENVIRON,Environmental Services,20265,Pollution Team,D2622,Mobile Phones,10.00,O2 (UK) Ltd,Mobile Phones,2012202,201907
Rother District Council,13/08/2019,041ENVIRON,Environmental Services,20265,Pollution Team,D2622,Mobile Phones,10.00,O2 (UK) Ltd,Mobile Phones,2012202,201907
Rother District Council,13/08/2019,041ENVIRON,Environmental Services,20265,Pollution Team,D2622,Mobile Phones,10.00,O2 (UK) Ltd,Mobile Phones,2012202,201907
Rother District Council,13/08/2019,041ENVIRON,Environmental Services,20199,Food and Safety Team,D2622,Mobile Phones,12.50,O2 (UK) Ltd,Mobile Phones,2012202,201907
Rother District Council,13/08/2019,041ENVIRON,Environmental Services,20265,Pollution Team,D2622,Mobile Phones,10.00,O2 (UK) Ltd,Mobile Phones,2012202,201907
Rother District Council,13/08/2019,041ENVIRON,Environmental Services,20265,Pollution Team,D2622,Mobile Phones,12.35,O2 (UK) Ltd,Mobile Phones,2012202,201907
Rother District Council,13/08/2019,041ENVIRON,Environmental Services,20199,Food and Safety Team,D2622,Mobile Phones,10.00,O2 (UK) Ltd,Mobile Phones,2012202,201907
Rother District Council,13/08/2019,041ENVIRON,Environmental Services,20265,Pollution Team,D2622,Mobile Phones,10.00,O2 (UK) Ltd,Mobile Phones,2012202,201907
Rother District Council,13/08/2019,041ENVIRON,Environmental Services,20199,Food and Safety Team,D2622,Mobile Phones,10.00,O2 (UK) Ltd,Mobile Phones,2012202,201907
Rother District Council,13/08/2019,041ENVIRON,Environmental Services,20198,Licensing Team,D2622,Mobile Phones,10.00,O2 (UK) Ltd,Mobile Phones,2012202,201907
Rother District Council,13/08/2019,041ENVIRON,Environmental Services,20198,Licensing Team,D2622,Mobile Phones,10.00,O2 (UK) Ltd,Mobile Phones,2012202,201907
Rother District Council,13/08/2019,041ENVIRON,Environmental Services,20199,Food and Safety Team,D2622,Mobile Phones,10.00,O2 (UK) Ltd,Mobile Phones,2012202,201907
Rother District Council,13/08/2019,041ENVIRON,Environmental Services,20265,Pollution Team,D2622,Mobile Phones,10.00,O2 (UK) Ltd,Mobile Phones,2012202,201907
Rother District Council,13/08/2019,041ENVIRON,Environmental Services,20198,Licensing Team,D2622,Mobile Phones,10.00,O2 (UK) Ltd,Mobile Phones,2012202,201907
Rother District Council,13/08/2019,041ENVIRON,Environmental Services,20199,Food and Safety Team,D2622,Mobile Phones,10.00,O2 (UK) Ltd,Mobile Phones,2012202,201907
Rother District Council,13/08/2019,041ENVIRON,Environmental Services,20265,Pollution Team,D2622,Mobile Phones,10.00,O2 (UK) Ltd,Mobile Phones,2012202,201907
Rother District Council,13/08/2019,041ENVIRON,Environmental Services,20198,Licensing Team,D2622,Mobile Phones,11.87,O2 (UK) Ltd,Mobile Phones,2012202,201907
Rother District Council,13/08/2019,041ENVIRON,Environmental Services,20197,Service Manager Env Serv,D2622,Mobile Phones,10.00,O2 (UK) Ltd,Mobile Phones,2012202,201907
Rother District Council,13/08/2019,041ENVIRON,Environmental Services,20199,Food and Safety Team,D2622,Mobile Phones,10.00,O2 (UK) Ltd,Mobile Phones,2012202,201907
Rother District Council,13/08/2019,041ENVIRON,Environmental Services,20199,Food and Safety Team,D2622,Mobile Phones,10.00,O2 (UK) Ltd,Mobile Phones,2012202,201907
Rother District Council,13/08/2019,041ENVIRON,Environmental Services,20265,Pollution Team,D2622,Mobile Phones,10.00,O2 (UK) Ltd,Mobile Phones,2012202,201907
Rother District Council,13/08/2019,041ENVIRON,Environmental Services,20265,Pollution Team,D2622,Mobile Phones,10.00,O2 (UK) Ltd,Mobile Phones,2012202,201907
Rother District Council,13/08/2019,041ENVIRON,Environmental Services,20199,Food and Safety Team,D2622,Mobile Phones,10.00,O2 (UK) Ltd,Mobile Phones,2012202,201907
Rother District Council,13/08/2019,041ENVIRON,Environmental Services,20199,Food and Safety Team,D2622,Mobile Phones,11.42,O2 (UK) Ltd,Mobile Phones,2012202,201907
Rother District Council,13/08/2019,041ENVIRON,Environmental Services,20265,Pollution Team,D2622,Mobile Phones,10.00,O2 (UK) Ltd,Mobile Phones,2012202,201907
Rother District Council,13/08/2019,041ENVIRON,Environmental Services,20199,Food and Safety Team,D2622,Mobile Phones,10.00,O2 (UK) Ltd,Mobile Phones,2012202,201907
Rother District Council,13/08/2019,071STRAT,Strategy and Planning,20248,"Complaints,Compliance,Enforce",D2622,Mobile Phones,10.00,O2 (UK) Ltd,Mobile Phones,2012201,201907
Rother District Council,13/08/2019,071STRAT,Strategy and Planning,20248,"Complaints,Compliance,Enforce",D2622,Mobile Phones,10.00,O2 (UK) Ltd,Mobile Phones,2012201,201907
Rother District Council,13/08/2019,071STRAT,Strategy and Planning,20248,"Complaints,Compliance,Enforce",D2622,Mobile Phones,10.00,O2 (UK) Ltd,Mobile Phones,2012201,201907
Rother District Council,13/08/2019,071STRAT,Strategy and Planning,20246,Planning Applications,D2622,Mobile Phones,10.00,O2 (UK) Ltd,Mobile Phones,2012201,201907
Rother District Council,13/08/2019,071STRAT,Strategy and Planning,20246,Planning Applications,D2622,Mobile Phones,10.00,O2 (UK) Ltd,Mobile Phones,2012201,201907
Rother District Council,13/08/2019,071STRAT,Strategy and Planning,20247,Service Manager Strategy and Planning,D2622,Mobile Phones,10.00,O2 (UK) Ltd,Mobile Phones,2012201,201907
Rother District Council,14/08/2019,101RESOURCES,Resources,20216,Cost Of Collection,D2513,Hired and Contracted services,550.00,Inform CPI Ltd,Postages - Response Service-Royal Mail Chg,2012862,201907
Rother District Council,15/08/2019,091HOUSING,Housing and Community Services,20145,Maintenance Services,C1101,Vehicle Repairs & Servicing,15.09,Autolec Motor Factors,Repairs to Premises - Purchase of Materials - Build Maint,2012602,201907
Rother District Council,20/08/2019,091HOUSING,Housing and Community Services,20108,Bexhill Promenade & Foreshore,D2513,Hired and Contracted services,"8,050.00",Premier Rides Ltd,Hired and contracted services - Hire of Beach Entertainment Equipment,2013151,201907
Rother District Council,20/08/2019,041ENVIRON,Environmental Services,32134,EH Pollution R + W Partnership,D2513,Hired and Contracted services,77.00,South East Water Ltd Scientific Services,Hired and contracted services - EnvH-Water Sampling,2012897,201907
Rother District Council,22/08/2019,091HOUSING,Housing and Community Services,20107,Camber Beach & Foreshore,D1201,Equipment & Materials,103.00,Buley Media Group Limited,Equipment & Materials - Purchase of Signs,2012699,201907
Rother District Council,23/08/2019,091HOUSING,Housing and Community Services,20200,Housing Needs - HB (Housing Benefit),D2514,Accommodation Costs,"1,525.00",MB Hotels Ltd,Accommodation Costs,2012766,201907
Rother District Council,24/08/2019,101RESOURCES,Resources,20241,Stationery,D2420,General office supplies (Stationery purchased from ext suppliers),19.61,Office Depot UK Ltd,General office supplies - Stationery (Stationery Services to buy ONLY),2012596,201907
Rother District Council,26/08/2019,091HOUSING,Housing and Community Services,20109,Sports Development,D2927,Services Facilitated by External Grants,700.00,Mr Darren Horsman,Services Facilitated by External - Grant-Sports Development-Active Rother,2012538,201907
Rother District Council,29/08/2019,091HOUSING,Housing and Community Services,20137,Car Parks,B1100,Repairs to Premises,11.09,Littlewood Fencing Ltd,Repairs to Premises - Purchase of Materials - Build Maint,2012460,201907
Rother District Council,29/08/2019,091HOUSING,Housing and Community Services,20137,Car Parks,B1100,Repairs to Premises,24.69,Saint-Gobain Building Distribution Ltd t/a Jewson,Repairs to Premises - Purchase of Materials - Build Maint,2012302,201907
Rother District Council,30/08/2019,091HOUSING,Housing and Community Services,20114,Bexhill Parks & Open Spaces,B1100,Repairs to Premises,375.70,Littlewood Fencing Ltd,Repairs to Premises - Purchase of Materials - Build Maint,2012836,201907
Rother District Council,30/08/2019,081ACQUISIT,"Acquisitions, Transformation and Regeneration",20268,Property Investment Strategy ? Glovers Farm sites,B2422,Sewerage,"1,334.92",Sea Change Sussex,Sewerage - Sewerage Charges,2011995,201907
Rother District Council,31/08/2019,091HOUSING,Housing and Community Services,20107,Camber Beach & Foreshore,C1104,Derv,1.90,Allstar Business Solutions,Derv - Fuel Service fee payable on fuel cards,2012639,201907
Rother District Council,31/08/2019,041ENVIRON,Environmental Services,32136,EH Pest Control R + W Partnership,C1104,Derv,3.80,Allstar Business Solutions,Derv - Fuel Service fee payable on fuel cards,2012639,201907
Rother District Council,31/08/2019,041ENVIRON,Environmental Services,32136,EH Pest Control R + W Partnership,C1104,Derv,37.50,Allstar Business Solutions,Derv - Fuel Service fee payable on fuel cards,2012639,201907
Rother District Council,31/08/2019,041ENVIRON,Environmental Services,32136,EH Pest Control R + W Partnership,C1104,Derv,50.83,Allstar Business Solutions,Derv - Fuel Service fee payable on fuel cards,2012639,201907
Rother District Council,31/08/2019,091HOUSING,Housing and Community Services,20145,Maintenance Services,C1104,Derv,72.70,Allstar Business Solutions,Derv - Fuel Service fee payable on fuel cards,2012639,201907
Rother District Council,31/08/2019,091HOUSING,Housing and Community Services,20145,Maintenance Services,C1104,Derv,61.70,Allstar Business Solutions,Derv - Fuel Service fee payable on fuel cards,2012639,201907
Rother District Council,31/08/2019,091HOUSING,Housing and Community Services,20145,Maintenance Services,C1104,Derv,1.90,Allstar Business Solutions,Derv - Fuel Service fee payable on fuel cards,2012639,201907
Rother District Council,31/08/2019,091HOUSING,Housing and Community Services,20145,Maintenance Services,C1104,Derv,42.50,Allstar Business Solutions,Derv - Fuel Service fee payable on fuel cards,2012639,201907
Rother District Council,31/08/2019,091HOUSING,Housing and Community Services,20107,Camber Beach & Foreshore,C1104,Derv,34.69,Allstar Business Solutions,Derv - Fuel Service fee payable on fuel cards,2012639,201907
Rother District Council,31/08/2019,071STRAT,Strategy and Planning,20246,Planning Applications,D2513,Hired and Contracted services,"2,250.00",Altair Consultancy & Advisory Services Ltd,Hired and contracted services - Valuation Services,2012458,201907
Rother District Council,31/08/2019,031RESOURCES,Executive Directors & Corporate Core,20162,Electoral Registration,D2635,Computer Licences,"7,145.00",Civica UK Ltd,Hired and contracted services - election misc payment-net,2012015,201907
Rother District Council,02/09/2019,101RESOURCES,Resources,20241,Stationery,D2420,General office supplies (Stationery purchased from ext suppliers),11.58,Office Depot UK Ltd,General office supplies - Stationery (Stationery Services to buy ONLY),2012597,201907
Rother District Council,02/09/2019,091HOUSING,Housing and Community Services,20108,Bexhill Promenade & Foreshore,B1100,Repairs to Premises,13.68,Saint-Gobain Building Distribution Ltd t/a Jewson,Repairs to Premises - Purchase of Materials - Build Maint,2012305,201907
Rother District Council,02/09/2019,101RESOURCES,Resources,20242,Communications-Phones,D2621,Telephones,420.00,TalkTalk Communications Ltd T/A TalkTalk Business,Telephones - Broadband Connection,2012640,201907
Rother District Council,04/09/2019,031RESOURCES,Executive Directors & Corporate Core,20173,Administrative Offices - Town Hall,B1100,Repairs to Premises,45.00,Alfa Electric Ltd,Repairs to Premises - Repairs - Electrical Works,2012967,201907
Rother District Council,04/09/2019,081ACQUISIT,"Acquisitions, Transformation and Regeneration",20101,Cultural Development,D2415,Printing by external suppliers,150.00,Cityscape Maps Ltd,Printing by external suppliers - Printing (Not from RDC Print Room),2012959,201907
Rother District Council,04/09/2019,091HOUSING,Housing and Community Services,20137,Car Parks,B1100,Repairs to Premises,9.54,Littlewood Fencing Ltd,Repairs to Premises - Purchase of Materials - Build Maint,2012791,201907
Rother District Council,04/09/2019,091HOUSING,Housing and Community Services,20145,Maintenance Services,D1201,Equipment & Materials,44.73,Saint-Gobain Building Distribution Ltd t/a Jewson,Equipment & Materials - Purchase of Tools,2012467,201907
Rother District Council,05/09/2019,101RESOURCES,Resources,20239,Computer Services,D2637,Operational Leases,109.77,Ricoh UK Limited,Operational Leases - Copier Rental and Service,2012757,201907
Rother District Council,05/09/2019,041ENVIRON,Environmental Services,32133,EH Food Hyg / Idc / Water Purity R + W Partnership,D2513,Hired and Contracted services,348.50,South East Water Ltd Scientific Services,Hired and contracted services - EnvH-Water Sampling,2013153,201907
Rother District Council,09/09/2019,101RESOURCES,Resources,20239,Computer Services,D2633,Computer Equipment,8.42,Lloyds Bank,Computer Equipment - Carry Case,2013372,201908
Rother District Council,09/09/2019,101RESOURCES,Resources,20239,Computer Services,D2633,Computer Equipment,8.42,Lloyds Bank,Computer Equipment - Carry Case,2013372,201908
Rother District Council,09/09/2019,101RESOURCES,Resources,20239,Computer Services,D2633,Computer Equipment,8.42,Lloyds Bank,Computer Equipment - Carry Case,2013372,201908
Rother District Council,09/09/2019,101RESOURCES,Resources,20239,Computer Services,D2633,Computer Equipment,8.42,Lloyds Bank,Computer Equipment - Carry Case,2013372,201908
Rother District Council,09/09/2019,101RESOURCES,Resources,20239,Computer Services,D2633,Computer Equipment,8.42,Lloyds Bank,Computer Equipment - Carry Case,2013372,201908
Rother District Council,09/09/2019,101RESOURCES,Resources,20239,Computer Services,D2633,Computer Equipment,8.42,Lloyds Bank,Computer Equipment - Carry Case,2013372,201908
Rother District Council,09/09/2019,101RESOURCES,Resources,20239,Computer Services,D2633,Computer Equipment,8.42,Lloyds Bank,Computer Equipment - Carry Case,2013372,201908
Rother District Council,09/09/2019,101RESOURCES,Resources,20239,Computer Services,D2633,Computer Equipment,8.42,Lloyds Bank,Computer Equipment - Carry Case,2013372,201908
Rother District Council,09/09/2019,101RESOURCES,Resources,20239,Computer Services,D2633,Computer Equipment,38.34,Lloyds Bank,Computer Equipment - Computer peripherals,2013372,201908
Rother District Council,09/09/2019,101RESOURCES,Resources,20239,Computer Services,D2633,Computer Equipment,8.42,Lloyds Bank,Computer Equipment - Carry Case,2013372,201908
Rother District Council,09/09/2019,101RESOURCES,Resources,20239,Computer Services,D2633,Computer Equipment,8.42,Lloyds Bank,Computer Equipment - Carry Case,2013372,201908
Rother District Council,09/09/2019,101RESOURCES,Resources,20239,Computer Services,D2633,Computer Equipment,15.16,Lloyds Bank,Computer Equipment - Computer peripherals,2013372,201908
Rother District Council,09/09/2019,101RESOURCES,Resources,20239,Computer Services,D2633,Computer Equipment,475.57,Lloyds Bank,Computer Equipment - New - Computer Hardware,2013372,201908
Rother District Council,09/09/2019,101RESOURCES,Resources,20239,Computer Services,D2635,Computer Licences,19.98,Lloyds Bank,Computer Licences - Domain Name Renewal,2013103,201907
Rother District Council,09/09/2019,031RESOURCES,Executive Directors & Corporate Core,20182,Legal Services,D2513,Hired and Contracted services,6.50,Lloyds Bank,Hired and contracted services - Service fee paid,2013372,201908
Rother District Council,09/09/2019,031RESOURCES,Executive Directors & Corporate Core,20182,Legal Services,D2513,Hired and Contracted services,14.00,Lloyds Bank,Hired and contracted services - Service fee paid,2013372,201908
Rother District Council,09/09/2019,091HOUSING,Housing and Community Services,20206,Syrians,D2513,Hired and Contracted services,409.80,Lloyds Bank,Hired and contracted services - Syrian Resettlement Programme-Travel,2013373,201908
Rother District Council,09/09/2019,091HOUSING,Housing and Community Services,20206,Syrians,D2513,Hired and Contracted services,141.92,Lloyds Bank,Hired and contracted services - Syrian Misc,2013373,201908
Rother District Council,09/09/2019,091HOUSING,Housing and Community Services,20206,Syrians,D2513,Hired and Contracted services,233.84,Lloyds Bank,Hired and contracted services - Syrian-Education-Exempt VAT,2013373,201908
Rother District Council,09/09/2019,081ACQUISIT,"Acquisitions, Transformation and Regeneration",20140,"Housing Policy,Strategy & Dev",C2335,Public transport,77.31,Lloyds Bank,Public Transport - Flight Tickets,2013372,201908
Rother District Council,09/09/2019,031RESOURCES,Executive Directors & Corporate Core,20173,Administrative Offices - Town Hall,B1100,Repairs to Premises,62.00,Lloyds Bank,Repairs to Premises - Repairs Refurbishment of premises,2013103,201907
Rother District Council,09/09/2019,091HOUSING,Housing and Community Services,20145,Maintenance Services,D1201,Equipment & Materials,51.65,Saint-Gobain Building Distribution Ltd t/a Jewson,Equipment & Materials - Purchase of Tools,2012469,201907
Rother District Council,09/09/2019,091HOUSING,Housing and Community Services,20145,Maintenance Services,D1201,Equipment & Materials,40.12,Saint-Gobain Building Distribution Ltd t/a Jewson,Equipment & Materials - Purchase of Tools,2012468,201907
Rother District Council,09/09/2019,101RESOURCES,Resources,20242,Communications-Phones,D2621,Telephones,67.50,TalkTalk Communications Ltd T/A TalkTalk Business,Telephones - Broadband Connection,2012845,201907
Rother District Council,10/09/2019,031RESOURCES,Executive Directors & Corporate Core,20176,Administrative Offices - Print Room,B1100,Repairs to Premises,164.61,Alfa Electric Ltd,Repairs to Premises - Repairs - Electrical Works,2012968,201907
Rother District Council,10/09/2019,101RESOURCES,Resources,20209,Corporate management,D2513,Hired and Contracted services,271.50,Lloyds Bank,Bank Charges,2012638,201907
Rother District Council,11/09/2019,031RESOURCES,Executive Directors & Corporate Core,20175,Administrative Offices - T.H. Annex (NOT CHP),B1100,Repairs to Premises,116.15,Alfa Electric Ltd,Repairs to Premises - Repairs - Electrical Works,2012969,201907
Rother District Council,11/09/2019,031RESOURCES,Executive Directors & Corporate Core,20176,Administrative Offices - Print Room,B1100,Repairs to Premises,298.15,Alfa Electric Ltd,Repairs to Premises - Repairs - Electrical Works,2012970,201907
Rother District Council,11/09/2019,101RESOURCES,Resources,20209,Corporate management,D2513,Hired and Contracted services,-181.65,Capita Business Services Ltd,Bank Charges,1005400,201907
Rother District Council,11/09/2019,101RESOURCES,Resources,20209,Corporate management,D2513,Hired and Contracted services,181.65,Capita Business Services Ltd,Bank Charges,2012645,201907
Rother District Council,11/09/2019,101RESOURCES,Resources,20209,Corporate management,D2513,Hired and Contracted services,181.65,Capita Business Services Ltd,Bank Charges,2013374,201908
Rother District Council,12/09/2019,999NOREPORT,Housing and Community Services,70714,Capital - Grants Halls and Community Projects,N1011,Capital Grants,500.00,Peasmarsh Memorial Hall,Capital Grants - Community Grants Scheme,2012677,201907
Rother District Council,12/09/2019,031RESOURCES,Executive Directors & Corporate Core,20173,Administrative Offices - Town Hall,B1100,Repairs to Premises,9.83,Trade UK Account (Screwfix),Repairs to Premises - Purchase of Materials - Build Maint,2012254,201907
Rother District Council,13/09/2019,081ACQUISIT,"Acquisitions, Transformation and Regeneration",20121,Programme and Policy Office,D2622,Mobile Phones,10.00,O2 (UK) Ltd,Mobile Phones,2013101,201908
Rother District Council,13/09/2019,081ACQUISIT,"Acquisitions, Transformation and Regeneration",20243,Business Improvement,D2622,Mobile Phones,10.00,O2 (UK) Ltd,Mobile Phones,2013101,201908
Rother District Council,13/09/2019,091HOUSING,Housing and Community Services,20120,Neighbourhood Services,D2622,Mobile Phones,10.00,O2 (UK) Ltd,Mobile Phones,2013097,201907
Rother District Council,13/09/2019,101RESOURCES,Resources,20215,Revenue and Benefits,D2622,Mobile Phones,10.00,O2 (UK) Ltd,Mobile Phones,2013096,201907
Rother District Council,13/09/2019,081ACQUISIT,"Acquisitions, Transformation and Regeneration",20122,Economic Development,D2622,Mobile Phones,10.00,O2 (UK) Ltd,Mobile Phones,2013101,201908
Rother District Council,13/09/2019,101RESOURCES,Resources,20239,Computer Services,D2622,Mobile Phones,10.00,O2 (UK) Ltd,Mobile Phones,2013096,201907
Rother District Council,13/09/2019,041ENVIRON,Environmental Services,20199,Food and Safety Team,D2622,Mobile Phones,10.00,O2 (UK) Ltd,Mobile Phones,2013098,201907
Rother District Council,13/09/2019,091HOUSING,Housing and Community Services,20120,Neighbourhood Services,D2622,Mobile Phones,11.82,O2 (UK) Ltd,Mobile Phones,2013097,201907
Rother District Council,13/09/2019,081ACQUISIT,"Acquisitions, Transformation and Regeneration",20243,Business Improvement,D2622,Mobile Phones,10.00,O2 (UK) Ltd,Mobile Phones,2013101,201908
Rother District Council,13/09/2019,041ENVIRON,Environmental Services,20199,Food and Safety Team,D2622,Mobile Phones,10.00,O2 (UK) Ltd,Mobile Phones,2013098,201907
Rother District Council,13/09/2019,041ENVIRON,Environmental Services,20199,Food and Safety Team,D2622,Mobile Phones,10.03,O2 (UK) Ltd,Mobile Phones,2013098,201907
Rother District Council,13/09/2019,041ENVIRON,Environmental Services,20198,Licensing Team,D2622,Mobile Phones,10.00,O2 (UK) Ltd,Mobile Phones,2013098,201907
Rother District Council,13/09/2019,041ENVIRON,Environmental Services,20198,Licensing Team,D2622,Mobile Phones,10.00,O2 (UK) Ltd,Mobile Phones,2013098,201907
Rother District Council,13/09/2019,101RESOURCES,Resources,20222,Accountancy,D2622,Mobile Phones,10.00,O2 (UK) Ltd,Mobile Phones,2013096,201907
Rother District Council,13/09/2019,091HOUSING,Housing and Community Services,20264,Property Maintenance Team,D2622,Mobile Phones,10.00,O2 (UK) Ltd,Mobile Phones,2013097,201907
Rother District Council,13/09/2019,041ENVIRON,Environmental Services,20198,Licensing Team,D2622,Mobile Phones,10.00,O2 (UK) Ltd,Mobile Phones,2013098,201907
Rother District Council,13/09/2019,031RESOURCES,Executive Directors & Corporate Core,20185,Joint Waste procurement,D2622,Mobile Phones,10.00,O2 (UK) Ltd,Mobile Phones,2013099,201907
Rother District Council,13/09/2019,091HOUSING,Housing and Community Services,20204,Housing Administration Account,D2622,Mobile Phones,10.00,O2 (UK) Ltd,Mobile Phones,2013097,201907
Rother District Council,13/09/2019,041ENVIRON,Environmental Services,20265,Pollution Team,D2622,Mobile Phones,10.24,O2 (UK) Ltd,Mobile Phones,2013098,201907
Rother District Council,13/09/2019,041ENVIRON,Environmental Services,20265,Pollution Team,D2622,Mobile Phones,10.00,O2 (UK) Ltd,Mobile Phones,2013098,201907
Rother District Council,13/09/2019,041ENVIRON,Environmental Services,20265,Pollution Team,D2622,Mobile Phones,10.00,O2 (UK) Ltd,Mobile Phones,2013098,201907
Rother District Council,13/09/2019,101RESOURCES,Resources,20215,Revenue and Benefits,D2622,Mobile Phones,10.00,O2 (UK) Ltd,Mobile Phones,2013096,201907
Rother District Council,13/09/2019,101RESOURCES,Resources,20215,Revenue and Benefits,D2622,Mobile Phones,10.00,O2 (UK) Ltd,Mobile Phones,2013096,201907
Rother District Council,13/09/2019,091HOUSING,Housing and Community Services,20120,Neighbourhood Services,D2622,Mobile Phones,10.00,O2 (UK) Ltd,Mobile Phones,2013097,201907
Rother District Council,13/09/2019,091HOUSING,Housing and Community Services,20120,Neighbourhood Services,D2622,Mobile Phones,10.00,O2 (UK) Ltd,Mobile Phones,2013097,201907
Rother District Council,13/09/2019,091HOUSING,Housing and Community Services,20236,Customer Services and Development,D2622,Mobile Phones,15.00,O2 (UK) Ltd,Mobile Phones,2013097,201907
Rother District Council,13/09/2019,071STRAT,Strategy and Planning,20248,"Complaints,Compliance,Enforce",D2622,Mobile Phones,10.00,O2 (UK) Ltd,Mobile Phones,2013100,201907
Rother District Council,13/09/2019,041ENVIRON,Environmental Services,20265,Pollution Team,D2622,Mobile Phones,10.00,O2 (UK) Ltd,Mobile Phones,2013098,201907
Rother District Council,13/09/2019,091HOUSING,Housing and Community Services,20120,Neighbourhood Services,D2622,Mobile Phones,10.00,O2 (UK) Ltd,Mobile Phones,2013097,201907
Rother District Council,13/09/2019,081ACQUISIT,"Acquisitions, Transformation and Regeneration",20122,Economic Development,D2622,Mobile Phones,10.00,O2 (UK) Ltd,Mobile Phones,2013097,201907
Rother District Council,13/09/2019,091HOUSING,Housing and Community Services,20120,Neighbourhood Services,D2622,Mobile Phones,10.00,O2 (UK) Ltd,Mobile Phones,2013097,201907
Rother District Council,13/09/2019,091HOUSING,Housing and Community Services,20204,Housing Administration Account,D2622,Mobile Phones,10.00,O2 (UK) Ltd,Mobile Phones,2013097,201907
Rother District Council,13/09/2019,031RESOURCES,Executive Directors & Corporate Core,20171,Human Resources,D2622,Mobile Phones,15.21,O2 (UK) Ltd,Mobile Phones,2013099,201907
Rother District Council,13/09/2019,031RESOURCES,Executive Directors & Corporate Core,32132,Joint Waste Contract Client Unit,D2622,Mobile Phones,10.00,O2 (UK) Ltd,Mobile Phones,2013099,201907
Rother District Council,13/09/2019,091HOUSING,Housing and Community Services,20204,Housing Administration Account,D2622,Mobile Phones,10.00,O2 (UK) Ltd,Mobile Phones,2013097,201907
Rother District Council,13/09/2019,091HOUSING,Housing and Community Services,20204,Housing Administration Account,D2622,Mobile Phones,10.00,O2 (UK) Ltd,Mobile Phones,2013097,201907
Rother District Council,13/09/2019,091HOUSING,Housing and Community Services,20204,Housing Administration Account,D2622,Mobile Phones,12.84,O2 (UK) Ltd,Mobile Phones,2013097,201907
Rother District Council,13/09/2019,041ENVIRON,Environmental Services,20265,Pollution Team,D2622,Mobile Phones,10.00,O2 (UK) Ltd,Mobile Phones,2013098,201907
Rother District Council,13/09/2019,081ACQUISIT,"Acquisitions, Transformation and Regeneration",20122,Economic Development,D2622,Mobile Phones,10.00,O2 (UK) Ltd,Mobile Phones,2013101,201908
Rother District Council,13/09/2019,081ACQUISIT,"Acquisitions, Transformation and Regeneration",20122,Economic Development,D2622,Mobile Phones,10.00,O2 (UK) Ltd,Mobile Phones,2013101,201908
Rother District Council,13/09/2019,101RESOURCES,Resources,20239,Computer Services,D2622,Mobile Phones,10.00,O2 (UK) Ltd,Mobile Phones,2013096,201907
Rother District Council,13/09/2019,041ENVIRON,Environmental Services,20199,Food and Safety Team,D2622,Mobile Phones,10.50,O2 (UK) Ltd,Mobile Phones,2013098,201907
Rother District Council,13/09/2019,101RESOURCES,Resources,20239,Computer Services,D2622,Mobile Phones,10.00,O2 (UK) Ltd,Mobile Phones,2013096,201907
Rother District Council,13/09/2019,041ENVIRON,Environmental Services,20265,Pollution Team,D2622,Mobile Phones,10.00,O2 (UK) Ltd,Mobile Phones,2013098,201907
Rother District Council,13/09/2019,081ACQUISIT,"Acquisitions, Transformation and Regeneration",20243,Business Improvement,D2622,Mobile Phones,10.00,O2 (UK) Ltd,Mobile Phones,2013101,201908
Rother District Council,13/09/2019,091HOUSING,Housing and Community Services,20204,Housing Administration Account,D2622,Mobile Phones,10.00,O2 (UK) Ltd,Mobile Phones,2013097,201907
Rother District Council,13/09/2019,031RESOURCES,Executive Directors & Corporate Core,20179,Communications,D2622,Mobile Phones,10.00,O2 (UK) Ltd,Mobile Phones,2013099,201907
Rother District Council,13/09/2019,091HOUSING,Housing and Community Services,20204,Housing Administration Account,D2622,Mobile Phones,10.00,O2 (UK) Ltd,Mobile Phones,2013097,201907
Rother District Council,13/09/2019,091HOUSING,Housing and Community Services,20204,Housing Administration Account,D2622,Mobile Phones,10.00,O2 (UK) Ltd,Mobile Phones,2013097,201907
Rother District Council,13/09/2019,091HOUSING,Housing and Community Services,20264,Property Maintenance Team,D2622,Mobile Phones,10.00,O2 (UK) Ltd,Mobile Phones,2013097,201907
Rother District Council,13/09/2019,091HOUSING,Housing and Community Services,20204,Housing Administration Account,D2622,Mobile Phones,10.00,O2 (UK) Ltd,Mobile Phones,2013097,201907
Rother District Council,13/09/2019,091HOUSING,Housing and Community Services,20204,Housing Administration Account,D2622,Mobile Phones,10.00,O2 (UK) Ltd,Mobile Phones,2013097,201907
Rother District Council,13/09/2019,041ENVIRON,Environmental Services,20265,Pollution Team,D2622,Mobile Phones,10.13,O2 (UK) Ltd,Mobile Phones,2013098,201907
Rother District Council,13/09/2019,091HOUSING,Housing and Community Services,20120,Neighbourhood Services,D2622,Mobile Phones,10.00,O2 (UK) Ltd,Mobile Phones,2013097,201907
Rother District Council,13/09/2019,041ENVIRON,Environmental Services,20199,Food and Safety Team,D2622,Mobile Phones,10.00,O2 (UK) Ltd,Mobile Phones,2013098,201907
Rother District Council,13/09/2019,091HOUSING,Housing and Community Services,20262,Head of Service Housing and Community Services,D2622,Mobile Phones,10.00,O2 (UK) Ltd,Mobile Phones,2013097,201907
Rother District Council,13/09/2019,091HOUSING,Housing and Community Services,20120,Neighbourhood Services,D2622,Mobile Phones,10.00,O2 (UK) Ltd,Mobile Phones,2013097,201907
Rother District Council,13/09/2019,101RESOURCES,Resources,20215,Revenue and Benefits,D2622,Mobile Phones,10.00,O2 (UK) Ltd,Mobile Phones,2013096,201907
Rother District Council,13/09/2019,091HOUSING,Housing and Community Services,20204,Housing Administration Account,D2622,Mobile Phones,10.00,O2 (UK) Ltd,Mobile Phones,2013097,201907
Rother District Council,13/09/2019,091HOUSING,Housing and Community Services,20264,Property Maintenance Team,D2622,Mobile Phones,10.00,O2 (UK) Ltd,Mobile Phones,2013097,201907
Rother District Council,13/09/2019,101RESOURCES,Resources,20239,Computer Services,D2622,Mobile Phones,10.00,O2 (UK) Ltd,Mobile Phones,2013096,201907
Rother District Council,13/09/2019,101RESOURCES,Resources,20222,Accountancy,D2622,Mobile Phones,10.00,O2 (UK) Ltd,Mobile Phones,2013096,201907
Rother District Council,13/09/2019,031RESOURCES,Executive Directors & Corporate Core,20158,Committee Service General Exp,D2622,Mobile Phones,10.00,O2 (UK) Ltd,Mobile Phones,2013099,201907
Rother District Council,13/09/2019,041ENVIRON,Environmental Services,20265,Pollution Team,D2622,Mobile Phones,10.00,O2 (UK) Ltd,Mobile Phones,2013098,201907
Rother District Council,13/09/2019,091HOUSING,Housing and Community Services,20120,Neighbourhood Services,D2622,Mobile Phones,10.00,O2 (UK) Ltd,Mobile Phones,2013097,201907
Rother District Council,13/09/2019,031RESOURCES,Executive Directors & Corporate Core,32132,Joint Waste Contract Client Unit,D2622,Mobile Phones,10.00,O2 (UK) Ltd,Mobile Phones,2013099,201907
Rother District Council,13/09/2019,031RESOURCES,Executive Directors & Corporate Core,20171,Human Resources,D2622,Mobile Phones,10.00,O2 (UK) Ltd,Mobile Phones,2013099,201907
Rother District Council,13/09/2019,071STRAT,Strategy and Planning,20248,"Complaints,Compliance,Enforce",D2622,Mobile Phones,10.00,O2 (UK) Ltd,Mobile Phones,2013100,201907
Rother District Council,13/09/2019,091HOUSING,Housing and Community Services,20204,Housing Administration Account,D2622,Mobile Phones,10.00,O2 (UK) Ltd,Mobile Phones,2013097,201907
Rother District Council,13/09/2019,091HOUSING,Housing and Community Services,20264,Property Maintenance Team,D2622,Mobile Phones,10.00,O2 (UK) Ltd,Mobile Phones,2013097,201907
Rother District Council,13/09/2019,031RESOURCES,Executive Directors & Corporate Core,32132,Joint Waste Contract Client Unit,D2622,Mobile Phones,10.00,O2 (UK) Ltd,Mobile Phones,2013099,201907
Rother District Council,13/09/2019,091HOUSING,Housing and Community Services,20120,Neighbourhood Services,D2622,Mobile Phones,10.00,O2 (UK) Ltd,Mobile Phones,2013097,201907
Rother District Council,13/09/2019,031RESOURCES,Executive Directors & Corporate Core,20183,Executive Directors,D2622,Mobile Phones,30.00,O2 (UK) Ltd,Mobile Phones,2013099,201907
Rother District Council,13/09/2019,031RESOURCES,Executive Directors & Corporate Core,20183,Executive Directors,D2622,Mobile Phones,10.00,O2 (UK) Ltd,Mobile Phones,2013099,201907
Rother District Council,13/09/2019,041ENVIRON,Environmental Services,20199,Food and Safety Team,D2622,Mobile Phones,10.00,O2 (UK) Ltd,Mobile Phones,2013098,201907
Rother District Council,13/09/2019,081ACQUISIT,"Acquisitions, Transformation and Regeneration",20122,Economic Development,D2622,Mobile Phones,10.00,O2 (UK) Ltd,Mobile Phones,2013101,201908
Rother District Council,13/09/2019,041ENVIRON,Environmental Services,20198,Licensing Team,D2622,Mobile Phones,10.00,O2 (UK) Ltd,Mobile Phones,2013098,201907
Rother District Council,13/09/2019,041ENVIRON,Environmental Services,20198,Licensing Team,D2622,Mobile Phones,10.00,O2 (UK) Ltd,Mobile Phones,2013098,201907
Rother District Council,13/09/2019,041ENVIRON,Environmental Services,20199,Food and Safety Team,D2622,Mobile Phones,10.00,O2 (UK) Ltd,Mobile Phones,2013098,201907
Rother District Council,13/09/2019,041ENVIRON,Environmental Services,20265,Pollution Team,D2622,Mobile Phones,10.00,O2 (UK) Ltd,Mobile Phones,2013098,201907
Rother District Council,13/09/2019,081ACQUISIT,"Acquisitions, Transformation and Regeneration",20122,Economic Development,D2622,Mobile Phones,10.00,O2 (UK) Ltd,Mobile Phones,2013101,201908
Rother District Council,13/09/2019,041ENVIRON,Environmental Services,20198,Licensing Team,D2622,Mobile Phones,10.00,O2 (UK) Ltd,Mobile Phones,2013098,201907
Rother District Council,13/09/2019,031RESOURCES,Executive Directors & Corporate Core,20180,Emergency Planning,D2622,Mobile Phones,10.00,O2 (UK) Ltd,Mobile Phones,2013099,201907
Rother District Council,13/09/2019,091HOUSING,Housing and Community Services,20264,Property Maintenance Team,D2622,Mobile Phones,10.00,O2 (UK) Ltd,Mobile Phones,2013097,201907
Rother District Council,13/09/2019,071STRAT,Strategy and Planning,20248,"Complaints,Compliance,Enforce",D2622,Mobile Phones,10.00,O2 (UK) Ltd,Mobile Phones,2013100,201907
Rother District Council,13/09/2019,091HOUSING,Housing and Community Services,20204,Housing Administration Account,D2622,Mobile Phones,10.00,O2 (UK) Ltd,Mobile Phones,2013097,201907
Rother District Council,13/09/2019,091HOUSING,Housing and Community Services,20264,Property Maintenance Team,D2622,Mobile Phones,10.00,O2 (UK) Ltd,Mobile Phones,2013097,201907
Rother District Council,13/09/2019,041ENVIRON,Environmental Services,20199,Food and Safety Team,D2622,Mobile Phones,10.00,O2 (UK) Ltd,Mobile Phones,2013098,201907
Rother District Council,13/09/2019,041ENVIRON,Environmental Services,20265,Pollution Team,D2622,Mobile Phones,10.00,O2 (UK) Ltd,Mobile Phones,2013098,201907
Rother District Council,13/09/2019,091HOUSING,Housing and Community Services,20120,Neighbourhood Services,D2622,Mobile Phones,10.00,O2 (UK) Ltd,Mobile Phones,2013097,201907
Rother District Council,13/09/2019,071STRAT,Strategy and Planning,20246,Planning Applications,D2622,Mobile Phones,10.00,O2 (UK) Ltd,Mobile Phones,2013100,201907
Rother District Council,13/09/2019,031RESOURCES,Executive Directors & Corporate Core,20162,Electoral Registration,D2622,Mobile Phones,10.00,O2 (UK) Ltd,Mobile Phones,2013099,201907
Rother District Council,13/09/2019,101RESOURCES,Resources,20215,Revenue and Benefits,D2622,Mobile Phones,10.00,O2 (UK) Ltd,Mobile Phones,2013096,201907
Rother District Council,13/09/2019,091HOUSING,Housing and Community Services,20120,Neighbourhood Services,D2622,Mobile Phones,10.00,O2 (UK) Ltd,Mobile Phones,2013097,201907
Rother District Council,13/09/2019,071STRAT,Strategy and Planning,20246,Planning Applications,D2622,Mobile Phones,10.00,O2 (UK) Ltd,Mobile Phones,2013100,201907
Rother District Council,13/09/2019,091HOUSING,Housing and Community Services,20120,Neighbourhood Services,D2622,Mobile Phones,10.12,O2 (UK) Ltd,Mobile Phones,2013097,201907
Rother District Council,13/09/2019,041ENVIRON,Environmental Services,20198,Licensing Team,D2622,Mobile Phones,10.00,O2 (UK) Ltd,Mobile Phones,2013098,201907
Rother District Council,13/09/2019,091HOUSING,Housing and Community Services,20120,Neighbourhood Services,D2622,Mobile Phones,10.00,O2 (UK) Ltd,Mobile Phones,2013097,201907
Rother District Council,13/09/2019,041ENVIRON,Environmental Services,20197,Service Manager Env Serv,D2622,Mobile Phones,10.00,O2 (UK) Ltd,Mobile Phones,2013098,201907
Rother District Council,13/09/2019,041ENVIRON,Environmental Services,20199,Food and Safety Team,D2622,Mobile Phones,10.00,O2 (UK) Ltd,Mobile Phones,2013098,201907
Rother District Council,13/09/2019,091HOUSING,Housing and Community Services,20120,Neighbourhood Services,D2622,Mobile Phones,10.00,O2 (UK) Ltd,Mobile Phones,2013097,201907
Rother District Council,13/09/2019,041ENVIRON,Environmental Services,20199,Food and Safety Team,D2622,Mobile Phones,10.00,O2 (UK) Ltd,Mobile Phones,2013098,201907
Rother District Council,13/09/2019,101RESOURCES,Resources,20226,Service Manager Finance and Welfare,D2622,Mobile Phones,10.00,O2 (UK) Ltd,Mobile Phones,2013099,201907
Rother District Council,13/09/2019,031RESOURCES,Executive Directors & Corporate Core,20180,Emergency Planning,D2622,Mobile Phones,10.00,O2 (UK) Ltd,Mobile Phones,2013099,201907
Rother District Council,13/09/2019,031RESOURCES,Executive Directors & Corporate Core,20180,Emergency Planning,D2622,Mobile Phones,4.50,O2 (UK) Ltd,Mobile Phones,2013099,201907
Rother District Council,13/09/2019,091HOUSING,Housing and Community Services,20264,Property Maintenance Team,D2622,Mobile Phones,10.00,O2 (UK) Ltd,Mobile Phones,2013097,201907
Rother District Council,13/09/2019,041ENVIRON,Environmental Services,20265,Pollution Team,D2622,Mobile Phones,10.00,O2 (UK) Ltd,Mobile Phones,2013098,201907
Rother District Council,13/09/2019,091HOUSING,Housing and Community Services,20204,Housing Administration Account,D2622,Mobile Phones,10.00,O2 (UK) Ltd,Mobile Phones,2013097,201907
Rother District Council,13/09/2019,041ENVIRON,Environmental Services,20265,Pollution Team,D2622,Mobile Phones,10.00,O2 (UK) Ltd,Mobile Phones,2013098,201907
Rother District Council,13/09/2019,091HOUSING,Housing and Community Services,20120,Neighbourhood Services,D2622,Mobile Phones,10.00,O2 (UK) Ltd,Mobile Phones,2013097,201907
Rother District Council,13/09/2019,091HOUSING,Housing and Community Services,20120,Neighbourhood Services,D2622,Mobile Phones,10.00,O2 (UK) Ltd,Mobile Phones,2013097,201907
Rother District Council,13/09/2019,081ACQUISIT,"Acquisitions, Transformation and Regeneration",20122,Economic Development,D2622,Mobile Phones,10.00,O2 (UK) Ltd,Mobile Phones,2013101,201908
Rother District Council,13/09/2019,031RESOURCES,Executive Directors & Corporate Core,32132,Joint Waste Contract Client Unit,D2622,Mobile Phones,10.00,O2 (UK) Ltd,Mobile Phones,2013099,201907
Rother District Council,13/09/2019,041ENVIRON,Environmental Services,20199,Food and Safety Team,D2622,Mobile Phones,10.00,O2 (UK) Ltd,Mobile Phones,2013098,201907
Rother District Council,13/09/2019,091HOUSING,Housing and Community Services,20109,Sports Development,D2622,Mobile Phones,10.00,O2 (UK) Ltd,Mobile Phones,2013097,201907
Rother District Council,13/09/2019,041ENVIRON,Environmental Services,20265,Pollution Team,D2622,Mobile Phones,10.00,O2 (UK) Ltd,Mobile Phones,2013098,201907
Rother District Council,13/09/2019,041ENVIRON,Environmental Services,20199,Food and Safety Team,D2622,Mobile Phones,10.00,O2 (UK) Ltd,Mobile Phones,2013098,201907
Rother District Council,13/09/2019,091HOUSING,Housing and Community Services,20120,Neighbourhood Services,D2622,Mobile Phones,10.00,O2 (UK) Ltd,Mobile Phones,2013097,201907
Rother District Council,13/09/2019,091HOUSING,Housing and Community Services,20120,Neighbourhood Services,D2622,Mobile Phones,10.00,O2 (UK) Ltd,Mobile Phones,2013097,201907
Rother District Council,13/09/2019,091HOUSING,Housing and Community Services,20120,Neighbourhood Services,D2622,Mobile Phones,10.00,O2 (UK) Ltd,Mobile Phones,2013097,201907
Rother District Council,13/09/2019,091HOUSING,Housing and Community Services,20204,Housing Administration Account,D2622,Mobile Phones,10.00,O2 (UK) Ltd,Mobile Phones,2013097,201907
Rother District Council,13/09/2019,071STRAT,Strategy and Planning,20247,Service Manager Strategy and Planning,D2622,Mobile Phones,10.00,O2 (UK) Ltd,Mobile Phones,2013100,201907
Rother District Council,13/09/2019,031RESOURCES,Executive Directors & Corporate Core,20183,Executive Directors,D2622,Mobile Phones,11.30,O2 (UK) Ltd,Mobile Phones,2013099,201907
Rother District Council,13/09/2019,101RESOURCES,Resources,20215,Revenue and Benefits,D2622,Mobile Phones,10.00,O2 (UK) Ltd,Mobile Phones,2013096,201907
Rother District Council,13/09/2019,101RESOURCES,Resources,20215,Revenue and Benefits,D2622,Mobile Phones,10.00,O2 (UK) Ltd,Mobile Phones,2013096,201907
Rother District Council,13/09/2019,101RESOURCES,Resources,20239,Computer Services,D2622,Mobile Phones,10.00,O2 (UK) Ltd,Mobile Phones,2013096,201907
Rother District Council,13/09/2019,091HOUSING,Housing and Community Services,20120,Neighbourhood Services,D2622,Mobile Phones,10.00,O2 (UK) Ltd,Mobile Phones,2013097,201907
Rother District Council,13/09/2019,091HOUSING,Housing and Community Services,20120,Neighbourhood Services,D2622,Mobile Phones,10.00,O2 (UK) Ltd,Mobile Phones,2013097,201907
Rother District Council,13/09/2019,091HOUSING,Housing and Community Services,20120,Neighbourhood Services,D2622,Mobile Phones,10.00,O2 (UK) Ltd,Mobile Phones,2013097,201907
Rother District Council,13/09/2019,091HOUSING,Housing and Community Services,20120,Neighbourhood Services,D2622,Mobile Phones,10.00,O2 (UK) Ltd,Mobile Phones,2013097,201907
Rother District Council,13/09/2019,091HOUSING,Housing and Community Services,20120,Neighbourhood Services,D2622,Mobile Phones,10.00,O2 (UK) Ltd,Mobile Phones,2013097,201907
Rother District Council,13/09/2019,091HOUSING,Housing and Community Services,20120,Neighbourhood Services,D2622,Mobile Phones,10.00,O2 (UK) Ltd,Mobile Phones,2013097,201907
Rother District Council,13/09/2019,091HOUSING,Housing and Community Services,20120,Neighbourhood Services,D2622,Mobile Phones,10.00,O2 (UK) Ltd,Mobile Phones,2013097,201907
Rother District Council,13/09/2019,091HOUSING,Housing and Community Services,20120,Neighbourhood Services,D2622,Mobile Phones,10.00,O2 (UK) Ltd,Mobile Phones,2013097,201907
Rother District Council,13/09/2019,041ENVIRON,Environmental Services,20199,Food and Safety Team,D2622,Mobile Phones,10.00,O2 (UK) Ltd,Mobile Phones,2013098,201907
Rother District Council,13/09/2019,091HOUSING,Housing and Community Services,20120,Neighbourhood Services,D2622,Mobile Phones,10.00,O2 (UK) Ltd,Mobile Phones,2013097,201907
Rother District Council,13/09/2019,091HOUSING,Housing and Community Services,20120,Neighbourhood Services,D2622,Mobile Phones,10.00,O2 (UK) Ltd,Mobile Phones,2013097,201907
Rother District Council,13/09/2019,101RESOURCES,Resources,20239,Computer Services,D2622,Mobile Phones,10.00,O2 (UK) Ltd,Mobile Phones,2013096,201907
Rother District Council,13/09/2019,091HOUSING,Housing and Community Services,20145,Maintenance Services,D1201,Equipment & Materials,5.99,Saint-Gobain Building Distribution Ltd t/a Jewson,Equipment & Materials - Purchase of Tools,2012470,201907
Rother District Council,14/09/2019,101RESOURCES,Resources,20241,Stationery,D2420,General office supplies (Stationery purchased from ext suppliers),59.98,Office Depot UK Ltd,General office supplies - Stationery (Stationery Services to buy ONLY),2012598,201907
Rother District Council,15/09/2019,091HOUSING,Housing and Community Services,20107,Camber Beach & Foreshore,C1104,Derv,1.90,Allstar Business Solutions,Derv - Fuel Service fee payable on fuel cards,2012976,201907
Rother District Council,15/09/2019,041ENVIRON,Environmental Services,32136,EH Pest Control R + W Partnership,C1104,Derv,3.80,Allstar Business Solutions,Derv - Fuel Service fee payable on fuel cards,2012976,201907
Rother District Council,15/09/2019,041ENVIRON,Environmental Services,32136,EH Pest Control R + W Partnership,C1104,Derv,49.17,Allstar Business Solutions,Derv - Fuel Service fee payable on fuel cards,2012976,201907
Rother District Council,15/09/2019,041ENVIRON,Environmental Services,32136,EH Pest Control R + W Partnership,C1104,Derv,45.83,Allstar Business Solutions,Derv - Fuel Service fee payable on fuel cards,2012976,201907
Rother District Council,15/09/2019,091HOUSING,Housing and Community Services,20145,Maintenance Services,C1104,Derv,71.71,Allstar Business Solutions,Derv - Fuel Service fee payable on fuel cards,2012976,201907
Rother District Council,15/09/2019,091HOUSING,Housing and Community Services,20145,Maintenance Services,C1104,Derv,63.33,Allstar Business Solutions,Derv - Fuel Service fee payable on fuel cards,2012976,201907
Rother District Council,15/09/2019,091HOUSING,Housing and Community Services,20145,Maintenance Services,C1104,Derv,71.67,Allstar Business Solutions,Derv - Fuel Service fee payable on fuel cards,2012976,201907
Rother District Council,15/09/2019,091HOUSING,Housing and Community Services,20145,Maintenance Services,C1104,Derv,1.90,Allstar Business Solutions,Derv - Fuel Service fee payable on fuel cards,2012976,201907
Rother District Council,15/09/2019,091HOUSING,Housing and Community Services,20107,Camber Beach & Foreshore,C1104,Derv,33.98,Allstar Business Solutions,Derv - Fuel Service fee payable on fuel cards,2012976,201907
Rother District Council,15/09/2019,031RESOURCES,Executive Directors & Corporate Core,20170,Communications-Postages,C1103,Petrol,43.90,Allstar Business Solutions,Petrol,2012976,201907
Rother District Council,15/09/2019,031RESOURCES,Executive Directors & Corporate Core,20170,Communications-Postages,C1103,Petrol,1.90,Allstar Business Solutions,Derv - Fuel Service fee payable on fuel cards,2012976,201907
Rother District Council,16/09/2019,041ENVIRON,Environmental Services,32143,EH Licenses and Registration R + W Partnership,D2513,Hired and Contracted services,368.28,Fairfield House Veterinary Surgery,Hired and contracted services - EnvH-Veterinary Services for Licens,2012816,201907
Rother District Council,16/09/2019,041ENVIRON,Environmental Services,32134,EH Pollution R + W Partnership,D1201,Equipment & Materials,108.80,Gradko International Ltd,Equipment & Materials - EnvH- Air Quality Maintenance Contr,2013186,201908
Rother District Council,16/09/2019,041ENVIRON,Environmental Services,32134,EH Pollution R + W Partnership,D1201,Equipment & Materials,4.50,Gradko International Ltd,Equipment & Materials - Carriage/Handling Charge,2013186,201908
Rother District Council,16/09/2019,091HOUSING,Housing and Community Services,20206,Syrians,D2513,Hired and Contracted services,"10,015.00",Just Accommodation Ltd,Hired and contracted services - Syrian Resettlement Programme-Rent,2013302,201908
Rother District Council,16/09/2019,091HOUSING,Housing and Community Services,20206,Syrians,D2513,Hired and Contracted services,387.20,Just Accommodation Ltd,Hired and contracted services - Syrian Resettlement Programme-Furniture,2013302,201908
Rother District Council,17/09/2019,031RESOURCES,Executive Directors & Corporate Core,20173,Administrative Offices - Town Hall,B1100,Repairs to Premises,45.00,Alfa Electric Ltd,Repairs to Premises - Repairs - Electrical Works,2012440,201907
Rother District Council,18/09/2019,041ENVIRON,Environmental Services,32134,EH Pollution R + W Partnership,D1201,Equipment & Materials,929.00,Cirrus Research PLC,Equipment & Materials - EnvH- Pollution Equipment,2012351,201907
Rother District Council,18/09/2019,041ENVIRON,Environmental Services,32134,EH Pollution R + W Partnership,D1201,Equipment & Materials,48.00,Cirrus Research PLC,Equipment & Materials - Carriage/Handling Charge,2012351,201907
Rother District Council,18/09/2019,999NOREPORT,"Acquisitions, Transformation and Regeneration",70725,Capital - Blackfriars,N1004,Architects & Consultant Fees,"5,665.00",Ecology Consultancy Ltd,Architects & Consultant Fees Capital-Architect and Conslt Fees,2013168,201907
Rother District Council,18/09/2019,091HOUSING,Housing and Community Services,20137,Car Parks,B1100,Repairs to Premises,23.18,Saint-Gobain Building Distribution Ltd t/a Jewson,Repairs to Premises - Purchase of Materials - Build Maint,2012753,201907
Rother District Council,18/09/2019,101RESOURCES,Resources,20240,Printing Services,D1201,Equipment & Materials,30.00,SBS Consumables,Equipment & Materials - Carriage/Handling Charge,2012758,201907
Rother District Council,18/09/2019,091HOUSING,Housing and Community Services,20108,Bexhill Promenade & Foreshore,B1100,Repairs to Premises,15.82,Trade UK Account (Screwfix),Repairs to Premises - Purchase of Materials - Build Maint,2012700,201907
Rother District Council,19/09/2019,081ACQUISIT,"Acquisitions, Transformation and Regeneration",20146,West Trading Estate,B2202,Gas,299.83,British Gas Business (600 Accounts only),Gas - Gas Charges,2012696,201907
Rother District Council,19/09/2019,081ACQUISIT,"Acquisitions, Transformation and Regeneration",20148,Misc Land & Buildings,B2422,Sewerage,141.00,Cleansing Service Group Ltd,Sewerage Parks- Emptying of Cesspit,2012783,201907
Rother District Council,19/09/2019,999NOREPORT,"Acquisitions, Transformation and Regeneration",70725,Capital - Blackfriars,D2513,Hired and Contracted services,"2,590.00",Ecology Consultancy Ltd,Hired and Contracted services,2013169,201908
Rother District Council,19/09/2019,091HOUSING,Housing and Community Services,20108,Bexhill Promenade & Foreshore,B1100,Repairs to Premises,15.60,Parker Building Supplies Ltd,Repairs to Premises - Purchase of Materials - Build Maint,2012333,201907
Rother District Council,19/09/2019,091HOUSING,Housing and Community Services,20132,Street & Beach Cleansing,D1201,Equipment & Materials,40.19,Saint-Gobain Building Distribution Ltd t/a Jewson,Repairs to Premises - Purchase of Materials - Build Maint,2012754,201907
Rother District Council,19/09/2019,091HOUSING,Housing and Community Services,20132,Street & Beach Cleansing,D1201,Equipment & Materials,19.54,Saint-Gobain Building Distribution Ltd t/a Jewson,Repairs to Premises - Purchase of Materials - Build Maint,2012755,201907
Rother District Council,19/09/2019,091HOUSING,Housing and Community Services,20108,Bexhill Promenade & Foreshore,B1100,Repairs to Premises,27.60,Trade UK Account (Screwfix),Repairs to Premises - Purchase of Materials - Build Maint,2012384,201907
Rother District Council,20/09/2019,041ENVIRON,Environmental Services,32134,EH Pollution R + W Partnership,D1201,Equipment & Materials,105.00,Enviro Technology Services Ltd,Equipment & Materials - EnvH- Pollution Equipment,2012345,201907
Rother District Council,20/09/2019,071STRAT,Strategy and Planning,20246,Planning Applications,D2519,Statutory Advertising,"1,372.50",JPIMedia Publishing Ltd,Statutory Advertising - Planadv - Rye+Battle Observer,2012473,201907
Rother District Council,20/09/2019,091HOUSING,Housing and Community Services,20145,Maintenance Services,D1201,Equipment & Materials,49.99,Trade UK Account (Screwfix),Equipment & Materials - Purchase of Tools,2012385,201907
Rother District Council,20/09/2019,041ENVIRON,Environmental Services,32142,EH Taxi and Private Hire Licenses R + W Partnership,D2513,Hired and Contracted services,264.00,uCheck,Hired and contracted services - Service fee paid,2012644,201907
Rother District Council,20/09/2019,041ENVIRON,Environmental Services,32142,EH Taxi and Private Hire Licenses R + W Partnership,D2513,Hired and Contracted services,52.02,uCheck,Hired and contracted services - Service fee paid,2012644,201907
Rother District Council,22/09/2019,071STRAT,Strategy and Planning,20246,Planning Applications,D2519,Statutory Advertising,292.86,Reach Publishing Services Ltd,Statutory Advertising - Planadv-Kent+East Sussex Courier,2012962,201907
Rother District Council,22/09/2019,091HOUSING,Housing and Community Services,20200,Housing Needs - HB (Housing Benefit),D2514,Accommodation Costs,437.50,Specialist Care UK Group Ltd,Accommodation Costs,2012363,201907
Rother District Council,22/09/2019,091HOUSING,Housing and Community Services,20200,Housing Needs - HB (Housing Benefit),D2514,Accommodation Costs,262.50,Specialist Care UK Group Ltd,Accommodation Costs,2012358,201907
Rother District Council,22/09/2019,091HOUSING,Housing and Community Services,20200,Housing Needs - HB (Housing Benefit),D2514,Accommodation Costs,262.50,Specialist Care UK Group Ltd,Accommodation Costs,2012359,201907
Rother District Council,22/09/2019,091HOUSING,Housing and Community Services,20200,Housing Needs - HB (Housing Benefit),D2514,Accommodation Costs,262.50,Specialist Care UK Group Ltd,Accommodation Costs,2012360,201907
Rother District Council,22/09/2019,091HOUSING,Housing and Community Services,20200,Housing Needs - HB (Housing Benefit),D2514,Accommodation Costs,375.00,Specialist Care UK Group Ltd,Accommodation Costs,2012361,201907
Rother District Council,22/09/2019,091HOUSING,Housing and Community Services,20200,Housing Needs - HB (Housing Benefit),D2514,Accommodation Costs,350.00,Specialist Care UK Group Ltd,Accommodation Costs,2012362,201907
Rother District Council,22/09/2019,091HOUSING,Housing and Community Services,20200,Housing Needs - HB (Housing Benefit),D2514,Accommodation Costs,300.00,Specialist Care UK Group Ltd,Accommodation Costs,2012352,201907
Rother District Council,22/09/2019,091HOUSING,Housing and Community Services,20200,Housing Needs - HB (Housing Benefit),D2514,Accommodation Costs,262.50,Specialist Care UK Group Ltd,Accommodation Costs,2012353,201907
Rother District Council,22/09/2019,091HOUSING,Housing and Community Services,20200,Housing Needs - HB (Housing Benefit),D2514,Accommodation Costs,350.00,Specialist Care UK Group Ltd,Accommodation Costs,2012354,201907
Rother District Council,22/09/2019,091HOUSING,Housing and Community Services,20200,Housing Needs - HB (Housing Benefit),D2514,Accommodation Costs,262.50,Specialist Care UK Group Ltd,Accommodation Costs,2012355,201907
Rother District Council,22/09/2019,091HOUSING,Housing and Community Services,20200,Housing Needs - HB (Housing Benefit),D2514,Accommodation Costs,350.00,Specialist Care UK Group Ltd,Accommodation Costs,2012356,201907
Rother District Council,22/09/2019,091HOUSING,Housing and Community Services,20200,Housing Needs - HB (Housing Benefit),D2514,Accommodation Costs,175.00,Specialist Care UK Group Ltd,Accommodation Costs,2012357,201907
Rother District Council,23/09/2019,091HOUSING,Housing and Community Services,20108,Bexhill Promenade & Foreshore,B1100,Repairs to Premises,109.74,Alfa Electric Ltd,Repairs to Premises - Repairs - Electrical Works,2012441,201907
Rother District Council,23/09/2019,091HOUSING,Housing and Community Services,20206,Syrians,D2513,Hired and Contracted services,684.00,In2Play CIC,Hired and contracted services - Syrian-Education-Exempt VAT,2012818,201907
Rother District Council,23/09/2019,081ACQUISIT,"Acquisitions, Transformation and Regeneration",20154,Committee Property Account,B2201,Electricity,48.00,Laser Energy Buying Group (Kent County Council Commercial Services),Electricity - Electricity Charges,2012843,201907
Rother District Council,23/09/2019,091HOUSING,Housing and Community Services,20128,Public Conveniences,B2201,Electricity,87.26,Laser Energy Buying Group (Kent County Council Commercial Services),Electricity - Electricity Charges,2012843,201907
Rother District Council,23/09/2019,091HOUSING,Housing and Community Services,20125,Coast Protection,B2201,Electricity,543.96,Laser Energy Buying Group (Kent County Council Commercial Services),Electricity - Electricity Charges,2012843,201907
Rother District Council,23/09/2019,081ACQUISIT,"Acquisitions, Transformation and Regeneration",20154,Committee Property Account,B2201,Electricity,57.02,Laser Energy Buying Group (Kent County Council Commercial Services),Electricity - Electricity Charges,2012843,201907
Rother District Council,23/09/2019,081ACQUISIT,"Acquisitions, Transformation and Regeneration",20154,Committee Property Account,B2201,Electricity,57.02,Laser Energy Buying Group (Kent County Council Commercial Services),Electricity - Electricity Charges,2012843,201907
Rother District Council,23/09/2019,081ACQUISIT,"Acquisitions, Transformation and Regeneration",20154,Committee Property Account,B2201,Electricity,57.02,Laser Energy Buying Group (Kent County Council Commercial Services),Electricity - Electricity Charges,2012843,201907
Rother District Council,23/09/2019,091HOUSING,Housing and Community Services,20108,Bexhill Promenade & Foreshore,B2201,Electricity,57.02,Laser Energy Buying Group (Kent County Council Commercial Services),Electricity - Electricity Charges,2012843,201907
Rother District Council,23/09/2019,081ACQUISIT,"Acquisitions, Transformation and Regeneration",20153,"Elva Business Centre, Bexhill",B2201,Electricity,634.61,Laser Energy Buying Group (Kent County Council Commercial Services),Electricity - Electricity Charges,2012843,201907
Rother District Council,23/09/2019,091HOUSING,Housing and Community Services,20128,Public Conveniences,B2201,Electricity,32.24,Laser Energy Buying Group (Kent County Council Commercial Services),Electricity - Electricity Charges,2012843,201907
Rother District Council,23/09/2019,031RESOURCES,Executive Directors & Corporate Core,20176,Administrative Offices - Print Room,B2201,Electricity,321.20,Laser Energy Buying Group (Kent County Council Commercial Services),Electricity - Electricity Charges,2012843,201907
Rother District Council,23/09/2019,091HOUSING,Housing and Community Services,20115,Rye Area Parks & Gardens,B2201,Electricity,31.28,Laser Energy Buying Group (Kent County Council Commercial Services),Electricity - Electricity Charges,2012843,201907
Rother District Council,23/09/2019,031RESOURCES,Executive Directors & Corporate Core,20173,Administrative Offices - Town Hall,B2201,Electricity,"3,201.40",Laser Energy Buying Group (Kent County Council Commercial Services),Electricity - Electricity Charges,2012843,201907
Rother District Council,23/09/2019,031RESOURCES,Executive Directors & Corporate Core,20175,Administrative Offices - T.H. Annex (NOT CHP),B2201,Electricity,800.41,Laser Energy Buying Group (Kent County Council Commercial Services),Electricity - Electricity Charges,2012843,201907
Rother District Council,23/09/2019,081ACQUISIT,"Acquisitions, Transformation and Regeneration",20154,Committee Property Account,B2202,Gas,9.30,Laser Energy Buying Group (Kent County Council Commercial Services),Gas - Gas Charges,2012844,201907
Rother District Council,23/09/2019,081ACQUISIT,"Acquisitions, Transformation and Regeneration",20154,Committee Property Account,B2202,Gas,9.61,Laser Energy Buying Group (Kent County Council Commercial Services),Gas - Gas Charges,2012844,201907
Rother District Council,23/09/2019,031RESOURCES,Executive Directors & Corporate Core,20176,Administrative Offices - Print Room,B2202,Gas,41.54,Laser Energy Buying Group (Kent County Council Commercial Services),Gas - Gas Charges,2012844,201907
Rother District Council,23/09/2019,031RESOURCES,Executive Directors & Corporate Core,20173,Administrative Offices - Town Hall,B2202,Gas,124.31,Laser Energy Buying Group (Kent County Council Commercial Services),Gas - Gas Charges,2012844,201907
Rother District Council,23/09/2019,031RESOURCES,Executive Directors & Corporate Core,20175,Administrative Offices - T.H. Annex (NOT CHP),B2202,Gas,-170.40,Laser Energy Buying Group (Kent County Council Commercial Services),Gas - Gas Charges,2012844,201907
Rother District Council,23/09/2019,091HOUSING,Housing and Community Services,20200,Housing Needs - HB (Housing Benefit),D2514,Accommodation Costs,315.00,High Weald Property Investments,Accommodation Costs,2012662,201907
Rother District Council,23/09/2019,091HOUSING,Housing and Community Services,20200,Housing Needs - HB (Housing Benefit),D2514,Accommodation Costs,315.00,High Weald Property Investments,Accommodation Costs,2012662,201907
Rother District Council,23/09/2019,081ACQUISIT,"Acquisitions, Transformation and Regeneration",20118,Tourism,D2513,Hired and Contracted services,360.00,New Road Artists Association,Hired and contracted services - Rye Marketing Campaign,2013071,201907
Rother District Council,23/09/2019,101RESOURCES,Resources,20216,Cost Of Collection,D2513,Hired and Contracted services,235.48,Royal Mail Group Ltd,Postages - Response Service-Royal Mail Chg,2012466,201907
Rother District Council,23/09/2019,101RESOURCES,Resources,20216,Cost Of Collection,D2513,Hired and Contracted services,-22.00,Royal Mail Group Ltd,Postages - Response Service-Royal Mail Chg,2012466,201907
Rother District Council,23/09/2019,091HOUSING,Housing and Community Services,20208,Care In The Community,D2513,Hired and Contracted services,247.00,Safe Partnership Ltd,Hired and contracted services - Sanctuary DV Assistance Revenue,2012600,201907
Rother District Council,23/09/2019,091HOUSING,Housing and Community Services,20108,Bexhill Promenade & Foreshore,B1100,Repairs to Premises,13.92,Saint-Gobain Building Distribution Ltd t/a Jewson,Repairs to Premises - Purchase of Materials - Build Maint,2012829,201907
Rother District Council,23/09/2019,091HOUSING,Housing and Community Services,20200,Housing Needs - HB (Housing Benefit),D2514,Accommodation Costs,285.60,Savoy Court Ltd,Accommodation Costs,2012380,201907
Rother District Council,23/09/2019,091HOUSING,Housing and Community Services,20200,Housing Needs - HB (Housing Benefit),D2514,Accommodation Costs,71.40,Savoy Court Ltd,Accommodation Costs,2012380,201907
Rother District Council,23/09/2019,091HOUSING,Housing and Community Services,20200,Housing Needs - HB (Housing Benefit),D2514,Accommodation Costs,308.00,Savoy Court Ltd,Accommodation Costs,2012379,201907
Rother District Council,23/09/2019,091HOUSING,Housing and Community Services,20200,Housing Needs - HB (Housing Benefit),D2514,Accommodation Costs,77.00,Savoy Court Ltd,Accommodation Costs,2012379,201907
Rother District Council,23/09/2019,091HOUSING,Housing and Community Services,20200,Housing Needs - HB (Housing Benefit),D2514,Accommodation Costs,371.00,South Down Residential Ltd,Accommodation Costs,2012387,201907
Rother District Council,23/09/2019,091HOUSING,Housing and Community Services,20329,Rough Sleeping Initiative,D2514,Accommodation Costs,76.50,South Down Residential Ltd,Accommodation Costs,2012387,201907
Rother District Council,23/09/2019,091HOUSING,Housing and Community Services,20200,Housing Needs - HB (Housing Benefit),D2514,Accommodation Costs,336.00,South Down Residential Ltd,Accommodation Costs,2012387,201907
Rother District Council,23/09/2019,091HOUSING,Housing and Community Services,20200,Housing Needs - HB (Housing Benefit),D2514,Accommodation Costs,364.00,South Down Residential Ltd,Accommodation Costs,2012387,201907
Rother District Council,23/09/2019,091HOUSING,Housing and Community Services,20200,Housing Needs - HB (Housing Benefit),D2514,Accommodation Costs,91.00,South Down Residential Ltd,Accommodation Costs,2012387,201907
Rother District Council,23/09/2019,091HOUSING,Housing and Community Services,20200,Housing Needs - HB (Housing Benefit),D2514,Accommodation Costs,371.00,South Down Residential Ltd,Accommodation Costs,2012387,201907
Rother District Council,23/09/2019,091HOUSING,Housing and Community Services,20200,Housing Needs - HB (Housing Benefit),D2514,Accommodation Costs,212.00,South Down Residential Ltd,Accommodation Costs,2012387,201907
Rother District Council,23/09/2019,091HOUSING,Housing and Community Services,20200,Housing Needs - HB (Housing Benefit),D2514,Accommodation Costs,319.97,South Down Residential Ltd,Accommodation Costs,2012387,201907
Rother District Council,23/09/2019,091HOUSING,Housing and Community Services,20200,Housing Needs - HB (Housing Benefit),D2514,Accommodation Costs,80.01,South Down Residential Ltd,Accommodation Costs,2012387,201907
Rother District Council,23/09/2019,091HOUSING,Housing and Community Services,20200,Housing Needs - HB (Housing Benefit),D2514,Accommodation Costs,178.50,South Down Residential Ltd,Accommodation Costs,2012387,201907
Rother District Council,23/09/2019,091HOUSING,Housing and Community Services,20200,Housing Needs - HB (Housing Benefit),D2514,Accommodation Costs,268.80,South Down Residential Ltd,Accommodation Costs,2012387,201907
Rother District Council,23/09/2019,091HOUSING,Housing and Community Services,20200,Housing Needs - HB (Housing Benefit),D2514,Accommodation Costs,67.20,South Down Residential Ltd,Accommodation Costs,2012387,201907
Rother District Council,23/09/2019,091HOUSING,Housing and Community Services,20200,Housing Needs - HB (Housing Benefit),D2514,Accommodation Costs,347.20,South Down Residential Ltd,Accommodation Costs,2012387,201907
Rother District Council,23/09/2019,091HOUSING,Housing and Community Services,20200,Housing Needs - HB (Housing Benefit),D2514,Accommodation Costs,86.80,South Down Residential Ltd,Accommodation Costs,2012387,201907
Rother District Council,23/09/2019,091HOUSING,Housing and Community Services,20200,Housing Needs - HB (Housing Benefit),D2514,Accommodation Costs,142.80,South Down Residential Ltd,Accommodation Costs,2012387,201907
Rother District Council,23/09/2019,091HOUSING,Housing and Community Services,20200,Housing Needs - HB (Housing Benefit),D2514,Accommodation Costs,35.70,South Down Residential Ltd,Accommodation Costs,2012387,201907
Rother District Council,23/09/2019,091HOUSING,Housing and Community Services,20200,Housing Needs - HB (Housing Benefit),D2514,Accommodation Costs,268.80,South Down Residential Ltd,Accommodation Costs,2012387,201907
Rother District Council,23/09/2019,091HOUSING,Housing and Community Services,20200,Housing Needs - HB (Housing Benefit),D2514,Accommodation Costs,67.20,South Down Residential Ltd,Accommodation Costs,2012387,201907
Rother District Council,23/09/2019,091HOUSING,Housing and Community Services,20200,Housing Needs - HB (Housing Benefit),D2514,Accommodation Costs,268.80,South Down Residential Ltd,Accommodation Costs,2012387,201907
Rother District Council,23/09/2019,091HOUSING,Housing and Community Services,20200,Housing Needs - HB (Housing Benefit),D2514,Accommodation Costs,67.20,South Down Residential Ltd,Accommodation Costs,2012387,201907
Rother District Council,23/09/2019,091HOUSING,Housing and Community Services,20200,Housing Needs - HB (Housing Benefit),D2514,Accommodation Costs,178.50,South Down Residential Ltd,Accommodation Costs,2012387,201907
Rother District Council,23/09/2019,091HOUSING,Housing and Community Services,20200,Housing Needs - HB (Housing Benefit),D2514,Accommodation Costs,371.00,South Down Residential Ltd,Accommodation Costs,2012387,201907
Rother District Council,23/09/2019,091HOUSING,Housing and Community Services,20329,Rough Sleeping Initiative,D2514,Accommodation Costs,76.50,South Down Residential Ltd,Accommodation Costs,2012387,201907
Rother District Council,23/09/2019,091HOUSING,Housing and Community Services,20329,Rough Sleeping Initiative,D2514,Accommodation Costs,10.00,South Down Residential Ltd,Accommodation Costs,2012387,201907
Rother District Council,23/09/2019,091HOUSING,Housing and Community Services,20200,Housing Needs - HB (Housing Benefit),D2514,Accommodation Costs,142.80,South Down Residential Ltd,Accommodation Costs,2012387,201907
Rother District Council,23/09/2019,091HOUSING,Housing and Community Services,20200,Housing Needs - HB (Housing Benefit),D2514,Accommodation Costs,35.70,South Down Residential Ltd,Accommodation Costs,2012387,201907
Rother District Council,23/09/2019,091HOUSING,Housing and Community Services,20200,Housing Needs - HB (Housing Benefit),D2514,Accommodation Costs,413.00,South Down Residential Ltd,Accommodation Costs,2012387,201907
Rother District Council,23/09/2019,091HOUSING,Housing and Community Services,20200,Housing Needs - HB (Housing Benefit),D2514,Accommodation Costs,330.40,South Down Residential Ltd,Accommodation Costs,2012387,201907
Rother District Council,23/09/2019,091HOUSING,Housing and Community Services,20200,Housing Needs - HB (Housing Benefit),D2514,Accommodation Costs,82.60,South Down Residential Ltd,Accommodation Costs,2012387,201907
Rother District Council,23/09/2019,091HOUSING,Housing and Community Services,20200,Housing Needs - HB (Housing Benefit),D2514,Accommodation Costs,330.40,South Down Residential Ltd,Accommodation Costs,2012387,201907
Rother District Council,23/09/2019,091HOUSING,Housing and Community Services,20200,Housing Needs - HB (Housing Benefit),D2514,Accommodation Costs,82.60,South Down Residential Ltd,Accommodation Costs,2012387,201907
Rother District Council,23/09/2019,091HOUSING,Housing and Community Services,20200,Housing Needs - HB (Housing Benefit),D2514,Accommodation Costs,265.00,South Down Residential Ltd,Accommodation Costs,2012387,201907
Rother District Council,23/09/2019,091HOUSING,Housing and Community Services,20200,Housing Needs - HB (Housing Benefit),D2514,Accommodation Costs,240.03,South Down Residential Ltd,Accommodation Costs,2012387,201907
Rother District Council,23/09/2019,091HOUSING,Housing and Community Services,20200,Housing Needs - HB (Housing Benefit),D2514,Accommodation Costs,59.99,South Down Residential Ltd,Accommodation Costs,2012387,201907
Rother District Council,23/09/2019,091HOUSING,Housing and Community Services,20108,Bexhill Promenade & Foreshore,B1100,Repairs to Premises,-1.66,Trade UK Account (Screwfix),Repairs to Premises - Purchase of Materials - Build Maint,2012461,201907
Rother District Council,23/09/2019,091HOUSING,Housing and Community Services,20108,Bexhill Promenade & Foreshore,B1100,Repairs to Premises,1.66,Trade UK Account (Screwfix),Repairs to Premises - Purchase of Materials - Build Maint,2012463,201907
Rother District Council,23/09/2019,091HOUSING,Housing and Community Services,20108,Bexhill Promenade & Foreshore,B1100,Repairs to Premises,234.15,Trade UK Account (Screwfix),Repairs to Premises - Purchase of Materials - Build Maint,2012462,201907
Rother District Council,24/09/2019,091HOUSING,Housing and Community Services,20102,Rother Museum Services,B1100,Repairs to Premises,144.00,ADT Fire and  Security Plc,Repairs to Premises - Fire Alarm System Maintenance,2012494,201907
Rother District Council,24/09/2019,091HOUSING,Housing and Community Services,20102,Rother Museum Services,B1100,Repairs to Premises,833.12,ADT Fire and  Security Plc,Repairs to Premises - Fire Alarm System Maintenance,2012495,201907
Rother District Council,24/09/2019,091HOUSING,Housing and Community Services,20128,Public Conveniences,B1100,Repairs to Premises,102.00,Besure Security Systems,Repairs to Premises,2012497,201907
Rother District Council,24/09/2019,081ACQUISIT,"Acquisitions, Transformation and Regeneration",20148,Misc Land & Buildings,D2513,Hired and Contracted services,"2,730.00",Bevan Brittan LLP,Hired and contracted services - CORPORATE PLAN blackfriars,2013349,201908
Rother District Council,24/09/2019,081ACQUISIT,"Acquisitions, Transformation and Regeneration",20146,West Trading Estate,B2202,Gas,331.55,British Gas (meter removals only),Gas - Gas Charges,2012643,201907
Rother District Council,24/09/2019,999NOREPORT,Housing and Community Services,70726,Capital - Bexhill Cemetery Entrance/Driveway,D2513,Hired and Contracted services,"1,675.00",Costain Ltd,Hired and Contracted services,2012506,201908
Rother District Council,24/09/2019,041ENVIRON,Environmental Services,32143,EH Licenses and Registration R + W Partnership,D2513,Hired and Contracted services,286.44,Fairfield House Veterinary Surgery,Hired and contracted services - EnvH-Veterinary Services for Licens,2013154,201907
Rother District Council,24/09/2019,091HOUSING,Housing and Community Services,20200,Housing Needs - HB (Housing Benefit),D2514,Accommodation Costs,385.00,Lets 2 Share Limited,Accommodation Costs,2012457,201907
Rother District Council,24/09/2019,091HOUSING,Housing and Community Services,20200,Housing Needs - HB (Housing Benefit),D2514,Accommodation Costs,385.00,Lets 2 Share Limited,Accommodation Costs,2012457,201907
Rother District Council,24/09/2019,091HOUSING,Housing and Community Services,20200,Housing Needs - HB (Housing Benefit),D2514,Accommodation Costs,385.00,Lets 2 Share Limited,Accommodation Costs,2012457,201907
Rother District Council,24/09/2019,031RESOURCES,Executive Directors & Corporate Core,20173,Administrative Offices - Town Hall,B1100,Repairs to Premises,125.00,Phase Electrical Distributors Ltd,Equipment & Materials - Light Bulbs,2012442,201907
Rother District Council,24/09/2019,091HOUSING,Housing and Community Services,20108,Bexhill Promenade & Foreshore,B1100,Repairs to Premises,15.39,Trade UK Account (Screwfix),Repairs to Premises - Purchase of Materials - Build Maint,2012492,201907
Rother District Council,25/09/2019,091HOUSING,Housing and Community Services,20206,Syrians,D2513,Hired and Contracted services,"12,882.00",A and A J Bishop,Hired and contracted services - Syrian Misc,2012953,201907
Rother District Council,25/09/2019,091HOUSING,Housing and Community Services,20108,Bexhill Promenade & Foreshore,B1100,Repairs to Premises,53.00,Ace Joinery Solutions South East Ltd,Repairs to Premises - Purchase of Materials - Build Maint,2012501,201907
Rother District Council,25/09/2019,999NOREPORT,Environmental Services,70706,Capital - Disable Facilities Grant,N1012,Capital Advances,"6,000.00",Alfa Electric Ltd,Capital Advances Disabled Facilities Grant,2012560,201907
Rother District Council,25/09/2019,081ACQUISIT,"Acquisitions, Transformation and Regeneration",20118,Tourism,D2513,Hired and Contracted services,"1,000.00",Bexhill Festival of the Sea,Hired and contracted services - Bexhill  Marketing,2013072,201907
Rother District Council,25/09/2019,041ENVIRON,Environmental Services,32134,EH Pollution R + W Partnership,D2513,Hired and Contracted services,"1,367.00",C P J Field & Co Ltd,Hired and contracted services - Parks-Public Health Burials,2012562,201907
Rother District Council,25/09/2019,071STRAT,Strategy and Planning,20246,Planning Applications,D2509,Consultants and Other Services,"1,296.05",Carrington West Ltd,Consultants and other services - Consultants Fees,2012508,201907
Rother District Council,25/09/2019,091HOUSING,Housing and Community Services,20235,Rye Community Help Point,B2311,Rents and service charges,"2,300.00",East Sussex County Council,Rents and service charges,2012504,201907
Rother District Council,25/09/2019,091HOUSING,Housing and Community Services,20128,Public Conveniences,B1100,Repairs to Premises,25.22,Graham,Repairs to Premises - Purchase of Materials - Build Maint,2012741,201907
Rother District Council,25/09/2019,091HOUSING,Housing and Community Services,20128,Public Conveniences,B1100,Repairs to Premises,0.91,Graham,Repairs to Premises - Purchase of Materials - Build Maint,2012742,201908
Rother District Council,25/09/2019,101RESOURCES,Resources,20216,Cost Of Collection,D2513,Hired and Contracted services,33.00,H M Land Registry,Hired and contracted services - Council Tax-Land Registry Enquiries,2012641,201907
Rother District Council,25/09/2019,041ENVIRON,Environmental Services,32144,EH Environmental Services Admin R + W Partnership,D2513,Hired and Contracted services,6.00,H M Land Registry,Hired and contracted services - Env H-Land Registry,2012641,201907
Rother District Council,25/09/2019,071STRAT,Strategy and Planning,20258,BC Dangerous Structures H+R Partnership,D2513,Hired and Contracted services,6.00,H M Land Registry,Hired and contracted services - Env H-Land Registry,2012641,201907
Rother District Council,25/09/2019,091HOUSING,Housing and Community Services,20200,Housing Needs - HB (Housing Benefit),D2513,Hired and Contracted services,3.00,H M Land Registry,Hired and contracted services - Housing-Land Registry,2012641,201907
Rother District Council,25/09/2019,031RESOURCES,Executive Directors & Corporate Core,20182,Legal Services,D2513,Hired and Contracted services,6.00,H M Land Registry,Hired and contracted services - Legal-Land Registry Fees,2012641,201907
Rother District Council,25/09/2019,071STRAT,Strategy and Planning,20246,Planning Applications,D2513,Hired and Contracted services,21.00,H M Land Registry,Hired and contracted services - Land Registry-Planning,2012641,201907
Rother District Council,25/09/2019,031RESOURCES,Executive Directors & Corporate Core,20175,Administrative Offices - T.H. Annex (NOT CHP),B1100,Repairs to Premises,372.00,MC Glass (East Sussex) Ltd,Repairs to Premises - Specified Repairs and Works listed,2012480,201907
Rother District Council,25/09/2019,091HOUSING,Housing and Community Services,20128,Public Conveniences,B1100,Repairs to Premises,270.92,Owlett-Jaton,Repairs to Premises - Purchase of Materials - Build Maint,2012666,201907
Rother District Council,25/09/2019,091HOUSING,Housing and Community Services,20108,Bexhill Promenade & Foreshore,B1100,Repairs to Premises,15.75,Saint-Gobain Building Distribution Ltd t/a Jewson,Repairs to Premises - Purchase of Materials - Build Maint,2012828,201907
Rother District Council,25/09/2019,091HOUSING,Housing and Community Services,20125,Coast Protection,B1100,Repairs to Premises,8.32,Trade UK Account (Screwfix),Repairs to Premises - Purchase of Materials - Build Maint,2012493,201907
Rother District Council,26/09/2019,101RESOURCES,Resources,20211,Public Accountabilty-Resources,D2922,Subscriptions,"5,200.00",East Sussex County Council,Subscriptions - Mem-Sparsity Partnrship Rural Servs,2012575,201907
Rother District Council,26/09/2019,041ENVIRON,Environmental Services,32143,EH Licenses and Registration R + W Partnership,D2513,Hired and Contracted services,286.44,Fairfield House Veterinary Surgery,Hired and contracted services - EnvH-Veterinary Services for Licens,2013155,201907
Rother District Council,26/09/2019,031RESOURCES,Executive Directors & Corporate Core,20156,Representing Local Interest,D2734,Members Training and Seminars,100.00,Jempson�s Ltd,Members Training and Seminars,2012564,201907
Rother District Council,26/09/2019,081ACQUISIT,"Acquisitions, Transformation and Regeneration",20140,"Housing Policy,Strategy & Dev",D2734,Members Training and Seminars,100.00,Jempson�s Ltd,Members Training and Seminars,2012564,201907
Rother District Council,26/09/2019,071STRAT,Strategy and Planning,20246,Planning Applications,D2519,Statutory Advertising,640.50,JPIMedia Publishing Ltd,Statutory Advertising - Planadv - Rye+Battle Observer,2012577,201907
Rother District Council,26/09/2019,101RESOURCES,Resources,20216,Cost Of Collection,D2509,Consultants and Other Services,90.37,Northgate Public Services (UK) Ltd,Consultants and other services - Consultants Fees,2012490,201907
Rother District Council,26/09/2019,101RESOURCES,Resources,20217,Reliefs & Benefits-Council Tax Benefit,D2509,Consultants and Other Services,60.90,Northgate Public Services (UK) Ltd,Consultants and other services - Consultants Fees,2012490,201907
Rother District Council,26/09/2019,091HOUSING,Housing and Community Services,20200,Housing Needs - HB (Housing Benefit),D2509,Consultants and Other Services,38.50,Northgate Public Services (UK) Ltd,Consultants and other services - Consultants Fees,2012490,201907
Rother District Council,26/09/2019,101RESOURCES,Resources,20241,Stationery,D2420,General office supplies (Stationery purchased from ext suppliers),27.66,Office Depot UK Ltd,General office supplies - Stationery (Stationery Services to buy ONLY),2012599,201907
Rother District Council,26/09/2019,091HOUSING,Housing and Community Services,20145,Maintenance Services,D1201,Equipment & Materials,"2,369.60",Saint-Gobain Building Distribution Ltd t/a Jewson,Equipment & Materials - Purchase of Tools,2012827,201907
Rother District Council,26/09/2019,091HOUSING,Housing and Community Services,20115,Rye Area Parks & Gardens,B2422,Sewerage,172.31,Scottish Water Business Stream Limited,Sewerage - Sewerage Charges,2012505,201907
Rother District Council,26/09/2019,091HOUSING,Housing and Community Services,20115,Rye Area Parks & Gardens,B2421,Water,121.03,Scottish Water Business Stream Limited,Water - Water Charges,2012505,201907
Rother District Council,26/09/2019,091HOUSING,Housing and Community Services,20145,Maintenance Services,D1201,Equipment & Materials,234.13,Trade UK Account (Screwfix),Equipment & Materials - Purchase of Tools,2012510,201907
Rother District Council,27/09/2019,091HOUSING,Housing and Community Services,20108,Bexhill Promenade & Foreshore,B1100,Repairs to Premises,125.00,B and G Environmental Services Limited,Repairs to Premises - Drainage Clearance,2012543,201907
Rother District Council,27/09/2019,101RESOURCES,Resources,20242,Communications-Phones,D2621,Telephones,306.95,BT British Telecommunications plc,Telephones - BT-Rental-General,2012740,201907
Rother District Council,27/09/2019,091HOUSING,Housing and Community Services,20114,Bexhill Parks & Open Spaces,D1201,Equipment & Materials,"1,368.00",Colin A May,Equipment & Materials - Parks- Litter Bins,2012988,201907
Rother District Council,27/09/2019,091HOUSING,Housing and Community Services,20115,Rye Area Parks & Gardens,D1201,Equipment & Materials,288.00,Colin A May,Equipment & Materials - Parks- Litter Bins,2012988,201907
Rother District Council,27/09/2019,041ENVIRON,Environmental Services,32134,EH Pollution R + W Partnership,D2513,Hired and Contracted services,495.00,DC Property Maintenance,Hired and contracted services - Service fee paid,2012540,201907
Rother District Council,27/09/2019,091HOUSING,Housing and Community Services,20114,Bexhill Parks & Open Spaces,B1100,Repairs to Premises,"1,800.00",Foxhills Tree Services Ltd,Repairs to Premises - Parks - Tree Works,2012502,201907
Rother District Council,27/09/2019,091HOUSING,Housing and Community Services,20128,Public Conveniences,B1100,Repairs to Premises,46.04,Graham,Repairs to Premises - Purchase of Materials - Build Maint,2012743,201907
Rother District Council,27/09/2019,101RESOURCES,Resources,20216,Cost Of Collection,D2513,Hired and Contracted services,12.00,H M Land Registry,Hired and contracted services - Council Tax-Land Registry Enquiries,2012647,201907
Rother District Council,27/09/2019,071STRAT,Strategy and Planning,20258,BC Dangerous Structures H+R Partnership,D2513,Hired and Contracted services,9.00,H M Land Registry,Hired and contracted services - Env H-Land Registry,2012647,201907
Rother District Council,27/09/2019,031RESOURCES,Executive Directors & Corporate Core,20182,Legal Services,D2513,Hired and Contracted services,20.00,H M Land Registry,Hired and contracted services - Legal-Land Registry Fees,2012647,201907
Rother District Council,27/09/2019,071STRAT,Strategy and Planning,20246,Planning Applications,D2513,Hired and Contracted services,27.00,H M Land Registry,Hired and contracted services - Land Registry-Planning,2012647,201907
Rother District Council,27/09/2019,101RESOURCES,Resources,20240,Printing Services,D2417,Photocopy Paper by external suppliers,12.95,Landor (UK) Ltd,Equipment & Materials - Carriage/Handling Charge,2012584,201907
Rother District Council,27/09/2019,101RESOURCES,Resources,20240,Printing Services,D2417,Photocopy Paper by external suppliers,132.50,Landor (UK) Ltd,Photocopy Paper by external suppliers - White,2012584,201907
Rother District Council,27/09/2019,091HOUSING,Housing and Community Services,20205,Housing Loans Account,D2514,Accommodation Costs,778.84,Oakfield Property Management Ltd,Accommodation Costs - Homelessness services Deposit for Landlords,2012637,201907
Rother District Council,27/09/2019,091HOUSING,Housing and Community Services,20205,Housing Loans Account,D2514,Accommodation Costs,675.00,Oakfield Property Management Ltd,Accommodation Costs - Homelessness services Rent in Advance for Homeless,2012637,201907
Rother District Council,27/09/2019,101RESOURCES,Resources,20241,Stationery,D2420,General office supplies (Stationery purchased from ext suppliers),71.26,Premier Paper Group Ltd,General office supplies - Stationery (Stationery Services to buy ONLY),2012509,201907
Rother District Council,27/09/2019,031RESOURCES,Executive Directors & Corporate Core,20156,Representing Local Interest,D2734,Members Training and Seminars,290.00,Rambler Coaches Ltd,Members Training and Seminars,2012555,201907
Rother District Council,27/09/2019,091HOUSING,Housing and Community Services,20138,Residual Highway Services,B1100,Repairs to Premises,8.40,Saint-Gobain Building Distribution Ltd t/a Jewson,Repairs to Premises - Purchase of Materials - Build Maint,2012830,201908
Rother District Council,27/09/2019,091HOUSING,Housing and Community Services,20108,Bexhill Promenade & Foreshore,B1100,Repairs to Premises,89.25,Streetlights,Repairs to Premises - Lighting Repairs,2012552,201907
Rother District Council,27/09/2019,091HOUSING,Housing and Community Services,20137,Car Parks,B1100,Repairs to Premises,424.25,Streetlights,Repairs to Premises - Lighting Repairs,2012552,201907
Rother District Council,27/09/2019,091HOUSING,Housing and Community Services,20137,Car Parks,B1100,Repairs to Premises,68.75,Streetlights,Repairs to Premises - Lighting Repairs,2012552,201907
Rother District Council,27/09/2019,091HOUSING,Housing and Community Services,20137,Car Parks,B1100,Repairs to Premises,38.75,Streetlights,Repairs to Premises - Lighting Repairs,2012552,201907
Rother District Council,27/09/2019,091HOUSING,Housing and Community Services,20137,Car Parks,B1100,Repairs to Premises,68.75,Streetlights,Repairs to Premises - Lighting Repairs,2012552,201907
Rother District Council,27/09/2019,091HOUSING,Housing and Community Services,20137,Car Parks,B1100,Repairs to Premises,108.25,Streetlights,Repairs to Premises - Lighting Repairs,2012552,201907
Rother District Council,27/09/2019,091HOUSING,Housing and Community Services,20137,Car Parks,B1100,Repairs to Premises,70.25,Streetlights,Repairs to Premises - Lighting Repairs,2012552,201907
Rother District Council,27/09/2019,031RESOURCES,Executive Directors & Corporate Core,20173,Administrative Offices - Town Hall,D1206,Furniture & Fittings,9.10,The Roman Group,Furniture & Fittings - Purchase of office equipment,2012499,201907
Rother District Council,27/09/2019,031RESOURCES,Executive Directors & Corporate Core,32131,Sussex Training Partnership,D2513,Hired and Contracted services,"1,950.00",Trevor Roberts Associates Ltd,Hired and contracted services - Training Sussex Train Consor-Training Course,2012566,201907
Rother District Council,28/09/2019,071STRAT,Strategy and Planning,20244,General Planning Expenses,D1204,Newspapers & Periodicals,11.50,Pipers News Ltd,Newspapers & Periodicals - Newspapers,2012569,201907
Rother District Council,28/09/2019,031RESOURCES,Executive Directors & Corporate Core,20156,Representing Local Interest,D1204,Newspapers & Periodicals,11.50,Pipers News Ltd,Newspapers & Periodicals - Newspapers,2012570,201907
Rother District Council,28/09/2019,031RESOURCES,Executive Directors & Corporate Core,20159,Corporate Policy Making,D1204,Newspapers & Periodicals,11.50,Pipers News Ltd,Newspapers & Periodicals - Newspapers,2012571,201907
Rother District Council,28/09/2019,091HOUSING,Housing and Community Services,20128,Public Conveniences,B2422,Sewerage,861.26,Scottish Water Business Stream Limited,Sewerage - Sewerage Charges,2012693,201907
Rother District Council,28/09/2019,091HOUSING,Housing and Community Services,20128,Public Conveniences,B2421,Water,519.22,Scottish Water Business Stream Limited,Water - Water Charges,2012693,201907
Rother District Council,29/09/2019,999NOREPORT,"Acquisitions, Transformation and Regeneration",70735,Capital - Wainwright Road Development,N1002,Land & Property fees,"122,593.07",Dorton Demolition Excavation Ltd,Land & Property fees Capital-Land and Propty - Fees Etc.,2012701,201907
Rother District Council,29/09/2019,101RESOURCES,Resources,20222,Accountancy,D2635,Computer Licences,"2,266.42",Integra Associates Ltd,Computer Licences - New Computer Software,2012882,201907
Rother District Council,29/09/2019,031RESOURCES,Executive Directors & Corporate Core,32131,Sussex Training Partnership,D2513,Hired and Contracted services,895.00,PHF Training,Hired and contracted services - Training Sussex Train Consor-Training Course,2012542,201907
Rother District Council,29/09/2019,091HOUSING,Housing and Community Services,20200,Housing Needs - HB (Housing Benefit),D2514,Accommodation Costs,550.00,Specialist Care UK Group Ltd,Accommodation Costs,2012536,201907
Rother District Council,29/09/2019,091HOUSING,Housing and Community Services,20200,Housing Needs - HB (Housing Benefit),D2514,Accommodation Costs,262.50,Specialist Care UK Group Ltd,Accommodation Costs,2012531,201907
Rother District Council,29/09/2019,091HOUSING,Housing and Community Services,20200,Housing Needs - HB (Housing Benefit),D2514,Accommodation Costs,262.50,Specialist Care UK Group Ltd,Accommodation Costs,2012532,201907
Rother District Council,29/09/2019,091HOUSING,Housing and Community Services,20200,Housing Needs - HB (Housing Benefit),D2514,Accommodation Costs,262.50,Specialist Care UK Group Ltd,Accommodation Costs,2012533,201907
Rother District Council,29/09/2019,091HOUSING,Housing and Community Services,20200,Housing Needs - HB (Housing Benefit),D2514,Accommodation Costs,375.00,Specialist Care UK Group Ltd,Accommodation Costs,2012534,201907
Rother District Council,29/09/2019,091HOUSING,Housing and Community Services,20200,Housing Needs - HB (Housing Benefit),D2514,Accommodation Costs,350.00,Specialist Care UK Group Ltd,Accommodation Costs,2012535,201907
Rother District Council,29/09/2019,091HOUSING,Housing and Community Services,20200,Housing Needs - HB (Housing Benefit),D2514,Accommodation Costs,300.00,Specialist Care UK Group Ltd,Accommodation Costs,2012511,201907
Rother District Council,29/09/2019,091HOUSING,Housing and Community Services,20200,Housing Needs - HB (Housing Benefit),D2514,Accommodation Costs,262.50,Specialist Care UK Group Ltd,Accommodation Costs,2012512,201907
Rother District Council,29/09/2019,091HOUSING,Housing and Community Services,20200,Housing Needs - HB (Housing Benefit),D2514,Accommodation Costs,350.00,Specialist Care UK Group Ltd,Accommodation Costs,2012513,201907
Rother District Council,29/09/2019,091HOUSING,Housing and Community Services,20200,Housing Needs - HB (Housing Benefit),D2514,Accommodation Costs,262.50,Specialist Care UK Group Ltd,Accommodation Costs,2012528,201907
Rother District Council,29/09/2019,091HOUSING,Housing and Community Services,20200,Housing Needs - HB (Housing Benefit),D2514,Accommodation Costs,262.50,Specialist Care UK Group Ltd,Accommodation Costs,2012537,201907
Rother District Council,29/09/2019,091HOUSING,Housing and Community Services,20200,Housing Needs - HB (Housing Benefit),D2514,Accommodation Costs,50.00,Specialist Care UK Group Ltd,Accommodation Costs,2012529,201907
Rother District Council,29/09/2019,091HOUSING,Housing and Community Services,20200,Housing Needs - HB (Housing Benefit),D2514,Accommodation Costs,100.00,Specialist Care UK Group Ltd,Accommodation Costs,2012530,201907
Rother District Council,30/09/2019,091HOUSING,Housing and Community Services,20206,Syrians,D2513,Hired and Contracted services,204.50,247 Transport Solutions Ltd,Hired and contracted services - Syrian Resettlement Programme-Travel,2012609,201907
Rother District Council,30/09/2019,031RESOURCES,Executive Directors & Corporate Core,20173,Administrative Offices - Town Hall,B2611,Contract cleaning,380.00,Abacus Main Ltd,Contract cleaning,2012553,201907
Rother District Council,30/09/2019,091HOUSING,Housing and Community Services,20108,Bexhill Promenade & Foreshore,B2611,Contract cleaning,126.00,Abacus Main Ltd,Contract cleaning - Office Cleaning,2012554,201907
Rother District Council,30/09/2019,031RESOURCES,Executive Directors & Corporate Core,20175,Administrative Offices - T.H. Annex (NOT CHP),B1100,Repairs to Premises,223.11,Alfa Electric Ltd,Repairs to Premises - Repairs - Electrical Works,2012837,201907
Rother District Council,30/09/2019,091HOUSING,Housing and Community Services,20108,Bexhill Promenade & Foreshore,B1100,Repairs to Premises,571.54,Alfa Electric Ltd,Repairs to Premises - Repairs - Electrical Works,2012838,201907
Rother District Council,30/09/2019,091HOUSING,Housing and Community Services,20112,Bexhill Leisure Centre,B1100,Repairs to Premises,"2,999.49",Alfa Electric Ltd,Third party payment private contractors - Payments to Contractor,2013125,201908
Rother District Council,30/09/2019,101RESOURCES,Resources,20216,Cost Of Collection,D2513,Hired and Contracted services,"1,369.88",allpay.net Ltd,Hired and contracted services - Allpay Card/Rep/Let Chrg - Vatable,2013375,201908
Rother District Council,30/09/2019,101RESOURCES,Resources,20216,Cost Of Collection,D2513,Hired and Contracted services,45.51,allpay.net Ltd,Hired and contracted services - Allpay Card/Rep/Let Chrg - Vatable,2013376,201908
Rother District Council,30/09/2019,101RESOURCES,Resources,20216,Cost Of Collection,D2513,Hired and Contracted services,17.44,allpay.net Ltd,Hired and contracted services - Allpay Card/Rep/Let Chrg - Vatable,2013377,201908
Rother District Council,30/09/2019,101RESOURCES,Resources,20216,Cost Of Collection,D2513,Hired and Contracted services,31.34,allpay.net Ltd,Hired and contracted services - Allpay Card/Rep/Let Chrg - Vatable,2013378,201908
Rother District Council,30/09/2019,091HOUSING,Housing and Community Services,20107,Camber Beach & Foreshore,C1104,Derv,1.90,Allstar Business Solutions,Derv - Fuel Service fee payable on fuel cards,2013385,201908
Rother District Council,30/09/2019,041ENVIRON,Environmental Services,32136,EH Pest Control R + W Partnership,C1104,Derv,1.90,Allstar Business Solutions,Derv - Fuel Service fee payable on fuel cards,2013385,201908
Rother District Council,30/09/2019,041ENVIRON,Environmental Services,32136,EH Pest Control R + W Partnership,C1104,Derv,50.83,Allstar Business Solutions,Derv - Fuel Service fee payable on fuel cards,2013385,201908
Rother District Council,30/09/2019,091HOUSING,Housing and Community Services,20107,Camber Beach & Foreshore,C1104,Derv,28.49,Allstar Business Solutions,Derv - Fuel Service fee payable on fuel cards,2013385,201908
Rother District Council,30/09/2019,081ACQUISIT,"Acquisitions, Transformation and Regeneration",20155,Investment properties,B1100,Repairs to Premises,245.00,Assured EPC,Repairs to Premises - Energy Performance Certificate,2013043,201907
Rother District Council,30/09/2019,091HOUSING,Housing and Community Services,20128,Public Conveniences,D1201,Equipment & Materials,264.50,Besure Security Systems,Equipment & Materials - CCTV,2012654,201907
Rother District Council,30/09/2019,091HOUSING,Housing and Community Services,20102,Rother Museum Services,D2923,Grants made,"2,125.00",Bexhill Museum Ltd,Grants made - Rother Museum Services  - Annual Support Grant,2014105,201909
Rother District Council,30/09/2019,091HOUSING,Housing and Community Services,20133,Refuse Collection,E2302,Third party payment private contractors,349.91,Biffa Waste Services Ltd,Third party payment private contractors - Commercial Waste Collection Contract,2012592,201907
Rother District Council,30/09/2019,091HOUSING,Housing and Community Services,20108,Bexhill Promenade & Foreshore,B1100,Repairs to Premises,65.73,C Brewer and Sons Ltd,Repairs to Premises - Purchase of Materials - Build Maint,2012684,201907
Rother District Council,30/09/2019,091HOUSING,Housing and Community Services,20137,Car Parks,B1100,Repairs to Premises,26.42,C Brewer and Sons Ltd,Repairs to Premises - Purchase of Materials - Build Maint,2012685,201907
Rother District Council,30/09/2019,091HOUSING,Housing and Community Services,20108,Bexhill Promenade & Foreshore,B1100,Repairs to Premises,19.35,C Brewer and Sons Ltd,Repairs to Premises - Purchase of Materials - Build Maint,2012686,201907
Rother District Council,30/09/2019,091HOUSING,Housing and Community Services,20108,Bexhill Promenade & Foreshore,B1100,Repairs to Premises,28.87,C Brewer and Sons Ltd,Repairs to Premises - Purchase of Materials - Build Maint,2012687,201907
Rother District Council,30/09/2019,081ACQUISIT,"Acquisitions, Transformation and Regeneration",20148,Misc Land & Buildings,B2422,Sewerage,141.00,Cleansing Service Group Ltd,Sewerage Parks- Emptying of Cesspit,2012545,201907
Rother District Council,30/09/2019,081ACQUISIT,"Acquisitions, Transformation and Regeneration",20266,Property Investment Strategy,D2513,Hired and Contracted services,"1,127.50",Clearway Environmental Services (UK) Ltd,Hired and contracted services - Service fee paid,2012604,201908
Rother District Council,30/09/2019,081ACQUISIT,"Acquisitions, Transformation and Regeneration",20146,West Trading Estate,D2513,Hired and Contracted services,120.00,Clearway Environmental Services (UK) Ltd,Hired and contracted services - Service fee paid,2012605,201908
Rother District Council,30/09/2019,091HOUSING,Housing and Community Services,20137,Car Parks,D2513,Hired and Contracted services,"1,866.67",Cobalt Telephone Technologies Ltd,Hired and contracted services - Car Parks-RingGo service charges,2012608,201907
Rother District Council,30/09/2019,031RESOURCES,Executive Directors & Corporate Core,20171,Human Resources,D2513,Hired and Contracted services,80.67,Computershare Voucher Services,Hired and contracted services - Child Care Voucher Service Charge,2012642,201907
Rother District Council,30/09/2019,031RESOURCES,Executive Directors & Corporate Core,20173,Administrative Offices - Town Hall,D2513,Hired and Contracted services,72.70,Data Shredding Services Ltd,Hired and contracted services - Charges-Confidential Office Waste,2012674,201907
Rother District Council,30/09/2019,041ENVIRON,Environmental Services,32142,EH Taxi and Private Hire Licenses R + W Partnership,D2513,Hired and Contracted services,396.00,DBS The Disclosure and Barring Service,Hired and contracted services - Service fee paid,2012695,201907
Rother District Council,30/09/2019,031RESOURCES,Executive Directors & Corporate Core,20171,Human Resources,D2513,Hired and Contracted services,105.00,DMH Stallard,Hired and contracted services - Legal Advice,2012574,201907
Rother District Council,30/09/2019,101RESOURCES,Resources,20216,Cost Of Collection,D2513,Hired and Contracted services,418.74,DSI Billing Services Ltd,Hired and contracted services - DSI Billing Printing,2012850,201907
Rother District Council,30/09/2019,091HOUSING,Housing and Community Services,20145,Maintenance Services,D1201,Equipment & Materials,14.32,E O Culverwell Ltd,Equipment & Materials - Purchase of Tools,2012688,201907
Rother District Council,30/09/2019,031RESOURCES,Executive Directors & Corporate Core,20162,Electoral Registration,D2415,Printing by external suppliers,"2,412.46",Electoral Reform Services Ltd t/a Civica Election Services,Printing by external suppliers - Printing (Not from RDC Print Room),2012636,201907
Rother District Council,30/09/2019,101RESOURCES,Resources,20222,Accountancy,D2513,Hired and Contracted services,"6,098.52",Embridge Consulting (UK) Ltd,Hired and Contracted services,2012682,201907
Rother District Council,30/09/2019,101RESOURCES,Resources,20222,Accountancy,D2513,Hired and Contracted services,"3,725.00",Embridge Consulting (UK) Ltd,Hired and contracted services - Consultancy Service per Contract,2012625,201907
Rother District Council,30/09/2019,091HOUSING,Housing and Community Services,20137,Car Parks,I3439,Parking Chgs Off Street,"-19,634.84",Freedom Leisure,Parking Chgs - Off Street Car Park Income Refund,2012670,201907
Rother District Council,30/09/2019,091HOUSING,Housing and Community Services,20137,Car Parks,I3439,Parking Chgs Off Street,"19,634.84",Freedom Leisure,Parking Chgs - Off Street Car Park Income Refund,2012672,201907
Rother District Council,30/09/2019,091HOUSING,Housing and Community Services,20137,Car Parks,I3439,Parking Chgs Off Street,"19,634.84",Freedom Leisure,Parking Chgs - Off Street Car Park Income Refund,2012671,201907
Rother District Council,30/09/2019,091HOUSING,Housing and Community Services,20205,Housing Loans Account,D2514,Accommodation Costs,700.00,Gibbs Property Holdings Ltd,Accommodation Costs - Homelessness services Deposit for Landlords,2012563,201907
Rother District Council,30/09/2019,091HOUSING,Housing and Community Services,20205,Housing Loans Account,D2514,Accommodation Costs,700.00,Gibbs Property Holdings Ltd,Accommodation Costs - Homelessness services Rent in Advance for Homeless,2012563,201907
Rother District Council,30/09/2019,071STRAT,Strategy and Planning,20246,Planning Applications,D2509,Consultants and Other Services,"1,748.26",Hays Specialist Recruitment Ltd,Consultants and other services - Consultants Fees,2012656,201907
Rother District Council,30/09/2019,071STRAT,Strategy and Planning,20246,Planning Applications,D2509,Consultants and Other Services,850.50,Hays Specialist Recruitment Ltd,Consultants and other services - Consultants Fees,2012655,201907
Rother District Council,30/09/2019,031RESOURCES,Executive Directors & Corporate Core,20158,Committee Service General Exp,A2203,Training,168.00,Hoey Ainscough Associates Ltd,Training,2012651,201907
Rother District Council,30/09/2019,091HOUSING,Housing and Community Services,20137,Car Parks,D2513,Hired and Contracted services,"2,135.52",Jade Security Services Ltd,Hired and contracted services - Cash Security Fees-Car Parks,2012880,201907
Rother District Council,30/09/2019,101RESOURCES,Resources,20209,Corporate management,D2513,Hired and Contracted services,227.50,Jade Security Services Ltd,Hired and contracted services - Service fee paid,2012880,201907
Rother District Council,30/09/2019,041ENVIRON,Environmental Services,32136,EH Pest Control R + W Partnership,D1202,Baits Poisons Etc,91.60,Killgerm Chemicals Ltd,Baits Poisons Etc - EnvH Pest Control Supplies,2012588,201907
Rother District Council,30/09/2019,041ENVIRON,Environmental Services,32136,EH Pest Control R + W Partnership,D1202,Baits Poisons Etc,8.00,Killgerm Chemicals Ltd,Equipment & Materials - Carriage/Handling Charge,2012588,201907
Rother District Council,30/09/2019,091HOUSING,Housing and Community Services,20204,Housing Administration Account,D2636,Computer Software,"2,625.00",LHS Locata (Housing Services) Ltd,Computer Software,2013193,201908
Rother District Council,30/09/2019,101RESOURCES,Resources,20241,Stationery,D2420,General office supplies (Stationery purchased from ext suppliers),70.60,Lyreco UK Limited,General office supplies - Stationery (Stationery Services to buy ONLY),2012681,201907
Rother District Council,30/09/2019,101RESOURCES,Resources,20241,Stationery,D2420,General office supplies (Stationery purchased from ext suppliers),19.95,Lyreco UK Limited,General office supplies - Stationery (Stationery Services to buy ONLY),2012678,201907
Rother District Council,30/09/2019,101RESOURCES,Resources,20241,Stationery,D2420,General office supplies (Stationery purchased from ext suppliers),17.50,Lyreco UK Limited,General office supplies - Stationery (Stationery Services to buy ONLY),2012680,201907
Rother District Council,30/09/2019,101RESOURCES,Resources,20241,Stationery,D2420,General office supplies (Stationery purchased from ext suppliers),70.40,Lyreco UK Limited,General office supplies - Stationery (Stationery Services to buy ONLY),2012679,201907
Rother District Council,30/09/2019,999NOREPORT,Environmental Services,70706,Capital - Disable Facilities Grant,N1012,Capital Advances,"6,687.31",Mark Bishop Ltd,Capital Advances Disabled Facilities Grant,2012582,201907
Rother District Council,30/09/2019,091HOUSING,Housing and Community Services,20200,Housing Needs - HB (Housing Benefit),D2514,Accommodation Costs,630.00,High Weald Property Investments,Accommodation Costs,2012601,201907
Rother District Council,30/09/2019,999NOREPORT,Environmental Services,70706,Capital - Disable Facilities Grant,N1012,Capital Advances,"5,617.68",Mr Mark Neale General Building and Plumbing Ltd,Capital Advances Disabled Facilities Grant,2012580,201907
Rother District Council,30/09/2019,081ACQUISIT,"Acquisitions, Transformation and Regeneration",20118,Tourism,D2517,Marketing,17.84,MSL Digital Ltd,Marketing - Regular Marketing activities-Tourism,2012648,201907
Rother District Council,30/09/2019,091HOUSING,Housing and Community Services,20200,Housing Needs - HB (Housing Benefit),D2513,Hired and Contracted services,155.00,NowMedical,Hired and Contracted services,2013237,201908
Rother District Council,30/09/2019,091HOUSING,Housing and Community Services,20200,Housing Needs - HB (Housing Benefit),D2513,Hired and Contracted services,12.00,NowMedical,Hired and Contracted services,2012824,201907
Rother District Council,30/09/2019,999NOREPORT,Environmental Services,70706,Capital - Disable Facilities Grant,N1012,Capital Advances,880.15,Peabody South East Ltd,Capital Advances Disabled Facilities Grant,2012586,201907
Rother District Council,30/09/2019,999NOREPORT,Environmental Services,70706,Capital - Disable Facilities Grant,N1012,Capital Advances,292.50,Peabody South East Ltd,Capital Advances Disabled Facilities Grant,2012747,201907
Rother District Council,30/09/2019,101RESOURCES,Resources,20240,Printing Services,D1201,Equipment & Materials,64.00,Plex Display Limited,Equipment & Materials - Platemaking Materials,2012548,201907
Rother District Council,30/09/2019,101RESOURCES,Resources,20240,Printing Services,D1201,Equipment & Materials,9.60,Plex Display Limited,Equipment & Materials - Carriage/Handling Charge,2012548,201907
Rother District Council,30/09/2019,041ENVIRON,Environmental Services,32140,EN Wealden Training (WEALDEN ONLY) R + W Partnership,D2513,Hired and Contracted services,70.00,Polegate Town Council,Hired and contracted services - EnvH- Food Safety Contractor,2012896,201907
Rother District Council,30/09/2019,101RESOURCES,Resources,20240,Printing Services,D2417,Photocopy Paper by external suppliers,295.00,Premier Paper Group Ltd,Photocopy Paper by external suppliers - Colour Paper,2012567,201907
Rother District Council,30/09/2019,101RESOURCES,Resources,20240,Printing Services,D2417,Photocopy Paper by external suppliers,55.97,Premier Paper Group Ltd,Photocopy Paper by external suppliers - White,2012568,201907
Rother District Council,30/09/2019,999NOREPORT,Environmental Services,70706,Capital - Disable Facilities Grant,N1012,Capital Advances,"1,950.00",Prestige Stairlifts Ltd,Capital Advances Disabled Facilities Grant,2012748,201907
Rother District Council,30/09/2019,999NOREPORT,Environmental Services,70706,Capital - Disable Facilities Grant,N1012,Capital Advances,"1,550.00",Prestige Stairlifts Ltd,Capital Advances Disabled Facilities Grant,2012587,201907
Rother District Council,30/09/2019,071STRAT,Strategy and Planning,20246,Planning Applications,D2509,Consultants and Other Services,750.00,Rural Planning Ltd,Consultants and other services - Consultants Fees,2012549,201907
Rother District Council,30/09/2019,091HOUSING,Housing and Community Services,20132,Street & Beach Cleansing,D1201,Equipment & Materials,14.30,Rye Hire Ltd,Equipment & Materials - Supply of Litter Bins,2012702,201907
Rother District Council,30/09/2019,091HOUSING,Housing and Community Services,20108,Bexhill Promenade & Foreshore,B1100,Repairs to Premises,148.38,Saint-Gobain Building Distribution Ltd t/a Jewson,Repairs to Premises - Purchase of Materials - Build Maint,2012856,201907
Rother District Council,30/09/2019,091HOUSING,Housing and Community Services,20200,Housing Needs - HB (Housing Benefit),D2514,Accommodation Costs,285.60,Savoy Court Ltd,Accommodation Costs,2012544,201907
Rother District Council,30/09/2019,091HOUSING,Housing and Community Services,20200,Housing Needs - HB (Housing Benefit),D2514,Accommodation Costs,71.40,Savoy Court Ltd,Accommodation Costs,2012544,201907
Rother District Council,30/09/2019,091HOUSING,Housing and Community Services,20200,Housing Needs - HB (Housing Benefit),D2514,Accommodation Costs,308.00,Savoy Court Ltd,Accommodation Costs,2012541,201907
Rother District Council,30/09/2019,091HOUSING,Housing and Community Services,20200,Housing Needs - HB (Housing Benefit),D2514,Accommodation Costs,77.00,Savoy Court Ltd,Accommodation Costs,2012541,201907
Rother District Council,30/09/2019,091HOUSING,Housing and Community Services,20200,Housing Needs - HB (Housing Benefit),D2514,Accommodation Costs,420.00,Solutions Accommodation Providers Ltd,Accommodation Costs,2012617,201907
Rother District Council,30/09/2019,091HOUSING,Housing and Community Services,20200,Housing Needs - HB (Housing Benefit),D2514,Accommodation Costs,"1,680.00",Solutions Accommodation Providers Ltd,Accommodation Costs,2012617,201907
Rother District Council,30/09/2019,091HOUSING,Housing and Community Services,20200,Housing Needs - HB (Housing Benefit),D2514,Accommodation Costs,780.00,Solutions Accommodation Providers Ltd,Accommodation Costs,2012620,201907
Rother District Council,30/09/2019,091HOUSING,Housing and Community Services,20200,Housing Needs - HB (Housing Benefit),D2514,Accommodation Costs,41.60,Solutions Accommodation Providers Ltd,Accommodation Costs,2012621,201907
Rother District Council,30/09/2019,091HOUSING,Housing and Community Services,20200,Housing Needs - HB (Housing Benefit),D2514,Accommodation Costs,166.40,Solutions Accommodation Providers Ltd,Accommodation Costs,2012621,201907
Rother District Council,30/09/2019,091HOUSING,Housing and Community Services,20200,Housing Needs - HB (Housing Benefit),D2514,Accommodation Costs,312.00,Solutions Accommodation Providers Ltd,Accommodation Costs,2012619,201907
Rother District Council,30/09/2019,091HOUSING,Housing and Community Services,20200,Housing Needs - HB (Housing Benefit),D2514,Accommodation Costs,"1,248.00",Solutions Accommodation Providers Ltd,Accommodation Costs,2012619,201907
Rother District Council,30/09/2019,091HOUSING,Housing and Community Services,20200,Housing Needs - HB (Housing Benefit),D2514,Accommodation Costs,322.00,Solutions Accommodation Providers Ltd,Accommodation Costs,2012618,201907
Rother District Council,30/09/2019,091HOUSING,Housing and Community Services,20200,Housing Needs - HB (Housing Benefit),D2514,Accommodation Costs,"1,288.00",Solutions Accommodation Providers Ltd,Accommodation Costs,2012618,201907
Rother District Council,30/09/2019,091HOUSING,Housing and Community Services,20200,Housing Needs - HB (Housing Benefit),D2514,Accommodation Costs,"1,725.00",Solutions Accommodation Providers Ltd,Accommodation Costs,2012614,201907
Rother District Council,30/09/2019,091HOUSING,Housing and Community Services,20200,Housing Needs - HB (Housing Benefit),D2514,Accommodation Costs,105.00,Solutions Accommodation Providers Ltd,Accommodation Costs,2012615,201907
Rother District Council,30/09/2019,091HOUSING,Housing and Community Services,20200,Housing Needs - HB (Housing Benefit),D2514,Accommodation Costs,420.00,Solutions Accommodation Providers Ltd,Accommodation Costs,2012615,201907
Rother District Council,30/09/2019,091HOUSING,Housing and Community Services,20200,Housing Needs - HB (Housing Benefit),D2514,Accommodation Costs,50.00,Solutions Accommodation Providers Ltd,Accommodation Costs,2012616,201907
Rother District Council,30/09/2019,091HOUSING,Housing and Community Services,20200,Housing Needs - HB (Housing Benefit),D2514,Accommodation Costs,300.00,Solutions Accommodation Providers Ltd,Accommodation Costs,2012613,201907
Rother District Council,30/09/2019,091HOUSING,Housing and Community Services,20200,Housing Needs - HB (Housing Benefit),D2514,Accommodation Costs,"1,200.00",Solutions Accommodation Providers Ltd,Accommodation Costs,2012613,201907
Rother District Council,30/09/2019,091HOUSING,Housing and Community Services,20200,Housing Needs - HB (Housing Benefit),D2514,Accommodation Costs,371.00,South Down Residential Ltd,Accommodation Costs,2012547,201907
Rother District Council,30/09/2019,091HOUSING,Housing and Community Services,20200,Housing Needs - HB (Housing Benefit),D2514,Accommodation Costs,144.00,South Down Residential Ltd,Accommodation Costs,2012547,201907
Rother District Council,30/09/2019,091HOUSING,Housing and Community Services,20329,Rough Sleeping Initiative,D2514,Accommodation Costs,178.50,South Down Residential Ltd,Accommodation Costs,2012547,201907
Rother District Council,30/09/2019,091HOUSING,Housing and Community Services,20200,Housing Needs - HB (Housing Benefit),D2514,Accommodation Costs,364.00,South Down Residential Ltd,Accommodation Costs,2012547,201907
Rother District Council,30/09/2019,091HOUSING,Housing and Community Services,20200,Housing Needs - HB (Housing Benefit),D2514,Accommodation Costs,91.00,South Down Residential Ltd,Accommodation Costs,2012547,201907
Rother District Council,30/09/2019,091HOUSING,Housing and Community Services,20200,Housing Needs - HB (Housing Benefit),D2514,Accommodation Costs,371.00,South Down Residential Ltd,Accommodation Costs,2012547,201907
Rother District Council,30/09/2019,091HOUSING,Housing and Community Services,20200,Housing Needs - HB (Housing Benefit),D2514,Accommodation Costs,336.00,South Down Residential Ltd,Accommodation Costs,2012547,201907
Rother District Council,30/09/2019,091HOUSING,Housing and Community Services,20200,Housing Needs - HB (Housing Benefit),D2514,Accommodation Costs,371.00,South Down Residential Ltd,Accommodation Costs,2012547,201907
Rother District Council,30/09/2019,091HOUSING,Housing and Community Services,20200,Housing Needs - HB (Housing Benefit),D2514,Accommodation Costs,319.97,South Down Residential Ltd,Accommodation Costs,2012547,201907
Rother District Council,30/09/2019,091HOUSING,Housing and Community Services,20200,Housing Needs - HB (Housing Benefit),D2514,Accommodation Costs,80.01,South Down Residential Ltd,Accommodation Costs,2012547,201907
Rother District Council,30/09/2019,091HOUSING,Housing and Community Services,20200,Housing Needs - HB (Housing Benefit),D2514,Accommodation Costs,268.80,South Down Residential Ltd,Accommodation Costs,2012547,201907
Rother District Council,30/09/2019,091HOUSING,Housing and Community Services,20200,Housing Needs - HB (Housing Benefit),D2514,Accommodation Costs,67.20,South Down Residential Ltd,Accommodation Costs,2012547,201907
Rother District Council,30/09/2019,091HOUSING,Housing and Community Services,20200,Housing Needs - HB (Housing Benefit),D2514,Accommodation Costs,178.50,South Down Residential Ltd,Accommodation Costs,2012547,201907
Rother District Council,30/09/2019,091HOUSING,Housing and Community Services,20200,Housing Needs - HB (Housing Benefit),D2514,Accommodation Costs,347.20,South Down Residential Ltd,Accommodation Costs,2012547,201907
Rother District Council,30/09/2019,091HOUSING,Housing and Community Services,20200,Housing Needs - HB (Housing Benefit),D2514,Accommodation Costs,86.80,South Down Residential Ltd,Accommodation Costs,2012547,201907
Rother District Council,30/09/2019,091HOUSING,Housing and Community Services,20200,Housing Needs - HB (Housing Benefit),D2514,Accommodation Costs,142.80,South Down Residential Ltd,Accommodation Costs,2012547,201907
Rother District Council,30/09/2019,091HOUSING,Housing and Community Services,20200,Housing Needs - HB (Housing Benefit),D2514,Accommodation Costs,35.70,South Down Residential Ltd,Accommodation Costs,2012547,201907
Rother District Council,30/09/2019,091HOUSING,Housing and Community Services,20200,Housing Needs - HB (Housing Benefit),D2514,Accommodation Costs,268.80,South Down Residential Ltd,Accommodation Costs,2012547,201907
Rother District Council,30/09/2019,091HOUSING,Housing and Community Services,20200,Housing Needs - HB (Housing Benefit),D2514,Accommodation Costs,67.20,South Down Residential Ltd,Accommodation Costs,2012547,201907
Rother District Council,30/09/2019,091HOUSING,Housing and Community Services,20200,Housing Needs - HB (Housing Benefit),D2514,Accommodation Costs,268.80,South Down Residential Ltd,Accommodation Costs,2012547,201907
Rother District Council,30/09/2019,091HOUSING,Housing and Community Services,20200,Housing Needs - HB (Housing Benefit),D2514,Accommodation Costs,67.20,South Down Residential Ltd,Accommodation Costs,2012547,201907
Rother District Council,30/09/2019,091HOUSING,Housing and Community Services,20200,Housing Needs - HB (Housing Benefit),D2514,Accommodation Costs,178.50,South Down Residential Ltd,Accommodation Costs,2012547,201907
Rother District Council,30/09/2019,091HOUSING,Housing and Community Services,20200,Housing Needs - HB (Housing Benefit),D2514,Accommodation Costs,371.00,South Down Residential Ltd,Accommodation Costs,2012547,201907
Rother District Council,30/09/2019,091HOUSING,Housing and Community Services,20200,Housing Needs - HB (Housing Benefit),D2514,Accommodation Costs,371.00,South Down Residential Ltd,Accommodation Costs,2012547,201907
Rother District Council,30/09/2019,091HOUSING,Housing and Community Services,20200,Housing Needs - HB (Housing Benefit),D2514,Accommodation Costs,142.80,South Down Residential Ltd,Accommodation Costs,2012547,201907
Rother District Council,30/09/2019,091HOUSING,Housing and Community Services,20200,Housing Needs - HB (Housing Benefit),D2514,Accommodation Costs,35.70,South Down Residential Ltd,Accommodation Costs,2012547,201907
Rother District Council,30/09/2019,091HOUSING,Housing and Community Services,20200,Housing Needs - HB (Housing Benefit),D2514,Accommodation Costs,330.40,South Down Residential Ltd,Accommodation Costs,2012547,201907
Rother District Council,30/09/2019,091HOUSING,Housing and Community Services,20200,Housing Needs - HB (Housing Benefit),D2514,Accommodation Costs,82.60,South Down Residential Ltd,Accommodation Costs,2012547,201907
Rother District Council,30/09/2019,091HOUSING,Housing and Community Services,20200,Housing Needs - HB (Housing Benefit),D2514,Accommodation Costs,330.40,South Down Residential Ltd,Accommodation Costs,2012547,201907
Rother District Council,30/09/2019,091HOUSING,Housing and Community Services,20200,Housing Needs - HB (Housing Benefit),D2514,Accommodation Costs,82.60,South Down Residential Ltd,Accommodation Costs,2012547,201907
Rother District Council,30/09/2019,091HOUSING,Housing and Community Services,20200,Housing Needs - HB (Housing Benefit),D2514,Accommodation Costs,371.00,South Down Residential Ltd,Accommodation Costs,2012547,201907
Rother District Council,30/09/2019,091HOUSING,Housing and Community Services,20200,Housing Needs - HB (Housing Benefit),D2514,Accommodation Costs,413.00,South Down Residential Ltd,Accommodation Costs,2012547,201907
Rother District Council,30/09/2019,091HOUSING,Housing and Community Services,20200,Housing Needs - HB (Housing Benefit),D2514,Accommodation Costs,240.03,South Down Residential Ltd,Accommodation Costs,2012547,201907
Rother District Council,30/09/2019,091HOUSING,Housing and Community Services,20200,Housing Needs - HB (Housing Benefit),D2514,Accommodation Costs,59.99,South Down Residential Ltd,Accommodation Costs,2012547,201907
Rother District Council,30/09/2019,999NOREPORT,Housing and Community Services,70704,Capital - Bexhill Leisure Centre,N1004,Architects & Consultant Fees,"3,800.00",Strategic Leisure Ltd,Architects & Consultant Fees Capital-Architect and Conslt Fees,2012697,201907
Rother District Council,30/09/2019,071STRAT,Strategy and Planning,20253,Conservation & Preservation,D2513,Hired and Contracted services,"3,000.00",Sussex Wildlife Trust,Hired and contracted services - Plan-Ecological Advice,2012550,201907
Rother District Council,30/09/2019,091HOUSING,Housing and Community Services,20108,Bexhill Promenade & Foreshore,D1201,Equipment & Materials,54.96,Trade UK Account (Screwfix),Equipment & Materials - Purchase of Tools,2012590,201907
Rother District Council,30/09/2019,091HOUSING,Housing and Community Services,20145,Maintenance Services,D1201,Equipment & Materials,679.11,Trade UK Account (Screwfix),Equipment & Materials - Purchase of Tools,2012589,201907
Rother District Council,30/09/2019,101RESOURCES,Resources,20217,Reliefs & Benefits-Council Tax Benefit,D2509,Consultants and Other Services,108.15,Wilson�s Express Hastings Ltd,Consultants and other services - Consultants Fees,2012814,201907
Rother District Council,01/10/2019,091HOUSING,Housing and Community Services,20102,Rother Museum Services,B1100,Repairs to Premises,"1,858.72",Alfa Electric Ltd,Repairs to Premises - Repairs - Electrical Works,2012603,201907
Rother District Council,01/10/2019,091HOUSING,Housing and Community Services,20137,Car Parks,B1100,Repairs to Premises,179.32,Alfa Electric Ltd,Repairs to Premises - Car Park Maintenance,2012784,201907
Rother District Council,01/10/2019,091HOUSING,Housing and Community Services,20137,Car Parks,B1100,Repairs to Premises,239.41,Alfa Electric Ltd,Repairs to Premises - Car Park Maintenance,2012785,201907
Rother District Council,01/10/2019,999NOREPORT,Housing and Community Services,70718,Capital - Sidley Recreation Ground,N1004,Architects & Consultant Fees,750.00,Baker Architectural Ltd,Architects & Consultant Fees Capital-Architect and Conslt Fees,2012576,201907
Rother District Council,01/10/2019,031RESOURCES,Executive Directors & Corporate Core,32132,Joint Waste Contract Client Unit,E2302,Third party payment private contractors,"987,476.33",Biffa Municipal Limited,Third party payment private contractors - CORE Joint Waste Cost,2012556,201907
Rother District Council,01/10/2019,101RESOURCES,Resources,20240,Printing Services,D2418,Photocopying Charges,358.15,Canon (UK) Ltd,General office supplies - Stationary,2012652,201907
Rother District Council,01/10/2019,031RESOURCES,Executive Directors & Corporate Core,20173,Administrative Offices - Town Hall,B1100,Repairs to Premises,68.35,Clearwater Technology Ltd,Hired and contracted services - Legionella Sampling and Monitoring,2012632,201907
Rother District Council,01/10/2019,031RESOURCES,Executive Directors & Corporate Core,20180,Emergency Planning,D2621,Telephones,14.74,Daisy Communications PLC,Telephones - Telephone Call Costs+Line Rental,2012739,201907
Rother District Council,01/10/2019,041ENVIRON,Environmental Services,32134,EH Pollution R + W Partnership,D2621,Telephones,14.74,Daisy Communications PLC,Telephones - Telephone Call Costs+Line Rental,2012739,201907
Rother District Council,01/10/2019,091HOUSING,Housing and Community Services,20102,Rother Museum Services,D2621,Telephones,14.74,Daisy Communications PLC,Telephones - Telephone Call Costs+Line Rental,2012739,201907
Rother District Council,01/10/2019,091HOUSING,Housing and Community Services,20107,Camber Beach & Foreshore,D2621,Telephones,34.31,Daisy Communications PLC,Telephones - Telephone Call Costs+Line Rental,2012739,201907
Rother District Council,01/10/2019,101RESOURCES,Resources,20242,Communications-Phones,D2621,Telephones,88.92,Daisy Communications PLC,Telephones - Telephone Call Costs+Line Rental,2012739,201907
Rother District Council,01/10/2019,101RESOURCES,Resources,20239,Computer Services,D2621,Telephones,29.48,Daisy Communications PLC,Telephones - Telephone Call Costs+Line Rental,2012739,201907
Rother District Council,01/10/2019,091HOUSING,Housing and Community Services,20108,Bexhill Promenade & Foreshore,B1100,Repairs to Premises,747.50,Four Seasons Plastics,Repairs to Premises - Purchase of Materials - Build Maint,2013750,201909
Rother District Council,01/10/2019,091HOUSING,Housing and Community Services,20200,Housing Needs - HB (Housing Benefit),D2514,Accommodation Costs,"1,425.00",Imperial Portfolios Ltd,Accommodation Costs,2012611,201907
Rother District Council,01/10/2019,091HOUSING,Housing and Community Services,20200,Housing Needs - HB (Housing Benefit),D2514,Accommodation Costs,"1,725.00",Imperial Portfolios Ltd,Accommodation Costs,2012611,201907
Rother District Council,01/10/2019,091HOUSING,Housing and Community Services,20200,Housing Needs - HB (Housing Benefit),D2514,Accommodation Costs,690.00,Imperial Portfolios Ltd,Accommodation Costs,2012611,201907
Rother District Council,01/10/2019,091HOUSING,Housing and Community Services,20200,Housing Needs - HB (Housing Benefit),D2514,Accommodation Costs,"2,025.00",Imperial Portfolios Ltd,Accommodation Costs,2012611,201907
Rother District Council,01/10/2019,091HOUSING,Housing and Community Services,20200,Housing Needs - HB (Housing Benefit),D2514,Accommodation Costs,"1,425.00",Imperial Portfolios Ltd,Accommodation Costs,2012611,201907
Rother District Council,01/10/2019,091HOUSING,Housing and Community Services,20200,Housing Needs - HB (Housing Benefit),D2514,Accommodation Costs,"1,725.00",Imperial Portfolios Ltd,Accommodation Costs,2012611,201907
Rother District Council,01/10/2019,091HOUSING,Housing and Community Services,20200,Housing Needs - HB (Housing Benefit),D2514,Accommodation Costs,"1,725.00",Imperial Portfolios Ltd,Accommodation Costs,2012611,201907
Rother District Council,01/10/2019,091HOUSING,Housing and Community Services,20200,Housing Needs - HB (Housing Benefit),D2514,Accommodation Costs,"1,725.00",Imperial Portfolios Ltd,Accommodation Costs,2012611,201907
Rother District Council,01/10/2019,091HOUSING,Housing and Community Services,20200,Housing Needs - HB (Housing Benefit),D2514,Accommodation Costs,517.50,Imperial Portfolios Ltd,Accommodation Costs,2012611,201907
Rother District Council,01/10/2019,091HOUSING,Housing and Community Services,20200,Housing Needs - HB (Housing Benefit),D2514,Accommodation Costs,"1,725.00",Imperial Portfolios Ltd,Accommodation Costs,2012611,201907
Rother District Council,01/10/2019,091HOUSING,Housing and Community Services,20200,Housing Needs - HB (Housing Benefit),D2514,Accommodation Costs,"1,425.00",Investco Properties Ltd,Accommodation Costs,2012622,201907
Rother District Council,01/10/2019,081ACQUISIT,"Acquisitions, Transformation and Regeneration",20153,"Elva Business Centre, Bexhill",B1100,Repairs to Premises,127.40,J M Waste Management Limited,Contract cleaning - Office Cleaning,2012663,201907
Rother District Council,01/10/2019,101RESOURCES,Resources,20242,Communications-Phones,D2621,Telephones,26.00,KCOM Group Plc,Telephones - KCOM Smartnumber Charges,2012690,201907
Rother District Council,01/10/2019,101RESOURCES,Resources,20242,Communications-Phones,D2621,Telephones,660.68,KCOM Group Plc,Telephones - KCOM Smartnumber Charges,2012689,201907
Rother District Council,01/10/2019,101RESOURCES,Resources,20242,Communications-Phones,D2621,Telephones,"9,916.14",KCOM Group Plc,Telephones - KCOM Smartnumber Charges,2012915,201907
Rother District Council,01/10/2019,091HOUSING,Housing and Community Services,20125,Coast Protection,E2302,Third party payment private contractors,400.00,Laurence Beetham,Third party payment private contractors - Fairlight Compressor Maintenance Contract,2012653,201907
Rother District Council,01/10/2019,091HOUSING,Housing and Community Services,20206,Syrians,D2513,Hired and Contracted services,190.00,LCD Electrical Services,Hired and contracted services - Syrian Misc,2012579,201907
Rother District Council,01/10/2019,101RESOURCES,Resources,20209,Corporate management,D2513,Hired and Contracted services,696.19,Lloyds Bank,Bank Charges,2012978,201907
Rother District Council,01/10/2019,101RESOURCES,Resources,20209,Corporate management,D2513,Hired and Contracted services,20.03,Lloyds Bank,Bank Charges,2012983,201907
Rother District Council,01/10/2019,101RESOURCES,Resources,20209,Corporate management,D2513,Hired and Contracted services,20.00,Lloyds Bank,Bank Charges,2012980,201907
Rother District Council,01/10/2019,101RESOURCES,Resources,20209,Corporate management,D2513,Hired and Contracted services,20.00,Lloyds Bank,Bank Charges,2012982,201907
Rother District Council,01/10/2019,101RESOURCES,Resources,20209,Corporate management,D2513,Hired and Contracted services,"1,183.14",Lloyds Bank,Bank Charges,2012987,201907
Rother District Council,01/10/2019,101RESOURCES,Resources,20209,Corporate management,D2513,Hired and Contracted services,20.01,Lloyds Bank,Bank Charges,2012979,201907
Rother District Council,01/10/2019,101RESOURCES,Resources,20209,Corporate management,D2513,Hired and Contracted services,20.00,Lloyds Bank,Bank Charges,2012981,201907
Rother District Council,01/10/2019,101RESOURCES,Resources,20209,Corporate management,D2513,Hired and Contracted services,580.03,Lloyds Bank,Bank Charges,2012985,201907
Rother District Council,01/10/2019,101RESOURCES,Resources,20209,Corporate management,D2513,Hired and Contracted services,20.51,Lloyds Bank,Bank Charges,2012984,201907
Rother District Council,01/10/2019,101RESOURCES,Resources,20209,Corporate management,D2513,Hired and Contracted services,20.00,Lloyds Bank,Bank Charges,2012986,201907
Rother District Council,01/10/2019,031RESOURCES,Executive Directors & Corporate Core,32131,Sussex Training Partnership,D2513,Hired and Contracted services,"2,015.00",MAS Environmental Ltd,Hired and contracted services - Training Sussex Train Consor-Training Course,2012558,201907
Rother District Council,01/10/2019,101RESOURCES,Resources,20209,Corporate management,D2513,Hired and Contracted services,20.09,Merchant Rentals Ltd,Hired and contracted services - Streamline Machine-Rental,2012646,201907
Rother District Council,01/10/2019,091HOUSING,Housing and Community Services,20200,Housing Needs - HB (Housing Benefit),D2514,Accommodation Costs,960.00,Paramount Independent Property Services LLP,Accommodation Costs,2012607,201907
Rother District Council,01/10/2019,091HOUSING,Housing and Community Services,20200,Housing Needs - HB (Housing Benefit),D2514,Accommodation Costs,"1,950.00",Paramount Independent Property Services LLP,Accommodation Costs,2012607,201907
Rother District Council,01/10/2019,091HOUSING,Housing and Community Services,20200,Housing Needs - HB (Housing Benefit),D2514,Accommodation Costs,"1,350.00",Paramount Independent Property Services LLP,Accommodation Costs,2012607,201907
Rother District Council,01/10/2019,091HOUSING,Housing and Community Services,20200,Housing Needs - HB (Housing Benefit),D2514,Accommodation Costs,"1,950.00",Paramount Independent Property Services LLP,Accommodation Costs,2012607,201907
Rother District Council,01/10/2019,091HOUSING,Housing and Community Services,20200,Housing Needs - HB (Housing Benefit),D2514,Accommodation Costs,"1,650.00",Paramount Independent Property Services LLP,Accommodation Costs,2012607,201907
Rother District Council,01/10/2019,999NOREPORT,Environmental Services,70706,Capital - Disable Facilities Grant,N1012,Capital Advances,842.65,Peabody South East Ltd,Capital Advances Disabled Facilities Grant,2012581,201907
Rother District Council,01/10/2019,999NOREPORT,Environmental Services,70706,Capital - Disable Facilities Grant,N1012,Capital Advances,"1,003.09",Peabody South East Ltd,Capital Advances Disabled Facilities Grant,2012585,201907
Rother District Council,01/10/2019,091HOUSING,Housing and Community Services,20108,Bexhill Promenade & Foreshore,D2623,Radios and licences,11.92,Radio Relay,Radios and licences,2012606,201907
Rother District Council,01/10/2019,091HOUSING,Housing and Community Services,20208,Care In The Community,D2513,Hired and Contracted services,220.00,Safe Partnership Ltd,Hired and contracted services - Sanctuary DV Assistance Revenue,2012815,201907
Rother District Council,01/10/2019,031RESOURCES,Executive Directors & Corporate Core,32131,Sussex Training Partnership,D2312,Refreshments,58.50,Sebastian�s Coffee Ltd,Refreshments - Sussex Training Cons - Refreshments,2012578,201907
Rother District Council,01/10/2019,091HOUSING,Housing and Community Services,20128,Public Conveniences,B2611,Contract cleaning,558.13,Specialist Hygiene Services Ltd,Contract cleaning - Public Conveniences Cleaning Servic,2012858,201907
Rother District Council,01/10/2019,091HOUSING,Housing and Community Services,20128,Public Conveniences,B2611,Contract cleaning,826.03,Specialist Hygiene Services Ltd,Contract cleaning - Public Conveniences Cleaning Servic,2012858,201907
Rother District Council,01/10/2019,091HOUSING,Housing and Community Services,20128,Public Conveniences,B2611,Contract cleaning,730.66,Specialist Hygiene Services Ltd,Contract cleaning - Public Conveniences Cleaning Servic,2012858,201907
Rother District Council,01/10/2019,091HOUSING,Housing and Community Services,20128,Public Conveniences,B2611,Contract cleaning,192.78,Specialist Hygiene Services Ltd,Contract cleaning - Public Conveniences Cleaning Servic,2012858,201907
Rother District Council,01/10/2019,091HOUSING,Housing and Community Services,20128,Public Conveniences,B2611,Contract cleaning,688.31,Specialist Hygiene Services Ltd,Contract cleaning - Public Conveniences Cleaning Servic,2012858,201907
Rother District Council,01/10/2019,091HOUSING,Housing and Community Services,20128,Public Conveniences,B2611,Contract cleaning,495.62,Specialist Hygiene Services Ltd,Contract cleaning - Public Conveniences Cleaning Servic,2012858,201907
Rother District Council,01/10/2019,091HOUSING,Housing and Community Services,20128,Public Conveniences,B2611,Contract cleaning,826.03,Specialist Hygiene Services Ltd,Contract cleaning - Public Conveniences Cleaning Servic,2012858,201907
Rother District Council,01/10/2019,091HOUSING,Housing and Community Services,20128,Public Conveniences,B2611,Contract cleaning,495.62,Specialist Hygiene Services Ltd,Contract cleaning - Public Conveniences Cleaning Servic,2012858,201907
Rother District Council,01/10/2019,091HOUSING,Housing and Community Services,20128,Public Conveniences,B2611,Contract cleaning,605.67,Specialist Hygiene Services Ltd,Contract cleaning - Public Conveniences Cleaning Servic,2012858,201907
Rother District Council,01/10/2019,091HOUSING,Housing and Community Services,20128,Public Conveniences,B2611,Contract cleaning,275.34,Specialist Hygiene Services Ltd,Contract cleaning - Public Conveniences Cleaning Servic,2012858,201907
Rother District Council,01/10/2019,091HOUSING,Housing and Community Services,20128,Public Conveniences,B2611,Contract cleaning,330.41,Specialist Hygiene Services Ltd,Contract cleaning - Public Conveniences Cleaning Servic,2012858,201907
Rother District Council,01/10/2019,091HOUSING,Housing and Community Services,20128,Public Conveniences,B2611,Contract cleaning,578.18,Specialist Hygiene Services Ltd,Contract cleaning - Public Conveniences Cleaning Servic,2012858,201907
Rother District Council,01/10/2019,091HOUSING,Housing and Community Services,20128,Public Conveniences,B2611,Contract cleaning,523.11,Specialist Hygiene Services Ltd,Contract cleaning - Public Conveniences Cleaning Servic,2012858,201907
Rother District Council,01/10/2019,091HOUSING,Housing and Community Services,20128,Public Conveniences,B2611,Contract cleaning,247.77,Specialist Hygiene Services Ltd,Contract cleaning - Public Conveniences Cleaning Servic,2012858,201907
Rother District Council,01/10/2019,091HOUSING,Housing and Community Services,20128,Public Conveniences,B2611,Contract cleaning,550.60,Specialist Hygiene Services Ltd,Contract cleaning - Public Conveniences Cleaning Servic,2012858,201907
Rother District Council,01/10/2019,091HOUSING,Housing and Community Services,20128,Public Conveniences,B2611,Contract cleaning,302.83,Specialist Hygiene Services Ltd,Contract cleaning - Public Conveniences Cleaning Servic,2012858,201907
Rother District Council,01/10/2019,091HOUSING,Housing and Community Services,20128,Public Conveniences,B2611,Contract cleaning,495.62,Specialist Hygiene Services Ltd,Contract cleaning - Public Conveniences Cleaning Servic,2012858,201907
Rother District Council,01/10/2019,091HOUSING,Housing and Community Services,20128,Public Conveniences,B2611,Contract cleaning,730.15,Specialist Hygiene Services Ltd,Contract cleaning - Public Conveniences Cleaning Servic,2012858,201907
Rother District Council,01/10/2019,091HOUSING,Housing and Community Services,20128,Public Conveniences,B2611,Contract cleaning,"1,195.20",Specialist Hygiene Services Ltd,Contract cleaning - Public Conveniences Cleaning Servic,2012858,201907
Rother District Council,01/10/2019,091HOUSING,Housing and Community Services,20128,Public Conveniences,B2611,Contract cleaning,464.97,Specialist Hygiene Services Ltd,Contract cleaning - Public Conveniences Cleaning Servic,2012858,201907
Rother District Council,01/10/2019,091HOUSING,Housing and Community Services,20128,Public Conveniences,B2611,Contract cleaning,912.60,Specialist Hygiene Services Ltd,Contract cleaning - Public Conveniences Cleaning Servic,2012858,201907
Rother District Council,01/10/2019,091HOUSING,Housing and Community Services,20128,Public Conveniences,B2611,Contract cleaning,"1,211.08",Specialist Hygiene Services Ltd,Contract cleaning - Public Conveniences Cleaning Servic,2012858,201907
Rother District Council,01/10/2019,091HOUSING,Housing and Community Services,20128,Public Conveniences,B2611,Contract cleaning,"1,211.08",Specialist Hygiene Services Ltd,Contract cleaning - Public Conveniences Cleaning Servic,2012858,201907
Rother District Council,01/10/2019,091HOUSING,Housing and Community Services,20128,Public Conveniences,B2611,Contract cleaning,"1,721.81",Specialist Hygiene Services Ltd,Contract cleaning - Public Conveniences Cleaning Servic,2012858,201907
Rother District Council,01/10/2019,091HOUSING,Housing and Community Services,20128,Public Conveniences,B2611,Contract cleaning,285.80,Specialist Hygiene Services Ltd,Contract cleaning - Public Conveniences Cleaning Servic,2012858,201907
Rother District Council,01/10/2019,091HOUSING,Housing and Community Services,20128,Public Conveniences,B2611,Contract cleaning,381.21,Specialist Hygiene Services Ltd,Contract cleaning - Public Conveniences Cleaning Servic,2012858,201907
Rother District Council,01/10/2019,091HOUSING,Housing and Community Services,20128,Public Conveniences,B2611,Contract cleaning,317.69,Specialist Hygiene Services Ltd,Contract cleaning - Public Conveniences Cleaning Servic,2012858,201907
Rother District Council,01/10/2019,091HOUSING,Housing and Community Services,20128,Public Conveniences,B2611,Contract cleaning,349.45,Specialist Hygiene Services Ltd,Contract cleaning - Public Conveniences Cleaning Servic,2012858,201907
Rother District Council,01/10/2019,091HOUSING,Housing and Community Services,20128,Public Conveniences,B2611,Contract cleaning,381.21,Specialist Hygiene Services Ltd,Contract cleaning - Public Conveniences Cleaning Servic,2012858,201907
Rother District Council,01/10/2019,091HOUSING,Housing and Community Services,20128,Public Conveniences,B2611,Contract cleaning,285.84,Specialist Hygiene Services Ltd,Contract cleaning - Public Conveniences Cleaning Servic,2012858,201907
Rother District Council,01/10/2019,101RESOURCES,Resources,20241,Stationery,D2420,General office supplies (Stationery purchased from ext suppliers),25.99,The Roman Group,General office supplies - Stationery (Stationery Services to buy ONLY),2013273,201908
Rother District Council,01/10/2019,031RESOURCES,Executive Directors & Corporate Core,20162,Electoral Registration,D1203,Books And Publications,121.50,Thomson Reuters Ltd,Books And Publications - Miscellaneous Legal Reference Books,2012610,201907
Rother District Council,01/10/2019,031RESOURCES,Executive Directors & Corporate Core,20162,Electoral Registration,D1203,Books And Publications,121.50,Thomson Reuters Ltd,Books And Publications - Miscellaneous Legal Reference Books,2012610,201907
Rother District Council,01/10/2019,091HOUSING,Housing and Community Services,20145,Maintenance Services,D1201,Equipment & Materials,794.09,Trade UK Account (Screwfix),Equipment & Materials - Purchase of Tools,2012626,201907
Rother District Council,01/10/2019,091HOUSING,Housing and Community Services,20145,Maintenance Services,D1201,Equipment & Materials,"2,648.94",Trade UK Account (Screwfix),Equipment & Materials - Purchase of Tools,2012627,201907
Rother District Council,01/10/2019,091HOUSING,Housing and Community Services,20108,Bexhill Promenade & Foreshore,B1100,Repairs to Premises,20.80,Trade UK Account (Screwfix),Equipment & Materials - Purchase of Tools,2012628,201907
Rother District Council,01/10/2019,091HOUSING,Housing and Community Services,20138,Residual Highway Services,B1100,Repairs to Premises,34.29,Trade UK Account (Screwfix),Repairs to Premises - Purchase of Materials - Build Maint,2012629,201907
Rother District Council,01/10/2019,031RESOURCES,Executive Directors & Corporate Core,20182,Legal Services,E1101,Third party payment other LAs,"129,700.00",Wealden District Council,Third party payment other LAs - shared service legal management fee,2012557,201907
Rother District Council,01/10/2019,031RESOURCES,Executive Directors & Corporate Core,20175,Administrative Offices - T.H. Annex (NOT CHP),B2612,Cleaning materials,279.69,Wightman and Parrish Ltd,Cleaning materials - Premises,2012559,201907
Rother District Council,02/10/2019,101RESOURCES,Resources,20240,Printing Services,D2417,Photocopy Paper by external suppliers,213.57,Antalis Ltd,Photocopy Paper by external suppliers - White,2012583,201907
Rother District Council,02/10/2019,999NOREPORT,Housing and Community Services,70714,Capital - Grants Halls and Community Projects,N1011,Capital Grants,"1,593.00",Battle Town Council,Capital Grants - Community Grants Scheme,2012676,201907
Rother District Council,02/10/2019,091HOUSING,Housing and Community Services,20205,Housing Loans Account,D2514,Accommodation Costs,320.00,Burgess & Co Lettings and Management,Accommodation Costs - Homelessness services Rent in Advance for Homeless,2012746,201907
Rother District Council,02/10/2019,071STRAT,Strategy and Planning,20246,Planning Applications,D2509,Consultants and Other Services,"1,758.93",Carrington West Ltd,Consultants and other services - Consultants Fees,2012635,201907
Rother District Council,02/10/2019,101RESOURCES,Resources,20216,Cost Of Collection,D2626,Postages,398.05,DSI Billing Services Ltd,Postages - DSI Billing,2012853,201907
Rother District Council,02/10/2019,041ENVIRON,Environmental Services,32143,EH Licenses and Registration R + W Partnership,D2513,Hired and Contracted services,96.00,Fairfield House Veterinary Surgery,Hired and contracted services - EnvH-Veterinary Services for Licens,2012667,201907
Rother District Council,02/10/2019,091HOUSING,Housing and Community Services,20137,Car Parks,B1100,Repairs to Premises,46.50,Flowbird Smart City UK Ltd,Repairs to Premises - Car Park Maintenance,2012624,201907
Rother District Council,02/10/2019,081ACQUISIT,"Acquisitions, Transformation and Regeneration",20118,Tourism,D2513,Hired and Contracted services,500.00,Hastings Borough Council,Hired and contracted services - Bexhill  Marketing,2012623,201907
Rother District Council,02/10/2019,071STRAT,Strategy and Planning,20246,Planning Applications,D2509,Consultants and Other Services,"1,748.25",Hays Specialist Recruitment Ltd,Consultants and other services - Consultants Fees,2012657,201907
Rother District Council,02/10/2019,081ACQUISIT,"Acquisitions, Transformation and Regeneration",20153,"Elva Business Centre, Bexhill",B2611,Contract cleaning,82.50,Just Maid 4 U,Contract cleaning - Office Cleaning,2012650,201907
Rother District Council,02/10/2019,091HOUSING,Housing and Community Services,20200,Housing Needs - HB (Housing Benefit),D2514,Accommodation Costs,385.00,Lets 2 Share Limited,Accommodation Costs,2012634,201907
Rother District Council,02/10/2019,091HOUSING,Housing and Community Services,20200,Housing Needs - HB (Housing Benefit),D2514,Accommodation Costs,385.00,Lets 2 Share Limited,Accommodation Costs,2012634,201907
Rother District Council,02/10/2019,091HOUSING,Housing and Community Services,20200,Housing Needs - HB (Housing Benefit),D2514,Accommodation Costs,385.00,Lets 2 Share Limited,Accommodation Costs,2012634,201907
Rother District Council,02/10/2019,091HOUSING,Housing and Community Services,20108,Bexhill Promenade & Foreshore,B1100,Repairs to Premises,6.88,Parker Building Supplies Ltd,Repairs to Premises - Purchase of Materials - Build Maint,2012705,201907
Rother District Council,02/10/2019,091HOUSING,Housing and Community Services,20108,Bexhill Promenade & Foreshore,B1100,Repairs to Premises,9.80,Parker Building Supplies Ltd,Repairs to Premises - Purchase of Materials - Build Maint,2012704,201907
Rother District Council,02/10/2019,091HOUSING,Housing and Community Services,20128,Public Conveniences,B2422,Sewerage,362.50,Scottish Water Business Stream Limited,Sewerage - Sewerage Charges,2012691,201907
Rother District Council,02/10/2019,081ACQUISIT,"Acquisitions, Transformation and Regeneration",20153,"Elva Business Centre, Bexhill",B2422,Sewerage,259.80,Scottish Water Business Stream Limited,Sewerage - Sewerage Charges,2012692,201907
Rother District Council,02/10/2019,091HOUSING,Housing and Community Services,20128,Public Conveniences,B2422,Sewerage,204.28,Scottish Water Business Stream Limited,Sewerage - Sewerage Charges,2012694,201907
Rother District Council,02/10/2019,101RESOURCES,Resources,20239,Computer Services,D2922,Subscriptions,333.33,South East Employers,Subscriptions - Subscription to Organisations,2012591,201907
Rother District Council,02/10/2019,041ENVIRON,Environmental Services,32144,EH Environmental Services Admin R + W Partnership,A2203,Training,590.00,Sovereign Harbour Yacht Club Ltd,Training,2012789,201907
Rother District Council,02/10/2019,091HOUSING,Housing and Community Services,20145,Maintenance Services,D2352,Clothing and Uniforms,66.66,Trade UK Account (Screwfix),Clothing and Uniforms - Mens Protective-Trousers,2012659,201907
Rother District Council,02/10/2019,091HOUSING,Housing and Community Services,20145,Maintenance Services,D2352,Clothing and Uniforms,69.99,Trade UK Account (Screwfix),Clothing and Uniforms - Mens Protective-Footware,2012659,201907
Rother District Council,02/10/2019,091HOUSING,Housing and Community Services,20145,Maintenance Services,D1201,Equipment & Materials,-58.33,Trade UK Account (Screwfix),Equipment & Materials - Purchase of Tools,2012658,201907
Rother District Council,03/10/2019,091HOUSING,Housing and Community Services,20115,Rye Area Parks & Gardens,B1100,Repairs to Premises,892.67,Alfa Electric Ltd,Repairs to Premises - Parks - Electrical Works,2012664,201907
Rother District Council,03/10/2019,999NOREPORT,Housing and Community Services,70714,Capital - Grants Halls and Community Projects,N1011,Capital Grants,"1,554.00",AudioActive,Capital Grants - Community Grants Scheme,2012749,201907
Rother District Council,03/10/2019,091HOUSING,Housing and Community Services,20112,Bexhill Leisure Centre,B1100,Repairs to Premises,"12,206.00",Booker and Best Ltd,Repairs to Premises - Electrical Installation,2012631,201907
Rother District Council,03/10/2019,091HOUSING,Housing and Community Services,20137,Car Parks,D1201,Equipment & Materials,860.42,Flowbird Smart City UK Ltd,Equipment & Materials - Car Parks various,2012630,201907
Rother District Council,03/10/2019,101RESOURCES,Resources,20216,Cost Of Collection,D2513,Hired and Contracted services,30.00,H M Land Registry,Hired and contracted services - Council Tax-Land Registry Enquiries,2012846,201907
Rother District Council,03/10/2019,031RESOURCES,Executive Directors & Corporate Core,20182,Legal Services,D2513,Hired and Contracted services,20.00,H M Land Registry,Hired and contracted services - Legal-Land Registry Fees,2012846,201907
Rother District Council,03/10/2019,071STRAT,Strategy and Planning,20246,Planning Applications,D2513,Hired and Contracted services,12.00,H M Land Registry,Hired and contracted services - Land Registry-Planning,2012846,201907
Rother District Council,03/10/2019,101RESOURCES,Resources,20216,Cost Of Collection,D2513,Hired and Contracted services,145.00,Inform CPI Ltd,Hired and contracted services - RV Finder,2012863,201907
Rother District Council,03/10/2019,091HOUSING,Housing and Community Services,20109,Sports Development,D2923,Grants made,222.75,Jasmin Gray,Grants made - Active Sussex Project workforce dev.,2012860,201907
Rother District Council,03/10/2019,101RESOURCES,Resources,20242,Communications-Phones,D2621,Telephones,"2,517.21",KCOM Group Plc,Telephones - KCOM Smartnumber Charges,2012916,201907
Rother District Council,03/10/2019,091HOUSING,Housing and Community Services,20114,Bexhill Parks & Open Spaces,D1201,Equipment & Materials,73.00,Palmstead Nurseries Ltd,Equipment & Materials - Carriage/Handling Charge,2013181,201908
Rother District Council,03/10/2019,091HOUSING,Housing and Community Services,20114,Bexhill Parks & Open Spaces,B1100,Repairs to Premises,583.20,Palmstead Nurseries Ltd,Repairs to Premises - Parks - Purchase of Plants,2013181,201908
Rother District Council,03/10/2019,091HOUSING,Housing and Community Services,20114,Bexhill Parks & Open Spaces,B1100,Repairs to Premises,25.47,Parker Building Supplies Ltd,Repairs to Premises - Purchase of Materials - Build Maint,2012706,201907
Rother District Council,03/10/2019,091HOUSING,Housing and Community Services,20114,Bexhill Parks & Open Spaces,B1100,Repairs to Premises,97.30,Parker Building Supplies Ltd,Repairs to Premises - Purchase of Materials - Build Maint,2012707,201907
Rother District Council,03/10/2019,041ENVIRON,Environmental Services,32144,EH Environmental Services Admin R + W Partnership,D2513,Hired and Contracted services,187.50,Rocksure Systems Ltd,Hired and Contracted services,2012668,201907
Rother District Council,03/10/2019,091HOUSING,Housing and Community Services,20108,Bexhill Promenade & Foreshore,B1100,Repairs to Premises,10.87,Saint-Gobain Building Distribution Ltd t/a Jewson,Repairs to Premises - Purchase of Materials - Build Maint,2012857,201907
Rother District Council,03/10/2019,999NOREPORT,Housing and Community Services,70718,Capital - Sidley Recreation Ground,D2513,Hired and Contracted services,-66.50,The Pelham,Hired and contracted services - Hire of Meeting Room,1004587,201907
Rother District Council,03/10/2019,999NOREPORT,Housing and Community Services,70718,Capital - Sidley Recreation Ground,D2513,Hired and Contracted services,66.50,The Pelham,Hired and contracted services - Hire of Meeting Room,2012649,201907
Rother District Council,03/10/2019,091HOUSING,Housing and Community Services,20114,Bexhill Parks & Open Spaces,D2513,Hired and Contracted services,66.50,The Pelham,Hired and contracted services - Hire of Meeting Room,2012756,201907
Rother District Council,03/10/2019,091HOUSING,Housing and Community Services,20145,Maintenance Services,D1201,Equipment & Materials,58.33,Trade UK Account (Screwfix),Equipment & Materials - Purchase of Tools,2012710,201907
Rother District Council,03/10/2019,091HOUSING,Housing and Community Services,20145,Maintenance Services,D1201,Equipment & Materials,59.91,Trade UK Account (Screwfix),Equipment & Materials - Purchase of Tools,2012709,201907
Rother District Council,03/10/2019,091HOUSING,Housing and Community Services,20114,Bexhill Parks & Open Spaces,B1100,Repairs to Premises,16.65,Trade UK Account (Screwfix),Repairs to Premises - Purchase of Materials - Build Maint,2012709,201907
Rother District Council,03/10/2019,041ENVIRON,Environmental Services,32140,EN Wealden Training (WEALDEN ONLY) R + W Partnership,A2203,Training,88.13,Uckfield Town Council,Training,2012708,201907
Rother District Council,03/10/2019,091HOUSING,Housing and Community Services,20109,Sports Development,D2923,Grants made,600.00,WebsiteAbility,Grants made - Sports Development-Active Rother,2012711,201907
Rother District Council,04/10/2019,999NOREPORT,Environmental Services,70706,Capital - Disable Facilities Grant,N1012,Capital Advances,"2,161.36",Alfa Electric Ltd,Capital Advances Disabled Facilities Grant,2012803,201907
Rother District Council,04/10/2019,031RESOURCES,Executive Directors & Corporate Core,20156,Representing Local Interest,D2734,Members Training and Seminars,97.50,Burwash Village Hall,Members Training and Seminars,2012744,201907
Rother District Council,04/10/2019,081ACQUISIT,"Acquisitions, Transformation and Regeneration",20140,"Housing Policy,Strategy & Dev",D2734,Members Training and Seminars,97.50,Burwash Village Hall,Members Training and Seminars,2012744,201907
Rother District Council,04/10/2019,091HOUSING,Housing and Community Services,20128,Public Conveniences,B2422,Sewerage,330.00,CountyClean Environmental Services Ltd,Sewerage - Sewage/Cesspool Emptying,2012719,201907
Rother District Council,04/10/2019,999NOREPORT,Environmental Services,70706,Capital - Disable Facilities Grant,N1012,Capital Advances,"2,200.00",Dolphin Lifts Kent,Capital Advances Disabled Facilities Grant,2012804,201907
Rother District Council,04/10/2019,101RESOURCES,Resources,20239,Computer Services,D2635,Computer Licences,"3,850.00",Dotted Eyes Ltd,Computer Licences - Maintenance/Upgrading of Software,2012683,201907
Rother District Council,04/10/2019,101RESOURCES,Resources,20216,Cost Of Collection,D2626,Postages,589.48,DSI Billing Services Ltd,Postages - DSI Billing,2012852,201907
Rother District Council,04/10/2019,091HOUSING,Housing and Community Services,20145,Maintenance Services,D2352,Clothing and Uniforms,140.28,Greenham,Clothing and Uniforms - Mens Protective-Other,2012854,201907
Rother District Council,04/10/2019,101RESOURCES,Resources,20216,Cost Of Collection,D2513,Hired and Contracted services,12.00,H M Land Registry,Hired and contracted services - Council Tax-Land Registry Enquiries,2012847,201907
Rother District Council,04/10/2019,071STRAT,Strategy and Planning,20258,BC Dangerous Structures H+R Partnership,D2513,Hired and Contracted services,3.00,H M Land Registry,Hired and contracted services - Env H-Land Registry,2012847,201907
Rother District Council,04/10/2019,091HOUSING,Housing and Community Services,20108,Bexhill Promenade & Foreshore,B1100,Repairs to Premises,790.00,Impact Scaffolding Ltd,Repairs to Premises - Specified Repairs and Works listed,2012673,201907
Rother District Council,04/10/2019,071STRAT,Strategy and Planning,20246,Planning Applications,D2519,Statutory Advertising,823.50,JPIMedia Publishing Ltd,Statutory Advertising - Planadv - Rye+Battle Observer,2012855,201907
Rother District Council,04/10/2019,091HOUSING,Housing and Community Services,20200,Housing Needs - HB (Housing Benefit),D2514,Accommodation Costs,"1,655.71",MB Hotels Ltd,Accommodation Costs,2012770,201907
Rother District Council,04/10/2019,091HOUSING,Housing and Community Services,20200,Housing Needs - HB (Housing Benefit),D2514,Accommodation Costs,"2,130.00",MB Hotels Ltd,Accommodation Costs,2012763,201907
Rother District Council,04/10/2019,091HOUSING,Housing and Community Services,20200,Housing Needs - HB (Housing Benefit),D2514,Accommodation Costs,"1,525.00",MB Hotels Ltd,Accommodation Costs,2012772,201907
Rother District Council,04/10/2019,091HOUSING,Housing and Community Services,20200,Housing Needs - HB (Housing Benefit),D2514,Accommodation Costs,"1,025.00",MB Hotels Ltd,Accommodation Costs,2012762,201907
Rother District Council,04/10/2019,091HOUSING,Housing and Community Services,20200,Housing Needs - HB (Housing Benefit),D2514,Accommodation Costs,"1,525.00",MB Hotels Ltd,Accommodation Costs,2012767,201907
Rother District Council,04/10/2019,091HOUSING,Housing and Community Services,20200,Housing Needs - HB (Housing Benefit),D2514,Accommodation Costs,"1,530.00",MB Hotels Ltd,Accommodation Costs,2012771,201907
Rother District Council,04/10/2019,091HOUSING,Housing and Community Services,20200,Housing Needs - HB (Housing Benefit),D2514,Accommodation Costs,43.57,MB Hotels Ltd,Accommodation Costs,2012764,201907
Rother District Council,04/10/2019,091HOUSING,Housing and Community Services,20200,Housing Needs - HB (Housing Benefit),D2514,Accommodation Costs,907.86,MB Hotels Ltd,Accommodation Costs,2012760,201907
Rother District Council,04/10/2019,091HOUSING,Housing and Community Services,20200,Housing Needs - HB (Housing Benefit),D2514,Accommodation Costs,"1,025.00",MB Hotels Ltd,Accommodation Costs,2012778,201907
Rother District Council,04/10/2019,091HOUSING,Housing and Community Services,20200,Housing Needs - HB (Housing Benefit),D2514,Accommodation Costs,"1,830.00",MB Hotels Ltd,Accommodation Costs,2012769,201907
Rother District Council,04/10/2019,091HOUSING,Housing and Community Services,20200,Housing Needs - HB (Housing Benefit),D2514,Accommodation Costs,468.57,MB Hotels Ltd,Accommodation Costs,2012773,201907
Rother District Council,04/10/2019,091HOUSING,Housing and Community Services,20200,Housing Needs - HB (Housing Benefit),D2514,Accommodation Costs,355.00,MB Hotels Ltd,Accommodation Costs,2013537,201908
Rother District Council,04/10/2019,091HOUSING,Housing and Community Services,20200,Housing Needs - HB (Housing Benefit),D2514,Accommodation Costs,"1,275.00",MB Hotels Ltd,Accommodation Costs,2012776,201907
Rother District Council,04/10/2019,091HOUSING,Housing and Community Services,20200,Housing Needs - HB (Housing Benefit),D2514,Accommodation Costs,"1,525.00",MB Hotels Ltd,Accommodation Costs,2012775,201907
Rother District Council,04/10/2019,091HOUSING,Housing and Community Services,20200,Housing Needs - HB (Housing Benefit),D2514,Accommodation Costs,"1,275.00",MB Hotels Ltd,Accommodation Costs,2012777,201907
Rother District Council,04/10/2019,091HOUSING,Housing and Community Services,20200,Housing Needs - HB (Housing Benefit),D2514,Accommodation Costs,"1,420.00",MB Hotels Ltd,Accommodation Costs,2013538,201908
Rother District Council,04/10/2019,091HOUSING,Housing and Community Services,20200,Housing Needs - HB (Housing Benefit),D2514,Accommodation Costs,"1,830.00",MB Hotels Ltd,Accommodation Costs,2012768,201907
Rother District Council,04/10/2019,091HOUSING,Housing and Community Services,20329,Rough Sleeping Initiative,D2514,Accommodation Costs,36.00,MB Hotels Ltd,Accommodation Costs,2012765,201907
Rother District Council,04/10/2019,999NOREPORT,Environmental Services,70706,Capital - Disable Facilities Grant,N1012,Capital Advances,936.61,Peabody South East Ltd,Capital Advances Disabled Facilities Grant,2012801,201907
Rother District Council,04/10/2019,999NOREPORT,Environmental Services,70706,Capital - Disable Facilities Grant,N1012,Capital Advances,"1,224.20",Peabody South East Ltd,Capital Advances Disabled Facilities Grant,2012802,201907
Rother District Council,04/10/2019,999NOREPORT,Environmental Services,70706,Capital - Disable Facilities Grant,N1012,Capital Advances,330.00,Peabody South East Ltd,Capital Advances Disabled Facilities Grant,2012805,201907
Rother District Council,04/10/2019,091HOUSING,Housing and Community Services,20108,Bexhill Promenade & Foreshore,B1100,Repairs to Premises,7.50,Phase Electrical Distributors Ltd,Repairs to Premises - Purchase of Materials - Build Maint,2012734,201907
Rother District Council,04/10/2019,091HOUSING,Housing and Community Services,20137,Car Parks,D1201,Equipment & Materials,45.00,Signtek,Equipment & Materials - Car Parks various,2012665,201907
Rother District Council,04/10/2019,081ACQUISIT,"Acquisitions, Transformation and Regeneration",20267,Property Investment Strategy - 18-40 Beeching Road ( Land and Buildings),B2201,Electricity,32.08,SmartestEnergy Ltd,Electricity - Electricity Charges,2012669,201907
Rother District Council,04/10/2019,081ACQUISIT,"Acquisitions, Transformation and Regeneration",20267,Property Investment Strategy - 18-40 Beeching Road ( Land and Buildings),B2201,Electricity,550.63,SmartestEnergy Ltd,Electricity - Electricity Charges,2012669,201907
Rother District Council,04/10/2019,999NOREPORT,Environmental Services,70706,Capital - Disable Facilities Grant,N1012,Capital Advances,"2,244.11",The Build Works,Capital Advances Disabled Facilities Grant,2012800,201907
Rother District Council,04/10/2019,091HOUSING,Housing and Community Services,20108,Bexhill Promenade & Foreshore,B1100,Repairs to Premises,23.88,Trade UK Account (Screwfix),Equipment & Materials - Purchase of Tools,2012714,201907
Rother District Council,04/10/2019,091HOUSING,Housing and Community Services,20108,Bexhill Promenade & Foreshore,B1100,Repairs to Premises,23.31,Trade UK Account (Screwfix),Equipment & Materials - Purchase of Tools,2012714,201907
Rother District Council,05/10/2019,091HOUSING,Housing and Community Services,20114,Bexhill Parks & Open Spaces,B2421,Water,622.06,Castle Water Ltd,Water - Water Charges,2012716,201907
Rother District Council,05/10/2019,091HOUSING,Housing and Community Services,20128,Public Conveniences,B2421,Water,155.52,Castle Water Ltd,Water - Water Charges,2012716,201907
Rother District Council,05/10/2019,091HOUSING,Housing and Community Services,20102,Rother Museum Services,B1100,Repairs to Premises,116.81,Stannah Lift Services Ltd,Repairs to Premises - Specified Repairs and Works listed,2012794,201907
Rother District Council,05/10/2019,091HOUSING,Housing and Community Services,20206,Syrians,D2513,Hired and Contracted services,"1,287.27",Susanne Evershed,Hired and contracted services - Syrian-Education-Exempt VAT,2012961,201907
Rother District Council,05/10/2019,041ENVIRON,Environmental Services,32142,EH Taxi and Private Hire Licenses R + W Partnership,D2513,Hired and Contracted services,132.00,uCheck,Hired and contracted services - Service fee paid,2012975,201907
Rother District Council,05/10/2019,041ENVIRON,Environmental Services,32142,EH Taxi and Private Hire Licenses R + W Partnership,D2513,Hired and Contracted services,26.01,uCheck,Hired and contracted services - Service fee paid,2012975,201907
Rother District Council,06/10/2019,091HOUSING,Housing and Community Services,20206,Syrians,D2513,Hired and Contracted services,840.17,Muna Smallman,Hired and contracted services - Syrian-Translation Services,2012745,201907
Rother District Council,06/10/2019,081ACQUISIT,"Acquisitions, Transformation and Regeneration",20118,Tourism,D2513,Hired and Contracted services,700.00,New Road Artists Association,Hired and contracted services - Rye Marketing Campaign,2012826,201907
Rother District Council,06/10/2019,031RESOURCES,Executive Directors & Corporate Core,20170,Communications-Postages,D2626,Postages,"4,041.24",Pitney Bowes Purchase Power,Postages - Stamps,2013204,201908
Rother District Council,06/10/2019,071STRAT,Strategy and Planning,20246,Planning Applications,D2519,Statutory Advertising,338.42,Reach Publishing Services Ltd,Statutory Advertising - Planadv-Kent+East Sussex Courier,2013340,201908
Rother District Council,06/10/2019,091HOUSING,Housing and Community Services,20200,Housing Needs - HB (Housing Benefit),D2514,Accommodation Costs,250.00,Specialist Care UK Group Ltd,Accommodation Costs,2012731,201907
Rother District Council,06/10/2019,091HOUSING,Housing and Community Services,20200,Housing Needs - HB (Housing Benefit),D2514,Accommodation Costs,75.00,Specialist Care UK Group Ltd,Accommodation Costs,2012731,201907
Rother District Council,06/10/2019,091HOUSING,Housing and Community Services,20200,Housing Needs - HB (Housing Benefit),D2514,Accommodation Costs,250.00,Specialist Care UK Group Ltd,Accommodation Costs,2012731,201907
Rother District Council,06/10/2019,091HOUSING,Housing and Community Services,20200,Housing Needs - HB (Housing Benefit),D2514,Accommodation Costs,350.00,Specialist Care UK Group Ltd,Accommodation Costs,2012731,201907
Rother District Council,06/10/2019,091HOUSING,Housing and Community Services,20200,Housing Needs - HB (Housing Benefit),D2514,Accommodation Costs,175.00,Specialist Care UK Group Ltd,Accommodation Costs,2012731,201907
Rother District Council,06/10/2019,091HOUSING,Housing and Community Services,20200,Housing Needs - HB (Housing Benefit),D2514,Accommodation Costs,262.50,Specialist Care UK Group Ltd,Accommodation Costs,2012726,201907
Rother District Council,06/10/2019,091HOUSING,Housing and Community Services,20200,Housing Needs - HB (Housing Benefit),D2514,Accommodation Costs,262.50,Specialist Care UK Group Ltd,Accommodation Costs,2012727,201907
Rother District Council,06/10/2019,091HOUSING,Housing and Community Services,20200,Housing Needs - HB (Housing Benefit),D2514,Accommodation Costs,75.00,Specialist Care UK Group Ltd,Accommodation Costs,2012728,201907
Rother District Council,06/10/2019,091HOUSING,Housing and Community Services,20200,Housing Needs - HB (Housing Benefit),D2514,Accommodation Costs,375.00,Specialist Care UK Group Ltd,Accommodation Costs,2012729,201907
Rother District Council,06/10/2019,091HOUSING,Housing and Community Services,20200,Housing Needs - HB (Housing Benefit),D2514,Accommodation Costs,350.00,Specialist Care UK Group Ltd,Accommodation Costs,2012730,201907
Rother District Council,06/10/2019,091HOUSING,Housing and Community Services,20200,Housing Needs - HB (Housing Benefit),D2514,Accommodation Costs,300.00,Specialist Care UK Group Ltd,Accommodation Costs,2012720,201907
Rother District Council,06/10/2019,091HOUSING,Housing and Community Services,20200,Housing Needs - HB (Housing Benefit),D2514,Accommodation Costs,262.50,Specialist Care UK Group Ltd,Accommodation Costs,2012721,201907
Rother District Council,06/10/2019,091HOUSING,Housing and Community Services,20200,Housing Needs - HB (Housing Benefit),D2514,Accommodation Costs,100.00,Specialist Care UK Group Ltd,Accommodation Costs,2012723,201907
Rother District Council,06/10/2019,091HOUSING,Housing and Community Services,20200,Housing Needs - HB (Housing Benefit),D2514,Accommodation Costs,262.50,Specialist Care UK Group Ltd,Accommodation Costs,2012724,201907
Rother District Council,06/10/2019,091HOUSING,Housing and Community Services,20200,Housing Needs - HB (Housing Benefit),D2514,Accommodation Costs,262.50,Specialist Care UK Group Ltd,Accommodation Costs,2012725,201907
Rother District Council,06/10/2019,091HOUSING,Housing and Community Services,20200,Housing Needs - HB (Housing Benefit),D2514,Accommodation Costs,100.00,Specialist Care UK Group Ltd,Accommodation Costs,2012722,201907
Rother District Council,07/10/2019,999NOREPORT,Environmental Services,70706,Capital - Disable Facilities Grant,N1012,Capital Advances,"6,015.70",Alfa Electric Ltd,Capital Advances Disabled Facilities Grant,2012806,201907
Rother District Council,07/10/2019,999NOREPORT,Environmental Services,70706,Capital - Disable Facilities Grant,N1012,Capital Advances,"5,136.01",Alfa Electric Ltd,Capital Advances Disabled Facilities Grant,2012808,201907
Rother District Council,07/10/2019,081ACQUISIT,"Acquisitions, Transformation and Regeneration",20122,Economic Development,D2738,Conferences,295.00,CIPFA Business Ltd,Conferences - Officers Conference fees,2012717,201907
Rother District Council,07/10/2019,091HOUSING,Housing and Community Services,20115,Rye Area Parks & Gardens,B1100,Repairs to Premises,90.00,Colin A May,Equipment & Materials -  Parks- Benches repairs,2012751,201907
Rother District Council,07/10/2019,091HOUSING,Housing and Community Services,20114,Bexhill Parks & Open Spaces,B2422,Sewerage,385.00,CountyClean Environmental Services Ltd,Sewerage Parks- Emptying of Cesspit,2012787,201907
Rother District Council,07/10/2019,999NOREPORT,Environmental Services,70706,Capital - Disable Facilities Grant,N1012,Capital Advances,"6,150.72",DCB (Kent) Ltd,Capital Advances Disabled Facilities Grant,2012811,201907
Rother District Council,07/10/2019,031RESOURCES,Executive Directors & Corporate Core,20156,Representing Local Interest,D2736,Chairmans Allowance,27.00,REDACTED PERSONAL DATA,Chairmans Allowance - Chairmans Allowance,2012675,201907
Rother District Council,07/10/2019,999NOREPORT,Environmental Services,70706,Capital - Disable Facilities Grant,N1012,Capital Advances,"6,000.00",T/A DisAdapt,Capital Advances Disabled Facilities Grant,2012899,201907
Rother District Council,07/10/2019,101RESOURCES,Resources,20209,Corporate management,D2516,Audit fees,"9,264.00",Grant Thornton UK LLP,Audit Fees - External Audit,2012821,201907
Rother District Council,07/10/2019,041ENVIRON,Environmental Services,32136,EH Pest Control R + W Partnership,D1201,Equipment & Materials,26.52,Killgerm Chemicals Ltd,Equipment & Materials - EnvH-Air Arms / Supplies-Pest Contr,2012737,201907
Rother District Council,07/10/2019,041ENVIRON,Environmental Services,32136,EH Pest Control R + W Partnership,D1201,Equipment & Materials,8.00,Killgerm Chemicals Ltd,Equipment & Materials - Carriage/Handling Charge,2012737,201907
Rother District Council,07/10/2019,101RESOURCES,Resources,20209,Corporate management,D2513,Hired and Contracted services,68.00,Lloyds Bank,Bank Charges,2013387,201908
Rother District Council,07/10/2019,091HOUSING,Housing and Community Services,20200,Housing Needs - HB (Housing Benefit),D2514,Accommodation Costs,630.00,High Weald Property Investments,Accommodation Costs,2012718,201907
Rother District Council,07/10/2019,091HOUSING,Housing and Community Services,20132,Street & Beach Cleansing,D1201,Equipment & Materials,12.34,Parker Building Supplies Ltd,Repairs to Premises - Purchase of Materials - Build Maint,2012712,201907
Rother District Council,07/10/2019,091HOUSING,Housing and Community Services,20132,Street & Beach Cleansing,D1201,Equipment & Materials,30.08,Parker Building Supplies Ltd,Repairs to Premises - Purchase of Materials - Build Maint,2012713,201907
Rother District Council,07/10/2019,999NOREPORT,Environmental Services,70706,Capital - Disable Facilities Grant,N1012,Capital Advances,925.61,Peabody South East Ltd,Capital Advances Disabled Facilities Grant,2012810,201907
Rother District Council,07/10/2019,999NOREPORT,Environmental Services,70706,Capital - Disable Facilities Grant,N1012,Capital Advances,902.35,Peabody South East Ltd,Capital Advances Disabled Facilities Grant,2012807,201907
Rother District Council,07/10/2019,999NOREPORT,Environmental Services,70706,Capital - Disable Facilities Grant,N1012,Capital Advances,995.40,Peabody South East Ltd,Capital Advances Disabled Facilities Grant,2012809,201907
Rother District Council,07/10/2019,031RESOURCES,Executive Directors & Corporate Core,20162,Electoral Registration,D2626,Postages,"1,184.65",Royal Mail Group Ltd,Postages - Response Service-Royal Mail Chg,2012738,201907
Rother District Council,07/10/2019,091HOUSING,Housing and Community Services,20145,Maintenance Services,D1201,Equipment & Materials,10.72,Saint-Gobain Building Distribution Ltd t/a Jewson,Equipment & Materials - Purchase of Tools,2012990,201908
Rother District Council,07/10/2019,091HOUSING,Housing and Community Services,20200,Housing Needs - HB (Housing Benefit),D2514,Accommodation Costs,285.60,Savoy Court Ltd,Accommodation Costs,2012736,201907
Rother District Council,07/10/2019,091HOUSING,Housing and Community Services,20200,Housing Needs - HB (Housing Benefit),D2514,Accommodation Costs,71.40,Savoy Court Ltd,Accommodation Costs,2012736,201907
Rother District Council,07/10/2019,091HOUSING,Housing and Community Services,20200,Housing Needs - HB (Housing Benefit),D2514,Accommodation Costs,308.00,Savoy Court Ltd,Accommodation Costs,2012735,201907
Rother District Council,07/10/2019,091HOUSING,Housing and Community Services,20200,Housing Needs - HB (Housing Benefit),D2514,Accommodation Costs,77.00,Savoy Court Ltd,Accommodation Costs,2012735,201907
Rother District Council,07/10/2019,031RESOURCES,Executive Directors & Corporate Core,20183,Executive Directors,D2513,Hired and Contracted services,38.00,Sedlescombe Village Hall,Hired and contracted services - Hire of Meeting Room,2012750,201907
Rother District Council,07/10/2019,091HOUSING,Housing and Community Services,20200,Housing Needs - HB (Housing Benefit),D2514,Accommodation Costs,48.00,South Down Residential Ltd,Accommodation Costs,2012732,201907
Rother District Council,07/10/2019,091HOUSING,Housing and Community Services,20200,Housing Needs - HB (Housing Benefit),D2514,Accommodation Costs,371.00,South Down Residential Ltd,Accommodation Costs,2012732,201907
Rother District Council,07/10/2019,091HOUSING,Housing and Community Services,20329,Rough Sleeping Initiative,D2514,Accommodation Costs,178.50,South Down Residential Ltd,Accommodation Costs,2012732,201907
Rother District Council,07/10/2019,091HOUSING,Housing and Community Services,20200,Housing Needs - HB (Housing Benefit),D2514,Accommodation Costs,364.00,South Down Residential Ltd,Accommodation Costs,2012732,201907
Rother District Council,07/10/2019,091HOUSING,Housing and Community Services,20200,Housing Needs - HB (Housing Benefit),D2514,Accommodation Costs,91.00,South Down Residential Ltd,Accommodation Costs,2012732,201907
Rother District Council,07/10/2019,091HOUSING,Housing and Community Services,20200,Housing Needs - HB (Housing Benefit),D2514,Accommodation Costs,106.00,South Down Residential Ltd,Accommodation Costs,2012732,201907
Rother District Council,07/10/2019,091HOUSING,Housing and Community Services,20200,Housing Needs - HB (Housing Benefit),D2514,Accommodation Costs,212.00,South Down Residential Ltd,Accommodation Costs,2012732,201907
Rother District Council,07/10/2019,091HOUSING,Housing and Community Services,20200,Housing Needs - HB (Housing Benefit),D2514,Accommodation Costs,53.00,South Down Residential Ltd,Accommodation Costs,2012732,201907
Rother District Council,07/10/2019,091HOUSING,Housing and Community Services,20200,Housing Needs - HB (Housing Benefit),D2514,Accommodation Costs,336.00,South Down Residential Ltd,Accommodation Costs,2012732,201907
Rother District Council,07/10/2019,091HOUSING,Housing and Community Services,20200,Housing Needs - HB (Housing Benefit),D2514,Accommodation Costs,60.00,South Down Residential Ltd,Accommodation Costs,2012732,201907
Rother District Council,07/10/2019,091HOUSING,Housing and Community Services,20200,Housing Needs - HB (Housing Benefit),D2514,Accommodation Costs,371.00,South Down Residential Ltd,Accommodation Costs,2012732,201907
Rother District Council,07/10/2019,091HOUSING,Housing and Community Services,20200,Housing Needs - HB (Housing Benefit),D2514,Accommodation Costs,319.97,South Down Residential Ltd,Accommodation Costs,2012732,201907
Rother District Council,07/10/2019,091HOUSING,Housing and Community Services,20200,Housing Needs - HB (Housing Benefit),D2514,Accommodation Costs,80.01,South Down Residential Ltd,Accommodation Costs,2012732,201907
Rother District Council,07/10/2019,091HOUSING,Housing and Community Services,20200,Housing Needs - HB (Housing Benefit),D2514,Accommodation Costs,178.50,South Down Residential Ltd,Accommodation Costs,2012732,201907
Rother District Council,07/10/2019,091HOUSING,Housing and Community Services,20200,Housing Needs - HB (Housing Benefit),D2514,Accommodation Costs,38.40,South Down Residential Ltd,Accommodation Costs,2012732,201907
Rother District Council,07/10/2019,091HOUSING,Housing and Community Services,20200,Housing Needs - HB (Housing Benefit),D2514,Accommodation Costs,9.60,South Down Residential Ltd,Accommodation Costs,2012732,201907
Rother District Council,07/10/2019,091HOUSING,Housing and Community Services,20200,Housing Needs - HB (Housing Benefit),D2514,Accommodation Costs,297.60,South Down Residential Ltd,Accommodation Costs,2012732,201907
Rother District Council,07/10/2019,091HOUSING,Housing and Community Services,20200,Housing Needs - HB (Housing Benefit),D2514,Accommodation Costs,74.40,South Down Residential Ltd,Accommodation Costs,2012732,201907
Rother District Council,07/10/2019,091HOUSING,Housing and Community Services,20200,Housing Needs - HB (Housing Benefit),D2514,Accommodation Costs,142.80,South Down Residential Ltd,Accommodation Costs,2012732,201907
Rother District Council,07/10/2019,091HOUSING,Housing and Community Services,20200,Housing Needs - HB (Housing Benefit),D2514,Accommodation Costs,35.70,South Down Residential Ltd,Accommodation Costs,2012732,201907
Rother District Council,07/10/2019,091HOUSING,Housing and Community Services,20200,Housing Needs - HB (Housing Benefit),D2514,Accommodation Costs,127.50,South Down Residential Ltd,Accommodation Costs,2012732,201907
Rother District Council,07/10/2019,091HOUSING,Housing and Community Services,20200,Housing Needs - HB (Housing Benefit),D2514,Accommodation Costs,268.80,South Down Residential Ltd,Accommodation Costs,2012732,201907
Rother District Council,07/10/2019,091HOUSING,Housing and Community Services,20200,Housing Needs - HB (Housing Benefit),D2514,Accommodation Costs,67.20,South Down Residential Ltd,Accommodation Costs,2012732,201907
Rother District Council,07/10/2019,091HOUSING,Housing and Community Services,20200,Housing Needs - HB (Housing Benefit),D2514,Accommodation Costs,268.80,South Down Residential Ltd,Accommodation Costs,2012732,201907
Rother District Council,07/10/2019,091HOUSING,Housing and Community Services,20200,Housing Needs - HB (Housing Benefit),D2514,Accommodation Costs,67.20,South Down Residential Ltd,Accommodation Costs,2012732,201907
Rother District Council,07/10/2019,091HOUSING,Housing and Community Services,20200,Housing Needs - HB (Housing Benefit),D2514,Accommodation Costs,127.50,South Down Residential Ltd,Accommodation Costs,2012732,201907
Rother District Council,07/10/2019,091HOUSING,Housing and Community Services,20200,Housing Needs - HB (Housing Benefit),D2514,Accommodation Costs,40.80,South Down Residential Ltd,Accommodation Costs,2012732,201907
Rother District Council,07/10/2019,091HOUSING,Housing and Community Services,20200,Housing Needs - HB (Housing Benefit),D2514,Accommodation Costs,10.20,South Down Residential Ltd,Accommodation Costs,2012732,201907
Rother District Council,07/10/2019,091HOUSING,Housing and Community Services,20200,Housing Needs - HB (Housing Benefit),D2514,Accommodation Costs,371.00,South Down Residential Ltd,Accommodation Costs,2012732,201907
Rother District Council,07/10/2019,091HOUSING,Housing and Community Services,20200,Housing Needs - HB (Housing Benefit),D2514,Accommodation Costs,371.00,South Down Residential Ltd,Accommodation Costs,2012732,201907
Rother District Council,07/10/2019,091HOUSING,Housing and Community Services,20200,Housing Needs - HB (Housing Benefit),D2514,Accommodation Costs,142.80,South Down Residential Ltd,Accommodation Costs,2012732,201907
Rother District Council,07/10/2019,091HOUSING,Housing and Community Services,20200,Housing Needs - HB (Housing Benefit),D2514,Accommodation Costs,35.70,South Down Residential Ltd,Accommodation Costs,2012732,201907
Rother District Council,07/10/2019,091HOUSING,Housing and Community Services,20200,Housing Needs - HB (Housing Benefit),D2514,Accommodation Costs,330.40,South Down Residential Ltd,Accommodation Costs,2012732,201907
Rother District Council,07/10/2019,091HOUSING,Housing and Community Services,20200,Housing Needs - HB (Housing Benefit),D2514,Accommodation Costs,82.60,South Down Residential Ltd,Accommodation Costs,2012732,201907
Rother District Council,07/10/2019,091HOUSING,Housing and Community Services,20200,Housing Needs - HB (Housing Benefit),D2514,Accommodation Costs,330.40,South Down Residential Ltd,Accommodation Costs,2012732,201907
Rother District Council,07/10/2019,091HOUSING,Housing and Community Services,20200,Housing Needs - HB (Housing Benefit),D2514,Accommodation Costs,82.60,South Down Residential Ltd,Accommodation Costs,2012732,201907
Rother District Council,07/10/2019,091HOUSING,Housing and Community Services,20200,Housing Needs - HB (Housing Benefit),D2514,Accommodation Costs,371.00,South Down Residential Ltd,Accommodation Costs,2012732,201907
Rother District Council,07/10/2019,091HOUSING,Housing and Community Services,20200,Housing Needs - HB (Housing Benefit),D2514,Accommodation Costs,177.00,South Down Residential Ltd,Accommodation Costs,2012732,201907
Rother District Council,07/10/2019,091HOUSING,Housing and Community Services,20200,Housing Needs - HB (Housing Benefit),D2514,Accommodation Costs,240.03,South Down Residential Ltd,Accommodation Costs,2012732,201907
Rother District Council,07/10/2019,091HOUSING,Housing and Community Services,20200,Housing Needs - HB (Housing Benefit),D2514,Accommodation Costs,59.99,South Down Residential Ltd,Accommodation Costs,2012732,201907
Rother District Council,07/10/2019,101RESOURCES,Resources,20216,Cost Of Collection,D2513,Hired and Contracted services,62.76,Stanford and Green Ltd,Hired and contracted services - Bailiff Fees-Council Tax,2013923,201909
Rother District Council,07/10/2019,101RESOURCES,Resources,20212,Risk Management/Insurance,D2520,Insurance,475.00,Zurich Insurance plc,Insurance - Excess on Liabilities,2012833,201907
Rother District Council,08/10/2019,999NOREPORT,Environmental Services,70706,Capital - Disable Facilities Grant,N1012,Capital Advances,"3,670.00",A and A J Bishop,Capital Advances Disabled Facilities Grant,2012813,201907
Rother District Council,08/10/2019,091HOUSING,Housing and Community Services,20234,Battle Community Help Point,B2311,Rents and service charges,75.00,Battle Town Council,Rents and service charges - Rents-CHP Battle,2012974,201907
Rother District Council,08/10/2019,999NOREPORT,Housing and Community Services,70705,Capital - Fairlight Coastal Protection Scheme (Preservational Trust),N1005,Other fees,"3,950.00",Canterbury City Council,Other Fees - Capital exp Std VAT,2012779,201907
Rother District Council,08/10/2019,999NOREPORT,Housing and Community Services,70705,Capital - Fairlight Coastal Protection Scheme (Preservational Trust),N1007,Plant & Machinery,"15,476.60",Canterbury City Council,Capital - Plant and Property,2012780,201907
Rother District Council,08/10/2019,081ACQUISIT,"Acquisitions, Transformation and Regeneration",20148,Misc Land & Buildings,B2422,Sewerage,141.00,Cleansing Service Group Ltd,Sewerage Parks- Emptying of Cesspit,2012782,201907
Rother District Council,08/10/2019,041ENVIRON,Environmental Services,32143,EH Licenses and Registration R + W Partnership,D2513,Hired and Contracted services,286.44,Fairfield House Veterinary Surgery,Hired and contracted services - EnvH-Veterinary Services for Licens,2013369,201909
Rother District Council,08/10/2019,999NOREPORT,Environmental Services,70706,Capital - Disable Facilities Grant,N1012,Capital Advances,"2,286.77",GMS Adaptations,Capital Advances Disabled Facilities Grant,2012793,201907
Rother District Council,08/10/2019,999NOREPORT,Environmental Services,70706,Capital - Disable Facilities Grant,N1012,Capital Advances,"2,833.23",GMS Adaptations,Capital Advances Disabled Facilities Grant,2012792,201907
Rother District Council,08/10/2019,091HOUSING,Housing and Community Services,20137,Car Parks,B1100,Repairs to Premises,"1,994.75",Hailsham Roadway Construction Ltd,Repairs to Premises - Car Park Maintenance,2012788,201907
Rother District Council,08/10/2019,091HOUSING,Housing and Community Services,20206,Syrians,D2513,Hired and Contracted services,"2,200.00",Jade Security Services Ltd (CLIENT ACCOUNT),Hired and contracted services - Syrian Misc,2012799,201907
Rother District Council,08/10/2019,091HOUSING,Housing and Community Services,20109,Sports Development,D2923,Grants made,400.00,Jump Club,Grants made - Active Sussex Project workforce dev.,2013029,201907
Rother District Council,08/10/2019,091HOUSING,Housing and Community Services,20114,Bexhill Parks & Open Spaces,D2513,Hired and Contracted services,745.00,M. J. Zara Associates Ltd,Hired and contracted services - Cost of Survey,2012733,201907
Rother District Council,08/10/2019,071STRAT,Strategy and Planning,20249,Planning Appeals,D2513,Hired and Contracted services,100.00,Manor Barn Ltd,Hired and contracted services - Hire of Meeting Room,2012797,201907
Rother District Council,08/10/2019,999NOREPORT,Environmental Services,70706,Capital - Disable Facilities Grant,N1012,Capital Advances,"3,606.77",Peabody South East Ltd,Capital Advances Disabled Facilities Grant,2012812,201907
Rother District Council,08/10/2019,999NOREPORT,Environmental Services,70706,Capital - Disable Facilities Grant,N1012,Capital Advances,175.56,Peabody South East Ltd,Capital Advances Disabled Facilities Grant,2012795,201907
Rother District Council,08/10/2019,999NOREPORT,Environmental Services,70706,Capital - Disable Facilities Grant,N1012,Capital Advances,689.94,Peabody South East Ltd,Capital Advances Disabled Facilities Grant,2012796,201907
Rother District Council,08/10/2019,101RESOURCES,Resources,20240,Printing Services,D2417,Photocopy Paper by external suppliers,25.33,Premier Paper Group Ltd,Photocopy Paper by external suppliers - White,2012781,201907
Rother District Council,08/10/2019,091HOUSING,Housing and Community Services,20128,Public Conveniences,B2422,Sewerage,745.90,Scottish Water Business Stream Limited,Sewerage - Sewerage Charges,2012895,201907
Rother District Council,08/10/2019,091HOUSING,Housing and Community Services,20108,Bexhill Promenade & Foreshore,B1100,Repairs to Premises,450.00,Streetlights,Repairs to Premises - Lighting Repairs,2013119,201908
Rother District Council,08/10/2019,091HOUSING,Housing and Community Services,20137,Car Parks,D2352,Clothing and Uniforms,87.80,SuperStitch 86,Clothing and Uniforms - Mens Uniform-Coat,2012715,201907
Rother District Council,09/10/2019,041ENVIRON,Environmental Services,32133,EH Food Hyg / Idc / Water Purity R + W Partnership,D2513,Hired and Contracted services,9.95,Brady Corporation Ltd (T/A Seton),Equipment & Materials - Carriage/Handling Charge,2012819,201907
Rother District Council,09/10/2019,041ENVIRON,Environmental Services,32133,EH Food Hyg / Idc / Water Purity R + W Partnership,D2513,Hired and Contracted services,169.99,Brady Corporation Ltd (T/A Seton),Hired and contracted services - Service fee paid,2012819,201907
Rother District Council,09/10/2019,101RESOURCES,Resources,20209,Corporate management,D2513,Hired and Contracted services,186.34,Capita Business Services Ltd,Bank Charges,2013382,201908
Rother District Council,09/10/2019,031RESOURCES,Executive Directors & Corporate Core,20173,Administrative Offices - Town Hall,D2513,Hired and Contracted services,109.00,Care Signs,Hired and contracted services - Sign Writing,2012932,201907
Rother District Council,09/10/2019,071STRAT,Strategy and Planning,20246,Planning Applications,D2509,Consultants and Other Services,"1,692.80",Carrington West Ltd,Consultants and other services - Consultants Fees,2012841,201907
Rother District Council,09/10/2019,101RESOURCES,Resources,20216,Cost Of Collection,D2626,Postages,419.37,DSI Billing Services Ltd,Postages - DSI Billing,2012851,201907
Rother District Council,09/10/2019,091HOUSING,Housing and Community Services,20137,Car Parks,D2513,Hired and Contracted services,44.38,Flowbird Smart City UK Ltd,Hired and contracted services - Car Parks-Card payments transaction fee,2012817,201907
Rother District Council,09/10/2019,071STRAT,Strategy and Planning,20246,Planning Applications,A1110,Agency Staff,"1,748.27",Hays Specialist Recruitment Ltd,Consultants and other services - Consultants Fees,2012820,201907
Rother District Council,09/10/2019,091HOUSING,Housing and Community Services,20114,Bexhill Parks & Open Spaces,B2731,Grounds maintenance routine,"67,652.96",Idverde Limited,Grounds maintenance routine - Parks-Grounds Maintenance Contracts,2012759,201907
Rother District Council,09/10/2019,091HOUSING,Housing and Community Services,20200,Housing Needs - HB (Housing Benefit),D2514,Accommodation Costs,385.00,Lets 2 Share Limited,Accommodation Costs,2012790,201907
Rother District Council,09/10/2019,091HOUSING,Housing and Community Services,20200,Housing Needs - HB (Housing Benefit),D2514,Accommodation Costs,385.00,Lets 2 Share Limited,Accommodation Costs,2012790,201907
Rother District Council,09/10/2019,091HOUSING,Housing and Community Services,20200,Housing Needs - HB (Housing Benefit),D2514,Accommodation Costs,385.00,Lets 2 Share Limited,Accommodation Costs,2012790,201907
Rother District Council,09/10/2019,081ACQUISIT,"Acquisitions, Transformation and Regeneration",20136,Regeneration,D2513,Hired and Contracted services,"13,480.00",Light Angels Ltd,Hired and contracted services - Service fee paid,2013036,201907
Rother District Council,09/10/2019,101RESOURCES,Resources,20217,Reliefs & Benefits-Council Tax Benefit,D2513,Hired and Contracted services,"6,339.24",Reigate & Banstead Borough Council,Hired and contracted services - Off-site resilience processing,2012848,201907
Rother District Council,09/10/2019,041ENVIRON,Environmental Services,32142,EH Taxi and Private Hire Licenses R + W Partnership,D2513,Hired and Contracted services,660.00,Thomas Design & Graphics Ltd,Hired and contracted services - WDC Taxi Licence Plates,2012952,201907
Rother District Council,09/10/2019,081ACQUISIT,"Acquisitions, Transformation and Regeneration",20118,Tourism,D2513,Hired and Contracted services,500.00,Tourism South East,Hired and contracted services - Service fee paid,2012831,201907
Rother District Council,09/10/2019,091HOUSING,Housing and Community Services,20145,Maintenance Services,D1201,Equipment & Materials,38.31,Trade UK Account (Screwfix),Equipment & Materials - Purchase of Tools,2012823,201907
Rother District Council,09/10/2019,031RESOURCES,Executive Directors & Corporate Core,32132,Joint Waste Contract Client Unit,D2513,Hired and Contracted services,"4,158.00",WYG Environment Planning Transport Ltd,Hired and contracted services - Service fee paid,2012964,201907
Rother District Council,10/10/2019,091HOUSING,Housing and Community Services,20108,Bexhill Promenade & Foreshore,D2513,Hired and Contracted services,70.00,REDACTED PERSONAL DATA,Hired and contracted services - Contribution towards costs incurred by customer,2012825,201907
